Body Name,Date Paid,Transaction Number,Amount,Supplier Name,Supplier Type,Expense Area,Cost Centre Description,Expense Type
Cambridgeshire County Council,01-Nov-21,51301668151,"1,651.25",ANCHOR TRUST,CHARITY,OP - City & South Locality - Cost of Care,Older People - City & South - Care,Supported Living
Cambridgeshire County Council,01-Nov-21,51301668150,"1,651.25",ANCHOR TRUST,CHARITY,OP - City & South Locality - Cost of Care,Older People - City & South - Care,Supported Living
Cambridgeshire County Council,01-Nov-21,51301668135,"4,800.00",YMD boon Ltd,COMPANY,Building Maintenance,Building Maintenance,"New Construction, Conversion and Renovation"
Cambridgeshire County Council,01-Nov-21,51301668134,"2,280.00",YMD boon Ltd,COMPANY,Building Maintenance,Building Maintenance,"New Construction, Conversion and Renovation"
Cambridgeshire County Council,01-Nov-21,51301668119,"64,996.26",MORGAN SINDALL CONSTRUCTION & INFRASTRUCTURE LTD,COMPANY,Alconbury Weald secondary and Special,Alconbury Weald secondary and Special,Construction - External Professional Fees
Cambridgeshire County Council,01-Nov-21,51301667997,"1,347.28",Redacted Personal Data ,INDIVIDUAL,Children's Disability Direct Payments,CSC Direct Payments,Direct Payments
Cambridgeshire County Council,01-Nov-21,51301667996,"1,998.28",Redacted Personal Data ,INDIVIDUAL,SEND High Needs Top Up,SEND Specialist Services-High needs top-up-Post 16,Independent School Placements
Cambridgeshire County Council,01-Nov-21,51301667995,"2,313.58",Redacted Personal Data ,INDIVIDUAL,SEND High Needs Top Up,SEND Specialist Services-High needs top-up-Post 16,Independent School Placements
Cambridgeshire County Council,01-Nov-21,51301667992,"10,589.83",CAMBRIDGESHIRE COMMUNITY SERVICES NHS TRUST,TRUST (OTHER),SH STI - PH Sexual Health & Health Checks,SH STI - Peterborough CCS - SH Services,Professional Fees and Hired Services
Cambridgeshire County Council,01-Nov-21,51301667991,"10,589.83",CAMBRIDGESHIRE COMMUNITY SERVICES NHS TRUST,TRUST (OTHER),SH STI - PH Sexual Health & Health Checks,SH STI - Peterborough CCS - SH Services,Professional Fees and Hired Services
Cambridgeshire County Council,01-Nov-21,51301667990,"3,375.00",Munro Leisure Investments Ltd. (trading as Quy Mill Hotel),TRADE SUPPLIER,Chief Executive,Chief Executive's Office,Catering Provisions
Cambridgeshire County Council,01-Nov-21,51301667970,"1,260.00",ASBESTECH LIMITED,COMPANY,Swaffham Prior Energy Project,Swaffham Prior Energy Project,Environmental Works
Cambridgeshire County Council,01-Nov-21,51301667969,"4,200.00",ASBESTECH LIMITED,COMPANY,Swaffham Prior Energy Project,Swaffham Prior Energy Project,Environmental Works
Cambridgeshire County Council,01-Nov-21,51301667968,"1,260.00",ASBESTECH LIMITED,COMPANY,Swaffham Prior Energy Project,Swaffham Prior Energy Project,Environmental Works
Cambridgeshire County Council,01-Nov-21,51301667966,540.00,ALANS TAXI LTD,TRADE SUPPLIER,LD - East Locality - Cost of Care,LD - East Cambs - Care,Social Care Transport
Cambridgeshire County Council,01-Nov-21,51301667963,760.00,ALANS TAXI LTD,TRADE SUPPLIER,LD - East Locality - Cost of Care,LD - East Cambs - Care,Social Care Transport
Cambridgeshire County Council,01-Nov-21,51301667962,780.00,ALANS TAXI LTD,TRADE SUPPLIER,LD - East Locality - Cost of Care,LD - East Cambs - Special Needs,Social Care Transport
Cambridgeshire County Council,01-Nov-21,51301667961,"1,274.18",24 X 7 LTD,TRADE SUPPLIER,LD - Young Adults Team,LD - Young Adults - Care,Social Care Transport
Cambridgeshire County Council,01-Nov-21,51301667957,950.74,T & T PRIVATE HIRE LTD,TRADE SUPPLIER,LAC Transport,LAC Transport - Home to School,Social Care Transport
Cambridgeshire County Council,01-Nov-21,51301667956,595.54,T & T PRIVATE HIRE LTD,TRADE SUPPLIER,LD - City Locality - Staffing,LD - City - Staffing,Social Care Transport
Cambridgeshire County Council,01-Nov-21,51301667955,"3,731.36",T & T PRIVATE HIRE LTD,TRADE SUPPLIER,LD - City Locality - Staffing,LD - City - Staffing,Social Care Transport
Cambridgeshire County Council,01-Nov-21,51301667954,"2,175.42",T & T PRIVATE HIRE LTD,TRADE SUPPLIER,LD - South Locality - Cost of Care,LD - South Cambs - Care,Social Care Transport
Cambridgeshire County Council,01-Nov-21,51301667953,"4,547.46",T & T PRIVATE HIRE LTD,TRADE SUPPLIER,LAC Transport,LAC Transport -  Short Breaks,Social Care Transport
Cambridgeshire County Council,01-Nov-21,51301667952,"3,731.36",T & T PRIVATE HIRE LTD,TRADE SUPPLIER,LAC Transport,LAC Transport - Home to School,Social Care Transport
Cambridgeshire County Council,01-Nov-21,51301667951,"3,544.20",T & T PRIVATE HIRE LTD,TRADE SUPPLIER,LD - South Locality - Cost of Care,LD - South Cambs - Care,Social Care Transport
Cambridgeshire County Council,01-Nov-21,51301667950,"1,191.07",T & T PRIVATE HIRE LTD,TRADE SUPPLIER,LD - City Locality - Staffing,LD - City - Staffing,Social Care Transport
Cambridgeshire County Council,01-Nov-21,51301667949,750.14,T & T PRIVATE HIRE LTD,TRADE SUPPLIER,LD - Fenland Locality - Cost of Care,LD - Fenland  - Care,Social Care Transport
Cambridgeshire County Council,01-Nov-21,51301667948,"2,975.36",T & T PRIVATE HIRE LTD,TRADE SUPPLIER,LAC Transport,LAC Transport - Home to School,Social Care Transport
Cambridgeshire County Council,01-Nov-21,51301667947,619.54,T & T PRIVATE HIRE LTD,TRADE SUPPLIER,LD - Young Adults Team,LD - Young Adults - Care,Social Care Transport
Cambridgeshire County Council,01-Nov-21,51301667945,641.05,T & T PRIVATE HIRE LTD,TRADE SUPPLIER,LAC Transport,LAC Transport -  Short Breaks,Social Care Transport
Cambridgeshire County Council,01-Nov-21,51301667943,"2,325.00",Pymoor Taxi,COMPANY,LAC Transport,LAC Transport - Home to School,Social Care Transport
Cambridgeshire County Council,01-Nov-21,51301667942,"2,508.00",F & S TAXIS,TRADE SUPPLIER,LD - Hunts Locality - Cost of Care,LD - Huntingdonshire - Special Needs,Social Care Transport
Cambridgeshire County Council,01-Nov-21,51301667941,800.00,TOWN TAXI,TRADE SUPPLIER,LAC Transport,LAC Transport - Home to School,Social Care Transport
Cambridgeshire County Council,01-Nov-21,51301667939,572.40,NEEDHAM CARS,TRADE SUPPLIER,LAC Transport,LAC Transport -  Short Breaks,Social Care Transport
Cambridgeshire County Council,01-Nov-21,51301667938,"2,175.42",T & T PRIVATE HIRE LTD,TRADE SUPPLIER,LD - South Locality - Cost of Care,LD - South Cambs - Care,Social Care Transport
Cambridgeshire County Council,01-Nov-21,51301667937,"3,544.20",T & T PRIVATE HIRE LTD,TRADE SUPPLIER,LD - South Locality - Cost of Care,LD - South Cambs - Care,Social Care Transport
Cambridgeshire County Council,01-Nov-21,51301667934,924.00,FLEXESERVICES LIMITED,TRADE SUPPLIER,LD - Hunts Locality - Cost of Care,LD - Huntingdonshire - Care,Social Care Transport
Cambridgeshire County Council,01-Nov-21,51301667930,705.60,4X LIMITED T/A STEVES TAXI & PRIVATE HIRE,TRADE SUPPLIER,LD - Hunts Locality - Cost of Care,LD - Huntingdonshire - Care,Social Care Transport
Cambridgeshire County Council,01-Nov-21,51301667929,"1,874.40",4X LIMITED T/A STEVES TAXI & PRIVATE HIRE,TRADE SUPPLIER,LAC Transport,LAC Transport - Home to School,Social Care Transport
Cambridgeshire County Council,01-Nov-21,51301667928,"2,090.00",DIAL A CARZ,TRADE SUPPLIER,LD - Young Adults Team,LD - Young Adults - Care,Social Care Transport
Cambridgeshire County Council,01-Nov-21,51301667927,"1,617.84",Nationwide Travel Solutions Ltd,COMPANY,LAC Transport,LAC Transport - Home to School,Social Care Transport
Cambridgeshire County Council,01-Nov-21,51301667926,"1,872.00",NASA CARS,TRADE SUPPLIER,LAC Transport,LAC Transport - Home to School,Social Care Transport
Cambridgeshire County Council,01-Nov-21,51301667925,"1,752.00",NASA CARS,TRADE SUPPLIER,LAC Transport,LAC Transport - Home to School,Social Care Transport
Cambridgeshire County Council,01-Nov-21,51301667924,"2,856.00",NASA CARS,TRADE SUPPLIER,LD - Young Adults Team,LD - Young Adults - Care,Social Care Transport
Cambridgeshire County Council,01-Nov-21,51301667923,842.40,Smart Cars UK,COMPANY,LAC Transport,LAC Transport - Home to School,Social Care Transport
Cambridgeshire County Council,01-Nov-21,51301667922,"1,326.00",Smart Cars UK,COMPANY,LAC Transport,LAC Transport - Home to School,Social Care Transport
Cambridgeshire County Council,01-Nov-21,51301667921,"2,343.60",Smart Cars UK,COMPANY,LAC Transport,LAC Transport - Home to School,Social Care Transport
Cambridgeshire County Council,01-Nov-21,51301667916,"1,161.60",NEWTAX LTD,TRADE SUPPLIER,LD - East Locality - Cost of Care,LD - East Cambs - Care,Social Care Transport
Cambridgeshire County Council,01-Nov-21,51301667914,"1,938.00",KHOLYO CARS,TRADE SUPPLIER,LAC Transport,LAC Transport - Home to School,Social Care Transport
Cambridgeshire County Council,01-Nov-21,51301667913,"1,674.42",T & T PRIVATE HIRE LTD,TRADE SUPPLIER,LAC Transport,LAC Transport - Home to School,Social Care Transport
Cambridgeshire County Council,01-Nov-21,51301667912,"1,004.65",T & T PRIVATE HIRE LTD,TRADE SUPPLIER,LAC Transport,LAC Transport - Home to School,Social Care Transport
Cambridgeshire County Council,01-Nov-21,51301667911,669.77,T & T PRIVATE HIRE LTD,TRADE SUPPLIER,LAC Transport,LAC Transport - Home to School,Social Care Transport
Cambridgeshire County Council,01-Nov-21,51301667910,669.77,T & T PRIVATE HIRE LTD,TRADE SUPPLIER,LAC Transport,LAC Transport - Home to School,Social Care Transport
Cambridgeshire County Council,01-Nov-21,51301667909,"2,344.19",T & T PRIVATE HIRE LTD,TRADE SUPPLIER,LAC Transport,LAC Transport - Home to School,Social Care Transport
Cambridgeshire County Council,01-Nov-21,51301667908,"1,339.54",T & T PRIVATE HIRE LTD,TRADE SUPPLIER,LAC Transport,LAC Transport - Home to School,Social Care Transport
Cambridgeshire County Council,01-Nov-21,51301667907,669.77,T & T PRIVATE HIRE LTD,TRADE SUPPLIER,LAC Transport,LAC Transport - Home to School,Social Care Transport
Cambridgeshire County Council,01-Nov-21,51301667906,"2,344.19",T & T PRIVATE HIRE LTD,TRADE SUPPLIER,LAC Transport,LAC Transport - Home to School,Social Care Transport
Cambridgeshire County Council,01-Nov-21,51301667905,"2,679.07",T & T PRIVATE HIRE LTD,TRADE SUPPLIER,LAC Transport,LAC Transport - Home to School,Social Care Transport
Cambridgeshire County Council,01-Nov-21,51301667903,"1,674.42",T & T PRIVATE HIRE LTD,TRADE SUPPLIER,LAC Transport,LAC Transport - Home to School,Social Care Transport
Cambridgeshire County Council,01-Nov-21,51301667902,"1,339.54",T & T PRIVATE HIRE LTD,TRADE SUPPLIER,LAC Transport,LAC Transport -  Short Breaks,Social Care Transport
Cambridgeshire County Council,01-Nov-21,51301667900,564.00,A & B TAXIS LTD,TRADE SUPPLIER,LD - Hunts Locality - Cost of Care,LD - Huntingdonshire - Care,Social Care Transport
Cambridgeshire County Council,01-Nov-21,51301667898,870.48,A & B TAXIS LTD,TRADE SUPPLIER,LD - Hunts Locality - Cost of Care,LD - Huntingdonshire - Care,Social Care Transport
Cambridgeshire County Council,01-Nov-21,51301667895,"2,998.80",TRANSITION CARE PETERBOROUGH LTD,CARE ESTABLISHMENT,LAC Placements,Placements - supported accommodation,Agency Placements - In County
Cambridgeshire County Council,01-Nov-21,51301667894,863.50,LITTLE WOMBATZ,NURSERY,Early Years Specialist Support,Procurement - TA Inclusion & Access (EARLY YEARS),Independent School Placements
Cambridgeshire County Council,01-Nov-21,51301667891,"9,083.33",Tubbenden Primary School,EDUCATION,Recoupment,Procurement - Out-County Mainstream,Independent School Placements
Cambridgeshire County Council,01-Nov-21,51301667890,"1,680.00",TRANSITION CARE PETERBOROUGH LTD,CARE ESTABLISHMENT,LAC Placements,Placements - supported accommodation,Agency Placements - In County
Cambridgeshire County Council,01-Nov-21,51301667866,575.00,HUNTINGDONSHIRE DISTRICT COUNCIL,OTHER PUBLIC BODIES,Democratic Services and Member Services,Democratic and Member Services,Casual hire of facilities
Cambridgeshire County Council,01-Nov-21,51301667857,769.80,RED2GREEN,CARE ESTABLISHMENT,SEND High Needs Top Up,SEND Specialist Services-High needs top-up-Post 16,Independent School Placements
Cambridgeshire County Council,01-Nov-21,51301667856,769.80,RED2GREEN,CARE ESTABLISHMENT,SEND High Needs Top Up,SEND Specialist Services-High needs top-up-Post 16,Independent School Placements
Cambridgeshire County Council,01-Nov-21,51301667855,"2,001.02",RED2GREEN,CARE ESTABLISHMENT,SEND High Needs Top Up,SEND Specialist Services-High needs top-up-Post 16,Independent School Placements
Cambridgeshire County Council,01-Nov-21,51301667854,"4,980.38",ARC HD SERVICES LTD,CARE ESTABLISHMENT,LAC Placements,Placements - residential disability,Agency Placements - Out of  County
Cambridgeshire County Council,01-Nov-21,51301667853,"4,980.38",ARC HD SERVICES LTD,CARE ESTABLISHMENT,LAC Placements,Placements - residential disability,Agency Placements - Out of  County
Cambridgeshire County Council,01-Nov-21,51301667852,"2,562.86",FosteringUK Ltd,CARE ESTABLISHMENT,LAC Placements,Placements - independent fostering,Agency Placements - In County
Cambridgeshire County Council,01-Nov-21,51301667849,"1,150.03",FosteringUK Ltd,CARE ESTABLISHMENT,LAC Placements,Placements - independent fostering,Agency Placements - Out of  County
Cambridgeshire County Council,01-Nov-21,51301667847,"2,562.86",FosteringUK Ltd,CARE ESTABLISHMENT,LAC Placements,Placements - independent fostering,Agency Placements - In County
Cambridgeshire County Council,01-Nov-21,51301667844,780.00,FosteringUK Ltd,CARE ESTABLISHMENT,LAC Placements,Placements - independent fostering,Agency Placements - Out of  County
Cambridgeshire County Council,01-Nov-21,51301667841,800.00,YMCA Wearside Ltd,CHARITY,LAC Placements,Placements - supported accommodation,Agency Placements - In County
Cambridgeshire County Council,01-Nov-21,51301667839,"1,331.43",CHS GROUP,CARE ESTABLISHMENT,LAC Placements,Placements - supported accommodation,Agency Placements - In County
Cambridgeshire County Council,01-Nov-21,51301667838,"4,078.80",TRANSITION CARE PETERBOROUGH LTD,CARE ESTABLISHMENT,LAC Placements,Placements - supported accommodation,Agency Placements - In County
Cambridgeshire County Council,01-Nov-21,51301667837,570.00,TRANSITION CARE PETERBOROUGH LTD,CARE ESTABLISHMENT,LAC Placements,Placements - supported accommodation,Agency Placements - In County
Cambridgeshire County Council,01-Nov-21,51301667811,"2,731.39",HUGH STEEPER LTD,TRADE SUPPLIER,Assistive Telecare & Technology,Environmental Controls,Cyclical Highway Maintenance
Cambridgeshire County Council,01-Nov-21,51301667806,"2,800.42",HUGH STEEPER LTD,TRADE SUPPLIER,Assistive Telecare & Technology,Environmental Controls,Cyclical Highway Maintenance
Cambridgeshire County Council,01-Nov-21,51301667805,"301,195.97",OPUS LGSS (PEOPLE SOLUTIONS) LTD,TRADE SUPPLIER,Control Accounts,Suspense Account - General,Suspense Items
Cambridgeshire County Council,01-Nov-21,51301667804,"3,200.00",SE Electrical Services,COMPANY,Connecting Cambridgeshire,CC Digital Technology Grants,Grants
Cambridgeshire County Council,01-Nov-21,51301667803,"4,819.34",QueenBee Magazine and Podcast,COMPANY,Connecting Cambridgeshire,CC Digital Technology Grants,Grants
Cambridgeshire County Council,01-Nov-21,51301667802,"2,766.07",Future Volumes Creative Ltd,COMPANY,Connecting Cambridgeshire,CC Digital Technology Grants,Grants
Cambridgeshire County Council,01-Nov-21,51301667801,"9,008.00",Le Mark Group Ltd,COMPANY,Connecting Cambridgeshire,CC Digital Technology Grants,Grants
Cambridgeshire County Council,01-Nov-21,51301667800,"3,600.00",HERDSY LTD,COMPANY,Connecting Cambridgeshire,CC Digital Technology Grants,Grants
Cambridgeshire County Council,01-Nov-21,51301667799,"2,231.69",The Scoop Shop Ltd,COMPANY,Connecting Cambridgeshire,CC Digital Technology Grants,Grants
Cambridgeshire County Council,01-Nov-21,51301667773,"2,809.80",WARBOYS UNDER FIVES PLAY GROUP,NURSERY,SEND High Needs Top Up,SEND Specialist Services-High needs top-up-Early Years,Independent School Placements
Cambridgeshire County Council,01-Nov-21,51301667766,537.73,HOLDSWORTH,TRADE SUPPLIER,Grafham Water,Grafham Water Centre,Catering Provisions
Cambridgeshire County Council,01-Nov-21,51301667763,570.00,Qualsafe Ltd,EDUCATION,Adults L&D,L&D Adult's,Professional Fees and Hired Services
Cambridgeshire County Council,01-Nov-21,51301662389,"2,701.27",ROYAL MAIL,TRADE SUPPLIER,Information Management,Resources Franking Machine,Postage & Carriage
Cambridgeshire County Council,01-Nov-21,51301662348,"1,009.04",DPSMN LTD,TRADE SUPPLIER,SEND High Needs Top Up,"SEND Specialist Services,High Needs Top Up,Other institutions",Independent School Placements
Cambridgeshire County Council,01-Nov-21,51301661392,"9,290.00",huathe ltd,COMPANY,Early Years,Forest School Qualifications,Professional Fees and Hired Services
Cambridgeshire County Council,01-Nov-21,51301660896,"1,166.88",Cambridge Store Ltd,COMPANY,Travel Plan,Smart Journeys,Storage and Archiving
Cambridgeshire County Council,01-Nov-21,51301660836,"61,883.18",KIER CONSTRUCTION,COMPANY,Additional secondary capacity to serve March & Wisbech,Additional secondary capacity to serve March & Wisbech,"New Construction, Conversion and Renovation"
Cambridgeshire County Council,01-Nov-21,51301660411,597.92,D HAIRD & CO LTD,COMPANY,County Farms,County Farms,County Farms Maintenance unplanned
Cambridgeshire County Council,01-Nov-21,51301660290,720.00,Prospero Group,EDUCATION,Out of School Tuition,Out of School Provision - Education and Settings,Independent School Placements
Cambridgeshire County Council,01-Nov-21,51301660285,720.00,Prospero Group,EDUCATION,Out of School Tuition,Out of School Provision - Education and Settings,Independent School Placements
Cambridgeshire County Council,01-Nov-21,51301659188,"24,748.85",National Star,CHARITY,SEN Placements,Placements - Education,Independent School Placements
Cambridgeshire County Council,01-Nov-21,51301659141,601.60,D HAIRD & CO LTD,COMPANY,County Farms,County Farms,County Farms Maintenance unplanned
Cambridgeshire County Council,01-Nov-21,51301659123,"2,925.00",WESTFIELD JUNIOR SCHOOL,EDUCATION,SIS Head of Service,SIS Staff,Professional Fees and Hired Services
Cambridgeshire County Council,01-Nov-21,51301658297,"8,400.00",HUNTINGDON TOWN COUNCIL,OTHER PUBLIC BODIES,Coroners,Coroners General,Casual hire of facilities
Cambridgeshire County Council,01-Nov-21,51301658270,600.00,ADEC,LOCAL CLUBS & GROUPS,Cultural Services,The Library Presents,Partnership Costs and Expenses
Cambridgeshire County Council,01-Nov-21,51301658115,"2,941.68",The TESS Group Ltd,COMPANY,Highways General,Highways,Staff Training & Development
Cambridgeshire County Council,01-Nov-21,51301657957,"1,200.00",Cambridge Electric Transport Ltd,COMPANY,Travel Plan,Smart Journeys,Advertising / Publicity (non Recruitment)
Cambridgeshire County Council,01-Nov-21,51301657910,"38,847.29",MOTT MACDONALD LTD,TRADE SUPPLIER,GCP - Cambridge South East (A1307),GCP - Cambridge South East (A1307),Construction - External Professional Fees
Cambridgeshire County Council,01-Nov-21,51301657879,"1,814.04",MRC MODULAR LTD,SOLETRADER,Temporary Accommodation,Temporary Accommodation,Mobile - Buildings
Cambridgeshire County Council,01-Nov-21,51301657873,"1,814.04",MRC MODULAR LTD,SOLETRADER,Temporary Accommodation,Temporary Accommodation,Mobile - Buildings
Cambridgeshire County Council,01-Nov-21,51301657228,"18,832.80",Tile Hill Interim & Executive Ltd,COMPANY,Project Delivery,Development Consents team,Professional Fees and Hired Services
Cambridgeshire County Council,01-Nov-21,51301657200,"5,524.77",Low Carbon Contracts Company Ltd,COMPANY,County Farms,Solar PV,Electricity
Cambridgeshire County Council,01-Nov-21,51301657182,"1,689.76",Low Carbon Contracts Company Ltd,COMPANY,County Farms,Solar PV,Electricity
Cambridgeshire County Council,01-Nov-21,51301656968,"1,065.23",CUSTOM GROUP LTD,COMPANY,Corporate Offices,Cambridge Central Library,"Fixtures, Fittings and Furnishings"
Cambridgeshire County Council,01-Nov-21,51301656794,"1,538.40",WOODGATE & CLARK,TRADE SUPPLIER,Insurance Fund,Liability,Insurance Claims Paid
Cambridgeshire County Council,01-Nov-21,51301656570,"3,180.00",Matchtech,COMPANY,PD - General,Major Infrastructure Delivery,Agency Staff
Cambridgeshire County Council,01-Nov-21,51301656473,524.00,IMPERIAL COLLEGE PROJECTS LIMITED,TRADE SUPPLIER,Coroners,Coroners General,Testing
Cambridgeshire County Council,01-Nov-21,51301656380,"2,467.20",Venue Audio Visual,COMPANY,Democratic Services and Member Services,Democratic and Member Services,Equipment and Tools
Cambridgeshire County Council,01-Nov-21,51301656360,"2,354.92",THE RECRUITMENT AGENCY LIMITED,TRADE SUPPLIER,Grafham Water,Grafham Water Centre,Agency Staff
Cambridgeshire County Council,01-Nov-21,51301656350,"49,999.50",Embrace Child Victims of Crime,CHARITY,Domestic Violence & Sexual Violence,CADA Grant,Professional Fees and Hired Services
Cambridgeshire County Council,01-Nov-21,51301656338,984.00,GD GREEN,SOLETRADER,County Farms,County Farms,County Farms Maintenance unplanned
Cambridgeshire County Council,01-Nov-21,51301656279,"19,316.50",ANGLIAN DEMOLITION & ASBESTOS LTD,COMPANY,Health & Safety,POD - Health & Safety,Professional Fees and Hired Services
Cambridgeshire County Council,01-Nov-21,51301656253,"1,529.64",CANON (UK) LTD,TRADE SUPPLIER,Corporate IT Managed,MFD Recharges,Printing
Cambridgeshire County Council,01-Nov-21,51301655920,"2,958.00",IN Professional Development Ltd,COMPANY,HR Advisory,Human Resources Unit,Staff Training & Development
Cambridgeshire County Council,01-Nov-21,51301655919,"2,090.00",Armadillo boxes,COMPANY,Park & Ride Parking,Park and Ride Admin,Building Repair and Maintenance
Cambridgeshire County Council,01-Nov-21,51301655917,731.12,Fen Drayton Parish Council,OTHER PUBLIC BODIES,Highways Maintenance,Highways Maintenance - Works,Village Maintenance
Cambridgeshire County Council,01-Nov-21,51301655892,"4,740.00",COVERGOLD LTD,TRADE SUPPLIER,Libraries - Support,Support - Business Support,Specialist Equipment For Service Delivery
Cambridgeshire County Council,01-Nov-21,51301655878,"6,192.29",KONE PLC,COMPANY,Corporate Offices,Cambridge Central Library,Building Repair and Maintenance
Cambridgeshire County Council,01-Nov-21,51301655873,"11,760.00",MRC MODULAR LTD,SOLETRADER,Duxford -  Fire Damage Rebuild,Duxford -  Fire Damage Rebuild,Mobile - Buildings
Cambridgeshire County Council,01-Nov-21,51301654684,"14,247.30",C JACKSON & SONS (BEDFORD) LTD,COMPANY,Health & Safety,POD - Health & Safety,Professional Fees and Hired Services
Cambridgeshire County Council,01-Nov-21,51301654637,"2,592.00",Panoramic Associates,COMPANY,PH COMF,PH - Contain Outbreak Management Fund,Agency Staff
Cambridgeshire County Council,01-Nov-21,51301654600,"3,870.00",PEASGOOD & SKEATES FUNERAL DIRECTORS,TRADE SUPPLIER,Coroners,Coroners General,Transportion Services
Cambridgeshire County Council,01-Nov-21,51301654566,"2,016.00",Panoramic Associates,COMPANY,PH COMF,PH - Contain Outbreak Management Fund,Agency Staff
Cambridgeshire County Council,01-Nov-21,51301654558,"3,801.60",Tile Hill Interim & Executive Ltd,COMPANY,Exec Director,Executive Director - Place & Economy,Consultancy
Cambridgeshire County Council,01-Nov-21,51301654553,550.00,J & P PLANT LTD,COMPANY,Highways Maintenance,Highways Maintenance - South Cambs,Trees and shrubs
Cambridgeshire County Council,01-Nov-21,51301654552,550.00,J & P PLANT LTD,COMPANY,Highways Maintenance,Highways Maintenance - South Cambs,Trees and shrubs
Cambridgeshire County Council,01-Nov-21,51301654539,900.00,CC Training Group Ltd T/A Bedford Forklift Training,COMPANY,PH COMF,PH - Contain Outbreak Management Fund,Staff Training & Development
Cambridgeshire County Council,01-Nov-21,51301654536,"13,150.04",IDOX SOFTWARE LTD,TRADE SUPPLIER,IHMC and Events,IHMC and Events,Computer software - annual licence agreement
Cambridgeshire County Council,01-Nov-21,51301654533,"4,000.00",THE ROSMINI CENTRE,LOCAL CLUBS & GROUPS,PH Other Health Improvement,Gen prev activities - Health -  Small community projects,Professional Fees and Hired Services
Cambridgeshire County Council,01-Nov-21,51301654528,561.08,TIDEY ELECTRICAL LTD,TRADE SUPPLIER,Connecting Cambridgeshire,Connecting Cambridgeshire,Professional Fees and Hired Services
Cambridgeshire County Council,01-Nov-21,51301654527,"1,265.26",TIDEY ELECTRICAL LTD,TRADE SUPPLIER,Connecting Cambridgeshire,Connecting Cambridgeshire,Professional Fees and Hired Services
Cambridgeshire County Council,01-Nov-21,51301654510,955.50,J & G GROUNDWORKS & SURFACING,COMPANY,Highways - Rights of Way,Highways - Rights of Way,Highways - Bridges
Cambridgeshire County Council,01-Nov-21,51301654506,"12,000.00",SOFTCAT LTD,TRADE SUPPLIER,Corporate IT Managed,Hardware & Infrastructure,Computer software - purchase
Cambridgeshire County Council,01-Nov-21,51301654500,837.48,NOTTINGHAM REHAB SUPPLIES LTD,TRADE SUPPLIER,Reablement - Hunts,Reablement OT Team,Specialist Equipment For Service Delivery
Cambridgeshire County Council,01-Nov-21,51301654497,"96,157.44",SOFTCAT LTD,TRADE SUPPLIER,"Telephony, CPSN & MFD",Enterprise Agreement,Computer software - purchase
Cambridgeshire County Council,01-Nov-21,51301654442,"1,872.00",Great Eastern Railway Sports Club March Limited,COMPANY,Lateral Flow Testing Grant,Lateral Flow Testing Grant,Casual hire of facilities
Cambridgeshire County Council,01-Nov-21,51301654439,"1,272.00",DKO WHEATLEY,SOLETRADER,County Farms,County Farms,Specialist Works and Repairs
Cambridgeshire County Council,01-Nov-21,51301654378,840.00,SKILLS FOR CARE LTD,TRADE SUPPLIER,PSW - Quality and Practice,Adults Quality Governance and Practice Development,Staff Training & Development
Cambridgeshire County Council,01-Nov-21,51301654204,"2,953.80",Camline Cambridge Ltd,TRADE SUPPLIER,Shire Hall Relocation,Shire Hall Relocation,Buildings - Mechanical and Electrical
Cambridgeshire County Council,01-Nov-21,51301654096,705.48,TIDEY ELECTRICAL LTD,TRADE SUPPLIER,Connecting Cambridgeshire,Connecting Cambridgeshire,Professional Fees and Hired Services
Cambridgeshire County Council,01-Nov-21,51301654011,"1,023.00",Matchtech,COMPANY,TIPF - Strategy & Scheme Dev,TIPF - Strategy & Scheme Dev,Construction - External Professional Fees
Cambridgeshire County Council,01-Nov-21,51301654009,990.00,Matchtech,COMPANY,TIPF - Strategy & Scheme Dev,TIPF - Strategy & Scheme Dev,Construction - External Professional Fees
Cambridgeshire County Council,01-Nov-21,51301654007,"3,300.00",Matchtech,COMPANY,PD - General,Major Infrastructure Delivery,Agency Staff
Cambridgeshire County Council,01-Nov-21,51301654001,"3,360.00",Matchtech,COMPANY,PD - General,Major Infrastructure Delivery,Agency Staff
Cambridgeshire County Council,01-Nov-21,51301653999,"2,880.00",Matchtech,COMPANY,PD - General,Major Infrastructure Delivery,Agency Staff
Cambridgeshire County Council,01-Nov-21,51301653998,816.00,Matchtech,COMPANY,PD - General,Major Infrastructure Delivery,Agency Staff
Cambridgeshire County Council,01-Nov-21,51301653997,"2,932.50",Matchtech,COMPANY,PD - General,Major Infrastructure Delivery,Agency Staff
Cambridgeshire County Council,01-Nov-21,51301653995,"3,360.00",Matchtech,COMPANY,PD - General,Major Infrastructure Delivery,Agency Staff
Cambridgeshire County Council,01-Nov-21,51301653994,"5,583.60",Matchtech,COMPANY,PD - General,Major Infrastructure Delivery,Agency Staff
Cambridgeshire County Council,01-Nov-21,51301653843,"1,524.00",ATKINS LTD,COMPANY,TIPF - Strategy & Scheme Dev,TIPF - Strategy & Scheme Dev,Construction - External Professional Fees
Cambridgeshire County Council,01-Nov-21,51301653824,"1,650.00",CAMBRIDGE CITY COUNCIL,OTHER PUBLIC BODIES,GCP - Operations,GCP - Programme Central Co-ordination,Casual hire of facilities
Cambridgeshire County Council,01-Nov-21,51301653774,"8,316.00",IDOX SOFTWARE LTD,TRADE SUPPLIER,Libraries - H of S,B&IP Centre (Ext Fund),Computer software - annual licence agreement
Cambridgeshire County Council,01-Nov-21,51301653611,"1,256.16",THE ONE GROUP,TRADE SUPPLIER,Enduring Transmission Grant,Enduring Transmission Grant,Professional Fees and Hired Services
Cambridgeshire County Council,01-Nov-21,51301653597,"69,692.33","M&J Group, Construction & Roofing Ltd",COMPANY,"School Condition, Maintenance & Suitability","School Condition, Maintenance & Suitability","New Construction, Conversion and Renovation"
Cambridgeshire County Council,01-Nov-21,51301653220,"3,889.17",MARSHFIELDS SCHOOL,EDUCATION,Recoupment,Procurement - Out-County Special Schools & ER,Independent School Placements
Cambridgeshire County Council,01-Nov-21,51301652984,"1,800.00",RIDGE AND PARTNERS LLP,TRADE SUPPLIER,Decarbonisation Fund,Decarbonisation Fund - project development,Construction - External Professional Fees
Cambridgeshire County Council,01-Nov-21,51301645852,"2,597.67",Morton CE Primary School,EDUCATION,Recoupment,Procurement - Out-County Mainstream,Independent School Placements
Cambridgeshire County Council,01-Nov-21,51301638696,"2,251.03",VETSPEED LTD T/A NOVUS ENVIRONMENTAL,TRADE SUPPLIER,Waste Disposal incl PFI,Waste Management,Specialist Waste Disposal
Cambridgeshire County Council,02-Nov-21,51301668680,"9,001.16",THE HESLEY GROUP,CARE ESTABLISHMENT,SEND High Needs Top Up,SEND Specialist Services-High needs top-up-Post 16,Independent School Placements
Cambridgeshire County Council,02-Nov-21,51301668677,"1,468.25",Redacted Personal Data ,INDIVIDUAL,SIS Head of Service,SIS - Intervention,Professional Fees and Hired Services
Cambridgeshire County Council,02-Nov-21,51301668676,"1,073.50",Redacted Personal Data ,INDIVIDUAL,SIS Head of Service,SIS - Intervention,Professional Fees and Hired Services
Cambridgeshire County Council,02-Nov-21,51301668675,"1,346.70",Redacted Personal Data ,INDIVIDUAL,SIS Head of Service,SIS - Intervention,Professional Fees and Hired Services
Cambridgeshire County Council,02-Nov-21,51301668661,"73,920.00",CCS MEDIA LIMITED,TRADE SUPPLIER,ICT Service,ICT Service Sales,Materials for resale
Cambridgeshire County Council,02-Nov-21,51301668629,"2,398.80",TRANSITION CARE PETERBOROUGH LTD,CARE ESTABLISHMENT,LAC Placements,Placements - supported accommodation,Agency Placements - In County
Cambridgeshire County Council,02-Nov-21,51301668626,504.83,NEROSTONE FLOORS AND CEILINGS LIMITED,COMPANY,Short Break,Short Breaks,Building Cleaning
Cambridgeshire County Council,02-Nov-21,51301668623,"10,530.00",Xander Talent Limited,COMPANY,Enduring Transmission Grant,Enduring Transmission Grant,Professional Fees and Hired Services
Cambridgeshire County Council,02-Nov-21,51301668618,"1,520.00",Parker Clinical Psychology Limited,EDUCATION,Regional Adoption Agency,Adoption Support Fund,Professional Fees and Hired Services
Cambridgeshire County Council,02-Nov-21,51301668615,996.29,INITIAL MEDICAL SERVICES LIMITED,TRADE SUPPLIER,EY - Oasis,Oasis Nursery,Cleaning and Domestic Supplies
Cambridgeshire County Council,02-Nov-21,51301668612,"1,898.62",THE HELPING HANDS GROUP,CARE ESTABLISHMENT,SEND High Needs Top Up,SEND Specialist Services-High needs top-up-Post 16,Independent School Placements
Cambridgeshire County Council,02-Nov-21,51301668610,"16,607.14",TulipCare,CARE ESTABLISHMENT,LAC Placements,Placements - residential homes,Agency Placements - Out of  County
Cambridgeshire County Council,02-Nov-21,51301668608,"16,071.43",TulipCare,CARE ESTABLISHMENT,LAC Placements,Placements - residential homes,Agency Placements - Out of  County
Cambridgeshire County Council,02-Nov-21,51301668607,"16,607.14",TulipCare,CARE ESTABLISHMENT,LAC Placements,Placements - residential homes,Agency Placements - Out of  County
Cambridgeshire County Council,02-Nov-21,51301668606,"-21,035.71",TulipCare,CARE ESTABLISHMENT,LAC Placements,Placements - residential homes,Agency Placements - Out of  County
Cambridgeshire County Council,02-Nov-21,51301668605,"16,607.14",TulipCare,CARE ESTABLISHMENT,LAC Placements,Placements - residential homes,Agency Placements - Out of  County
Cambridgeshire County Council,02-Nov-21,51301668604,"-21,035.71",TulipCare,CARE ESTABLISHMENT,LAC Placements,Placements - residential homes,Agency Placements - Out of  County
Cambridgeshire County Council,02-Nov-21,51301668603,"16,071.43",TulipCare,CARE ESTABLISHMENT,LAC Placements,Placements - residential homes,Agency Placements - Out of  County
Cambridgeshire County Council,02-Nov-21,51301668602,"-20,357.14",TulipCare,CARE ESTABLISHMENT,LAC Placements,Placements - residential homes,Agency Placements - Out of  County
Cambridgeshire County Council,02-Nov-21,51301668601,"16,607.14",TulipCare,CARE ESTABLISHMENT,LAC Placements,Placements - residential homes,Agency Placements - Out of  County
Cambridgeshire County Council,02-Nov-21,51301668600,"-21,035.71",TulipCare,CARE ESTABLISHMENT,LAC Placements,Placements - residential homes,Agency Placements - Out of  County
Cambridgeshire County Council,02-Nov-21,51301668599,"6,428.57",TulipCare,CARE ESTABLISHMENT,LAC Placements,Placements - residential homes,Agency Placements - Out of  County
Cambridgeshire County Council,02-Nov-21,51301668598,"-8,142.86",TulipCare,CARE ESTABLISHMENT,LAC Placements,Placements - residential homes,Agency Placements - Out of  County
Cambridgeshire County Council,02-Nov-21,51301668597,"4,078.80",TRANSITION CARE PETERBOROUGH LTD,CARE ESTABLISHMENT,LAC Placements,Placements - supported accommodation,Agency Placements - In County
Cambridgeshire County Council,02-Nov-21,51301668596,570.00,TRANSITION CARE PETERBOROUGH LTD,CARE ESTABLISHMENT,LAC Placements,Placements - supported accommodation,Agency Placements - In County
Cambridgeshire County Council,02-Nov-21,51301668595,800.00,YMCA Wearside Ltd,CHARITY,LAC Placements,Placements - supported accommodation,Agency Placements - In County
Cambridgeshire County Council,02-Nov-21,51301668594,"30,104.17",Kattz (YH) LTD,CARE ESTABLISHMENT,LAC Placements,Placements - residential homes,Agency Placements - Out of  County
Cambridgeshire County Council,02-Nov-21,51301668593,"23,766.45",Kattz (YH) LTD,CARE ESTABLISHMENT,LAC Placements,Placements - residential homes,Agency Placements - Out of  County
Cambridgeshire County Council,02-Nov-21,51301668592,"18,000.00",CHARTWELL HOUSE,CARE ESTABLISHMENT,LAC Placements,Placements - residential homes,Agency Placements - In County
Cambridgeshire County Council,02-Nov-21,51301668591,"15,642.86",CHARTWELL HOUSE,CARE ESTABLISHMENT,LAC Placements,Placements - residential homes,Agency Placements - In County
Cambridgeshire County Council,02-Nov-21,51301668590,"16,500.00",CHARTWELL HOUSE,CARE ESTABLISHMENT,LAC Placements,Placements - residential homes,Agency Placements - In County
Cambridgeshire County Council,02-Nov-21,51301668589,"16,500.00",CHARTWELL HOUSE,CARE ESTABLISHMENT,LAC Placements,Placements - residential homes,Agency Placements - In County
Cambridgeshire County Council,02-Nov-21,51301668588,"3,502.69",ORANGE GROVE FOSTER CARE,CARE ESTABLISHMENT,LAC Placements,Placements - independent fostering,Agency Placements - In County
Cambridgeshire County Council,02-Nov-21,51301668587,"3,963.35",People Who Foster Ltd,CARE ESTABLISHMENT,LAC Placements,Placements - independent fostering,Agency Placements - Out of  County
Cambridgeshire County Council,02-Nov-21,51301668586,"3,485.29",ORANGE GROVE FOSTER CARE,CARE ESTABLISHMENT,LAC Placements,Placements - independent fostering,Agency Placements - In County
Cambridgeshire County Council,02-Nov-21,51301668584,"3,485.37",ORANGE GROVE FOSTER CARE,CARE ESTABLISHMENT,LAC Placements,Placements - independent fostering,Agency Placements - In County
Cambridgeshire County Council,02-Nov-21,51301668582,"3,620.49",ORANGE GROVE FOSTER CARE,CARE ESTABLISHMENT,LAC Placements,Placements - independent fostering,Agency Placements - Out of  County
Cambridgeshire County Council,02-Nov-21,51301668580,"3,485.29",ORANGE GROVE FOSTER CARE,CARE ESTABLISHMENT,LAC Placements,Placements - independent fostering,Agency Placements - In County
Cambridgeshire County Council,02-Nov-21,51301668578,"3,689.00",NEXUS FOSTERING LTD,CARE ESTABLISHMENT,LAC Placements,Placements - independent fostering,Agency Placements - In County
Cambridgeshire County Council,02-Nov-21,51301668576,"3,131.00",NEXUS FOSTERING LTD,CARE ESTABLISHMENT,LAC Placements,Placements - independent fostering,Agency Placements - In County
Cambridgeshire County Council,02-Nov-21,51301668575,"3,131.00",NEXUS FOSTERING LTD,CARE ESTABLISHMENT,LAC Placements,Placements - independent fostering,Agency Placements - In County
Cambridgeshire County Council,02-Nov-21,51301668573,"3,620.49",ORANGE GROVE FOSTER CARE,CARE ESTABLISHMENT,LAC Placements,Placements - independent fostering,Agency Placements - Out of  County
Cambridgeshire County Council,02-Nov-21,51301668571,"3,578.29",NEXUS FOSTERING LTD,CARE ESTABLISHMENT,LAC Placements,Placements - independent fostering,Agency Placements - Out of  County
Cambridgeshire County Council,02-Nov-21,51301668569,"3,131.00",NEXUS FOSTERING LTD,CARE ESTABLISHMENT,LAC Placements,Placements - independent fostering,Agency Placements - In County
Cambridgeshire County Council,02-Nov-21,51301668568,"2,658.12",NEXUS FOSTERING LTD,CARE ESTABLISHMENT,LAC Placements,Placements - independent fostering,Agency Placements - In County
Cambridgeshire County Council,02-Nov-21,51301668566,"3,596.00",NEXUS FOSTERING LTD,CARE ESTABLISHMENT,LAC Placements,Placements - independent fostering,Agency Placements - Out of  County
Cambridgeshire County Council,02-Nov-21,51301668565,"3,131.00",NEXUS FOSTERING LTD,CARE ESTABLISHMENT,LAC Placements,Placements - independent fostering,Agency Placements - In County
Cambridgeshire County Council,02-Nov-21,51301668563,"3,814.29",LITTLE ACORNS FOSTERING LTD,CARE ESTABLISHMENT,LAC Placements,Placements - independent fostering,Agency Placements - Out of  County
Cambridgeshire County Council,02-Nov-21,51301668560,"3,672.86",LITTLE ACORNS FOSTERING LTD,CARE ESTABLISHMENT,LAC Placements,Placements - independent fostering,Agency Placements - In County
Cambridgeshire County Council,02-Nov-21,51301668558,"3,596.00",NEXUS FOSTERING LTD,CARE ESTABLISHMENT,LAC Placements,Placements - independent fostering,Agency Placements - In County
Cambridgeshire County Council,02-Nov-21,51301668557,"3,131.00",NEXUS FOSTERING LTD,CARE ESTABLISHMENT,LAC Placements,Placements - independent fostering,Agency Placements - In County
Cambridgeshire County Council,02-Nov-21,51301668555,"3,596.00",NEXUS FOSTERING LTD,CARE ESTABLISHMENT,LAC Placements,Placements - independent fostering,Agency Placements - In County
Cambridgeshire County Council,02-Nov-21,51301668554,"3,131.00",NEXUS FOSTERING LTD,CARE ESTABLISHMENT,LAC Placements,Placements - independent fostering,Agency Placements - Out of  County
Cambridgeshire County Council,02-Nov-21,51301668553,"3,131.00",NEXUS FOSTERING LTD,CARE ESTABLISHMENT,LAC Placements,Placements - independent fostering,Agency Placements - In County
Cambridgeshire County Council,02-Nov-21,51301668551,"3,131.00",NEXUS FOSTERING LTD,CARE ESTABLISHMENT,LAC Placements,Placements - independent fostering,Agency Placements - Out of  County
Cambridgeshire County Council,02-Nov-21,51301668549,"2,658.12",NEXUS FOSTERING LTD,CARE ESTABLISHMENT,LAC Placements,Placements - independent fostering,Agency Placements - In County
Cambridgeshire County Council,02-Nov-21,51301668547,"3,596.00",NEW CHAPTERS FOSTERCARE,CARE ESTABLISHMENT,LAC Placements,Placements - independent fostering,Agency Placements - Out of  County
Cambridgeshire County Council,02-Nov-21,51301668545,"3,046.99",NEXUS FOSTERING LTD,CARE ESTABLISHMENT,LAC Placements,Placements - independent fostering,Agency Placements - Out of  County
Cambridgeshire County Council,02-Nov-21,51301668544,"3,131.00",NEXUS FOSTERING LTD,CARE ESTABLISHMENT,LAC Placements,Placements - independent fostering,Agency Placements - In County
Cambridgeshire County Council,02-Nov-21,51301668543,"3,596.00",NEXUS FOSTERING LTD,CARE ESTABLISHMENT,LAC Placements,Placements - independent fostering,Agency Placements - In County
Cambridgeshire County Council,02-Nov-21,51301668542,"6,820.00",Channels & Choices Therapeutic Fostering Ltd,CARE ESTABLISHMENT,LAC Placements,Placements - independent fostering,Agency Placements - Out of  County
Cambridgeshire County Council,02-Nov-21,51301668541,597.24,Redacted Personal Data ,INDIVIDUAL,Home to School Transport - Special,Home to School Transport Special - Post 16,Home to School - Contract
Cambridgeshire County Council,02-Nov-21,51301668539,962.22,Redacted Personal Data ,PARENT/GUARDIAN,Home to School Transport - Special,Home to School Transport Special - Special School,Home to School - Contract
Cambridgeshire County Council,02-Nov-21,51301668537,660.00,Redacted Personal Data ,INDIVIDUAL,Youth and Community Services,YS - National Citizen Service,Educational Materials
Cambridgeshire County Council,02-Nov-21,51301668536,"3,770,705.46",Milestone Infrastructure Limited,COMPANY,Highways General,Highways,Network Support Contracts
Cambridgeshire County Council,02-Nov-21,51301668530,600.00,Redacted Personal Data ,INDIVIDUAL,Nursery Schools,Early Years - Funded 3s/4s,Care & Ed Childcare Settings
Cambridgeshire County Council,02-Nov-21,51301668529,615.00,Godmanchester Pre-School,NURSERY,Nursery Schools,Early Years - Funded 3s/4s,Care & Ed Childcare Settings
Cambridgeshire County Council,02-Nov-21,51301668528,"5,535.36",ALZ TRAVEL LTD,TRADE SUPPLIER,Home to School Transport - Special,Home to School Transport Special - Special School,Home to School - Contract
Cambridgeshire County Council,02-Nov-21,51301668527,"4,939.56",ALZ TRAVEL LTD,TRADE SUPPLIER,Home to School Transport - Special,Home to School Transport Special - Post 16,Home to School - Contract
Cambridgeshire County Council,02-Nov-21,51301668526,"3,300.00",Sam Private Hire,COMPANY,Home to School Transport - Special,Home to School Transport Special - Special School,Home to School - Contract
Cambridgeshire County Council,02-Nov-21,51301668525,"1,380.00",Sam Private Hire,COMPANY,Home to School Transport - Special,Home to School Transport Special - Special School,Home to School - Contract
Cambridgeshire County Council,02-Nov-21,51301668524,"2,201.88",EXPRESS CARS,TRADE SUPPLIER,Home to School Transport - Special,Home to School Transport Special - Out of County,Home to School - Contract
Cambridgeshire County Council,02-Nov-21,51301668523,940.80,Nationwide Travel Solutions Ltd,COMPANY,Home to School Transport - Mainstream,Home to School Transport Mainstream - Secondary,Home to School - Contract
Cambridgeshire County Council,02-Nov-21,51301668522,"1,489.20",Nationwide Travel Solutions Ltd,COMPANY,Home to School Transport - Mainstream,Home to School Transport Mainstream - Secondary,Home to School - Contract
Cambridgeshire County Council,02-Nov-21,51301668521,"1,008.00",Nationwide Travel Solutions Ltd,COMPANY,Home to School Transport - Mainstream,Home to School Transport Mainstream - Primary,Home to School - Contract
Cambridgeshire County Council,02-Nov-21,51301668520,"1,075.20",Nationwide Travel Solutions Ltd,COMPANY,Home to School Transport - Special,Home to School Transport Special - Out of County,Home to School - Contract
Cambridgeshire County Council,02-Nov-21,51301668517,"1,512.00",MATT ROSSI T/A CAB SERVICES ST NEOTS LTD,TRADE SUPPLIER,Home to School Transport - Special,Home to School Transport Special - Post 16,Home to School - Contract
Cambridgeshire County Council,02-Nov-21,51301668516,"1,881.60",MATT ROSSI T/A CAB SERVICES ST NEOTS LTD,TRADE SUPPLIER,Home to School Transport - Special,Home to School Transport Special - Special School,Home to School - Contract
Cambridgeshire County Council,02-Nov-21,51301668515,"1,080.00",STAR CABS LTD,TRADE SUPPLIER,Home to School Transport - Mainstream,Home to School Transport Mainstream - Secondary,Home to School - Contract
Cambridgeshire County Council,02-Nov-21,51301668514,"2,106.00",STAR CABS LTD,TRADE SUPPLIER,Home to School Transport - Mainstream,Home to School Transport Mainstream - Primary,Home to School - Contract
Cambridgeshire County Council,02-Nov-21,51301668513,"3,360.00",STAR CABS LTD,TRADE SUPPLIER,Home to School Transport - Special,Home to School Transport Special - Secondary,Home to School - Contract
Cambridgeshire County Council,02-Nov-21,51301668512,"18,018.00",STAR CABS LTD,TRADE SUPPLIER,Home to School Transport - Special,Home to School Transport Special - Out of County,Home to School - Contract
Cambridgeshire County Council,02-Nov-21,51301668511,"27,700.74",STAR CABS LTD,TRADE SUPPLIER,Home to School Transport - Special,Home to School Transport Special - Post 16,Home to School - Contract
Cambridgeshire County Council,02-Nov-21,51301668510,"99,792.36",STAR CABS LTD,TRADE SUPPLIER,Home to School Transport - Special,Home to School Transport Special - Special School,Home to School - Contract
Cambridgeshire County Council,02-Nov-21,51301668509,"2,183.82",ST TRANSPORT SOLUTIONS LTD,TRADE SUPPLIER,Home to School Transport - Mainstream,Home to School Transport Mainstream - Primary,Home to School - Contract
Cambridgeshire County Council,02-Nov-21,51301668508,"26,152.44",ST TRANSPORT SOLUTIONS LTD,TRADE SUPPLIER,Home to School Transport - Special,Home to School Transport Special - Out of County,Home to School - Contract
Cambridgeshire County Council,02-Nov-21,51301668507,"3,451.62",ST TRANSPORT SOLUTIONS LTD,TRADE SUPPLIER,Home to School Transport - Mainstream,Home to School Transport Mainstream - Secondary,Home to School - Contract
Cambridgeshire County Council,02-Nov-21,51301668506,"3,024.00",ST TRANSPORT SOLUTIONS LTD,TRADE SUPPLIER,Home to School Transport - Special,Home to School Transport Special - Special School,Home to School - Contract
Cambridgeshire County Council,02-Nov-21,51301668505,"4,536.00",ST TRANSPORT SOLUTIONS LTD,TRADE SUPPLIER,Home to School Transport - Special,Home to School Transport Special - Primary,Home to School - Contract
Cambridgeshire County Council,02-Nov-21,51301668504,"3,250.80",Smart Cars UK,COMPANY,Home to School Transport - Special,Home to School Transport Special - Post 16,Home to School - Contract
Cambridgeshire County Council,02-Nov-21,51301668503,"3,021.48",Smart Cars UK,COMPANY,Home to School Transport - Special,Home to School Transport Special - Post 16,Home to School - Contract
Cambridgeshire County Council,02-Nov-21,51301668502,"3,777.48",Smart Cars UK,COMPANY,Home to School Transport - Special,Home to School Transport Special - Post 16,Home to School - Contract
Cambridgeshire County Council,02-Nov-21,51301668500,"2,736.00",Sam Private Hire,COMPANY,Home to School Transport - Special,Home to School Transport Special - Out of County,Home to School - Contract
Cambridgeshire County Council,02-Nov-21,51301668499,"1,561.80",PARKERS OF WISBECH LTD,TRADE SUPPLIER,Home to School Transport - Special,Home to School Transport Special - Out of County,Home to School - Contract
Cambridgeshire County Council,02-Nov-21,51301668498,844.20,PARKERS OF WISBECH LTD,TRADE SUPPLIER,Home to School Transport - Special,Home to School Transport Special - Post 16,Home to School - Contract
Cambridgeshire County Council,02-Nov-21,51301668497,"2,532.60",PARKERS OF WISBECH LTD,TRADE SUPPLIER,Home to School Transport - Special,Home to School Transport Special - Special School,Home to School - Contract
Cambridgeshire County Council,02-Nov-21,51301668496,"1,206.00",PANTHER TAXIS LTD,TRADE SUPPLIER,Home to School Transport - Mainstream,Home to School Transport - Post 16,Home to School - Contract
Cambridgeshire County Council,02-Nov-21,51301668495,"1,486.80",PANTHER TAXIS LTD,TRADE SUPPLIER,Home to School Transport - Special,Home to School Transport Special - Primary,Home to School - Contract
Cambridgeshire County Council,02-Nov-21,51301668494,"5,893.20",PANTHER TAXIS LTD,TRADE SUPPLIER,Home to School Transport - Special,Home to School Transport Special - Out of County,Home to School - Contract
Cambridgeshire County Council,02-Nov-21,51301668493,"3,592.54",PANTHER TAXIS LTD,TRADE SUPPLIER,Home to School Transport - Mainstream,Home to School Transport Mainstream - Secondary,Home to School - Contract
Cambridgeshire County Council,02-Nov-21,51301668492,"18,364.10",PANTHER TAXIS LTD,TRADE SUPPLIER,Home to School Transport - Special,Home to School Transport Special - Special School,Home to School - Contract
Cambridgeshire County Council,02-Nov-21,51301668491,"6,337.42",PANTHER TAXIS LTD,TRADE SUPPLIER,Home to School Transport - Special,Home to School Transport Special - Post 16,Home to School - Contract
Cambridgeshire County Council,02-Nov-21,51301668490,"5,707.92",PANTHER TAXIS LTD,TRADE SUPPLIER,Home to School Transport - Mainstream,Home to School Transport Mainstream - Primary,Home to School - Contract
Cambridgeshire County Council,02-Nov-21,51301668489,"12,723.26",PANTHER TAXIS LTD,TRADE SUPPLIER,Home to School Transport - Special,Home to School Transport Special - Secondary,Home to School - Contract
Cambridgeshire County Council,02-Nov-21,51301668488,630.00,MATT ROSSI T/A CAB SERVICES ST NEOTS LTD,TRADE SUPPLIER,Home to School Transport - Special,Home to School Transport Special - Out of County,Home to School - Contract
Cambridgeshire County Council,02-Nov-21,51301668487,"2,142.00",MATT ROSSI T/A CAB SERVICES ST NEOTS LTD,TRADE SUPPLIER,Home to School Transport - Special,Home to School Transport Special - Post 16,Home to School - Contract
Cambridgeshire County Council,02-Nov-21,51301668486,"2,352.00",MATT ROSSI T/A CAB SERVICES ST NEOTS LTD,TRADE SUPPLIER,Home to School Transport - Special,Home to School Transport Special - Special School,Home to School - Contract
Cambridgeshire County Council,02-Nov-21,51301668483,"2,234.40",KHOLYO CARS,TRADE SUPPLIER,Home to School Transport - Special,Home to School Transport Special - Special School,Home to School - Contract
Cambridgeshire County Council,02-Nov-21,51301668482,"2,553.60",GOLDSTAR CABS LTD,TRADE SUPPLIER,Home to School Transport - Mainstream,Home to School Transport Mainstream - Primary,Home to School - Contract
Cambridgeshire County Council,02-Nov-21,51301668481,"1,864.80",GOLDSTAR CABS LTD,TRADE SUPPLIER,Home to School Transport - Special,Home to School Transport Special - Post 16,Home to School - Contract
Cambridgeshire County Council,02-Nov-21,51301668480,"2,217.60",GOLDSTAR CABS LTD,TRADE SUPPLIER,Home to School Transport - Mainstream,Home to School Transport Mainstream - Primary,Home to School - Contract
Cambridgeshire County Council,02-Nov-21,51301668479,"2,964.00",GOLDSTAR CABS LTD,TRADE SUPPLIER,Home to School Transport - Mainstream,Home to School Transport Mainstream - Primary,Home to School - Contract
Cambridgeshire County Council,02-Nov-21,51301668478,"2,797.20",FENCABS LTD T/A FENCARS,TRADE SUPPLIER,Home to School Transport - Special,Home to School Transport Special - Secondary,Home to School - Contract
Cambridgeshire County Council,02-Nov-21,51301668477,"5,748.00",FENCABS LTD T/A FENCARS,TRADE SUPPLIER,Home to School Transport - Special,Home to School Transport Special - Post 16,Home to School - Contract
Cambridgeshire County Council,02-Nov-21,51301668476,"6,397.20",FENCABS LTD T/A FENCARS,TRADE SUPPLIER,Home to School Transport - Mainstream,Home to School Transport Mainstream - Primary,Home to School - Contract
Cambridgeshire County Council,02-Nov-21,51301668475,"8,140.80",FENCABS LTD T/A FENCARS,TRADE SUPPLIER,Home to School Transport - Mainstream,Home to School Transport Mainstream - Secondary,Home to School - Contract
Cambridgeshire County Council,02-Nov-21,51301668474,"23,061.60",FENCABS LTD T/A FENCARS,TRADE SUPPLIER,Home to School Transport - Special,Home to School Transport Special - Special School,Home to School - Contract
Cambridgeshire County Council,02-Nov-21,51301668473,"1,367.32",F & S TAXIS,TRADE SUPPLIER,Home to School Transport - Mainstream,Home to School Transport Mainstream - Secondary,Home to School - Contract
Cambridgeshire County Council,02-Nov-21,51301668472,"3,857.40",EXPRESS CARS,TRADE SUPPLIER,Home to School Transport - Special,Home to School Transport Special - Post 16,Home to School - Contract
Cambridgeshire County Council,02-Nov-21,51301668471,"3,024.00",DART TAXIS (MARCH),TRADE SUPPLIER,Home to School Transport - Special,Home to School Transport Special - Out of County,Home to School - Contract
Cambridgeshire County Council,02-Nov-21,51301668470,"2,306.40",DART TAXIS (MARCH),TRADE SUPPLIER,Home to School Transport - Mainstream,Home to School Transport Mainstream - Secondary,Home to School - Contract
Cambridgeshire County Council,02-Nov-21,51301668469,"3,420.00",DART TAXIS (MARCH),TRADE SUPPLIER,Home to School Transport - Special,Home to School Transport Special - Special School,Home to School - Contract
Cambridgeshire County Council,02-Nov-21,51301668468,"1,911.30",Central Taxis Peterborough,COMPANY,Home to School Transport - Special,Home to School Transport Special - Post 16,Home to School - Contract
Cambridgeshire County Council,02-Nov-21,51301668467,"1,482.60",ASH SCHOOL TRANSPORT,TRADE SUPPLIER,Home to School Transport - Special,Home to School Transport Special - Out of County,Home to School - Contract
Cambridgeshire County Council,02-Nov-21,51301668466,"3,288.60",A&B BETTA CARS LTD,TRADE SUPPLIER,Home to School Transport - Special,Home to School Transport Special - Special School,Home to School - Contract
Cambridgeshire County Council,02-Nov-21,51301668465,"1,184.40",4X LIMITED T/A STEVES TAXI & PRIVATE HIRE,TRADE SUPPLIER,Home to School Transport - Special,Home to School Transport Special - Primary,Home to School - Contract
Cambridgeshire County Council,02-Nov-21,51301668464,"4,627.80",4X LIMITED T/A STEVES TAXI & PRIVATE HIRE,TRADE SUPPLIER,Home to School Transport - Special,Home to School Transport Special - Out of County,Home to School - Contract
Cambridgeshire County Council,02-Nov-21,51301668462,"8,394.38",4X LIMITED T/A STEVES TAXI & PRIVATE HIRE,TRADE SUPPLIER,Home to School Transport - Special,Home to School Transport Special - Secondary,Home to School - Contract
Cambridgeshire County Council,02-Nov-21,51301668461,"11,265.60",4X LIMITED T/A STEVES TAXI & PRIVATE HIRE,TRADE SUPPLIER,Home to School Transport - Mainstream,Home to School Transport Mainstream - Primary,Home to School - Contract
Cambridgeshire County Council,02-Nov-21,51301668460,"37,928.40",4X LIMITED T/A STEVES TAXI & PRIVATE HIRE,TRADE SUPPLIER,Home to School Transport - Special,Home to School Transport Special - Special School,Home to School - Contract
Cambridgeshire County Council,02-Nov-21,51301668459,"10,931.62",4X LIMITED T/A STEVES TAXI & PRIVATE HIRE,TRADE SUPPLIER,Home to School Transport - Mainstream,Home to School Transport Mainstream - Secondary,Home to School - Contract
Cambridgeshire County Council,02-Nov-21,51301668458,715.20,GOLDSTAR CABS LTD,TRADE SUPPLIER,Home to School Transport - Special,Home to School Transport Special - Out of County,Home to School - Contract
Cambridgeshire County Council,02-Nov-21,51301668457,"1,215.00",GOLDSTAR CABS LTD,TRADE SUPPLIER,Home to School Transport - Mainstream,Home to School Transport Mainstream - Secondary,Home to School - Contract
Cambridgeshire County Council,02-Nov-21,51301668454,"3,024.00",ALZ TRAVEL LTD,TRADE SUPPLIER,Home to School Transport - Mainstream,Home to School Transport Mainstream - Primary,Home to School - Contract
Cambridgeshire County Council,02-Nov-21,51301668453,"5,358.00",ALZ TRAVEL LTD,TRADE SUPPLIER,Home to School Transport - Mainstream,Home to School Transport Mainstream - Secondary,Home to School - Contract
Cambridgeshire County Council,02-Nov-21,51301668452,"1,558.00",ALZ TRAVEL LTD,TRADE SUPPLIER,Home to School Transport - Mainstream,Home to School Transport - Post 16,Home to School - Contract
Cambridgeshire County Council,02-Nov-21,51301668451,"1,470.00",Street Cars (Cambs) LTD,COMPANY,Home to School Transport - Special,Home to School Transport Special - Special School,Home to School - Contract
Cambridgeshire County Council,02-Nov-21,51301668450,"2,656.00",Street Cars (Cambs) LTD,COMPANY,Home to School Transport - Special,Home to School Transport Special - Out of County,Home to School - Contract
Cambridgeshire County Council,02-Nov-21,51301668449,"6,400.00",SAFFORDS COACHES LIMITED,TRADE SUPPLIER,Home to School Transport - Mainstream,Home to School Transport Mainstream - Primary,Home to School - Contract
Cambridgeshire County Council,02-Nov-21,51301668448,"19,585.00",SAFFORDS COACHES LIMITED,TRADE SUPPLIER,Home to School Transport - Mainstream,Home to School Transport Mainstream - Secondary,Home to School - Contract
Cambridgeshire County Council,02-Nov-21,51301668447,"3,655.84",ROBINSON KIMBOLTON LIMITED,TRADE SUPPLIER,Home to School Transport - Mainstream,Home to School Transport Mainstream - Primary,Home to School - Contract
Cambridgeshire County Council,02-Nov-21,51301668446,"3,031.84",ROBINSON KIMBOLTON LIMITED,TRADE SUPPLIER,Home to School Transport - Mainstream,Home to School Transport Mainstream - Primary,Home to School - Contract
Cambridgeshire County Council,02-Nov-21,51301668445,"2,217.92",Platinum Tours LTD,COMPANY,Home to School Transport - Mainstream,Home to School Transport Mainstream - Primary,Home to School - Contract
Cambridgeshire County Council,02-Nov-21,51301668444,540.00,MURROW TAXIS,TRADE SUPPLIER,Home to School Transport - Mainstream,Home to School Transport Mainstream - Primary,Home to School - Contract
Cambridgeshire County Council,02-Nov-21,51301668442,"5,025.00",Landmark Coaches Ltd,COMPANY,Home to School Transport - Mainstream,Home to School Transport Mainstream - Secondary,Home to School - Contract
Cambridgeshire County Council,02-Nov-21,51301668441,"1,992.00",JB PRIVATE HIRE,TRADE SUPPLIER,Home to School Transport - Special,Home to School Transport Special - Special School,Home to School - Contract
Cambridgeshire County Council,02-Nov-21,51301668440,825.00,J R CARS (RODGER GOODSON),TRADE SUPPLIER,Home to School Transport - Mainstream,Home to School Transport Mainstream - Secondary,Home to School - Contract
Cambridgeshire County Council,02-Nov-21,51301668439,840.00,J R CARS (RODGER GOODSON),TRADE SUPPLIER,Home to School Transport - Special,Home to School Transport Special - Out of County,Home to School - Contract
Cambridgeshire County Council,02-Nov-21,51301668438,"1,520.00",J R CARS (RODGER GOODSON),TRADE SUPPLIER,Home to School Transport - Mainstream,Home to School Transport Mainstream - Secondary,Home to School - Contract
Cambridgeshire County Council,02-Nov-21,51301668437,750.00,J R CARS (RODGER GOODSON),TRADE SUPPLIER,Home to School Transport - Mainstream,Home to School Transport Mainstream - Primary,Home to School - Contract
Cambridgeshire County Council,02-Nov-21,51301668435,910.00,J R CARS (RODGER GOODSON),TRADE SUPPLIER,Home to School Transport - Special,Home to School Transport Special - Post 16,Home to School - Contract
Cambridgeshire County Council,02-Nov-21,51301668434,515.00,Hunts Taxis Ltd,COMPANY,Home to School Transport - Special,Home to School Transport Special - Special School,Home to School - Contract
Cambridgeshire County Council,02-Nov-21,51301668433,"2,064.00",Hunts Taxis Ltd,COMPANY,Home to School Transport - Special,Home to School Transport Special - Special School,Home to School - Contract
Cambridgeshire County Council,02-Nov-21,51301668432,"2,240.00",Hunts Taxis Ltd,COMPANY,Home to School Transport - Special,Home to School Transport Special - Special School,Home to School - Contract
Cambridgeshire County Council,02-Nov-21,51301668431,"1,341.00",Hunts Taxis Ltd,COMPANY,Home to School Transport - Special,Home to School Transport Special - Post 16,Home to School - Contract
Cambridgeshire County Council,02-Nov-21,51301668430,"1,611.00",Hunts Taxis Ltd,COMPANY,Home to School Transport - Special,Home to School Transport Special - Post 16,Home to School - Contract
Cambridgeshire County Council,02-Nov-21,51301668429,"1,428.00",Hunts Taxis Ltd,COMPANY,Home to School Transport - Special,Home to School Transport Special - Post 16,Home to School - Contract
Cambridgeshire County Council,02-Nov-21,51301668427,"1,440.00",Hunts Taxis Ltd,COMPANY,Home to School Transport - Special,Home to School Transport Special - Post 16,Home to School - Contract
Cambridgeshire County Council,02-Nov-21,51301668425,"2,672.04",Golden Eagle,COMPANY,Home to School Transport - Special,Home to School Transport Special - Special School,Home to School - Contract
Cambridgeshire County Council,02-Nov-21,51301668424,"1,100.00",CRAFTS HILL CARS,TRADE SUPPLIER,Home to School Transport - Special,Home to School Transport Special - Post 16,Home to School - Contract
Cambridgeshire County Council,02-Nov-21,51301668423,"2,100.00",COLLINS COACHES,TRADE SUPPLIER,Home to School Transport - Special,Home to School Transport Special - Out of County,Home to School - Contract
Cambridgeshire County Council,02-Nov-21,51301668422,"7,592.00",COLLINS COACHES,TRADE SUPPLIER,Home to School Transport - Mainstream,Home to School Transport Mainstream - Primary,Home to School - Contract
Cambridgeshire County Council,02-Nov-21,51301668421,"17,836.00",COLLINS COACHES,TRADE SUPPLIER,Home to School Transport - Mainstream,Home to School Transport Mainstream - Secondary,Home to School - Contract
Cambridgeshire County Council,02-Nov-21,51301668420,"2,145.00",C. L. TRAVEL LTD,TRADE SUPPLIER,Home to School Transport - Mainstream,Home to School Transport Mainstream - Secondary,Home to School - Contract
Cambridgeshire County Council,02-Nov-21,51301668419,"6,865.00",C. L. TRAVEL LTD,TRADE SUPPLIER,Home to School Transport - Mainstream,Home to School Transport Mainstream - Primary,Home to School - Contract
Cambridgeshire County Council,02-Nov-21,51301668418,"6,960.00",Buntings Travel,COMPANY,Home to School Transport - Mainstream,Home to School Transport Mainstream - Secondary,Home to School - Contract
Cambridgeshire County Council,02-Nov-21,51301668417,960.00,BEV'S TAXIS,TRADE SUPPLIER,Home to School Transport - Special,Home to School Transport Special - Out of County,Home to School - Contract
Cambridgeshire County Council,02-Nov-21,51301668416,952.00,BEV'S TAXIS,TRADE SUPPLIER,Home to School Transport - Special,Home to School Transport Special - Secondary,Home to School - Contract
Cambridgeshire County Council,02-Nov-21,51301668415,750.00,BEV'S TAXIS,TRADE SUPPLIER,Home to School Transport - Mainstream,Home to School Transport Mainstream - Primary,Home to School - Contract
Cambridgeshire County Council,02-Nov-21,51301668413,752.00,BEV'S TAXIS,TRADE SUPPLIER,Home to School Transport - Special,Home to School Transport Special - Post 16,Home to School - Contract
Cambridgeshire County Council,02-Nov-21,51301668412,594.00,BEV'S TAXIS,TRADE SUPPLIER,Home to School Transport - Special,Home to School Transport Special - Post 16,Home to School - Contract
Cambridgeshire County Council,02-Nov-21,51301668411,"1,515.00",BEV'S TAXIS,TRADE SUPPLIER,Home to School Transport - Special,Home to School Transport Special - Special School,Home to School - Contract
Cambridgeshire County Council,02-Nov-21,51301668409,"1,536.00",ABLE CARS,TRADE SUPPLIER,Home to School Transport - Special,Home to School Transport Special - Out of County,Home to School - Contract
Cambridgeshire County Council,02-Nov-21,51301668408,"1,264.00",24 SEVEN TAXIS,TRADE SUPPLIER,Home to School Transport - Special,Home to School Transport Special - Primary,Home to School - Contract
Cambridgeshire County Council,02-Nov-21,51301668407,"2,082.00",Street Cars (Cambs) LTD,COMPANY,Home to School Transport - Special,Home to School Transport Special - Special School,Home to School - Contract
Cambridgeshire County Council,02-Nov-21,51301668404,"3,318.00",Street Cars (Cambs) LTD,COMPANY,Home to School Transport - Special,Home to School Transport Special - Out of County,Home to School - Contract
Cambridgeshire County Council,02-Nov-21,51301668403,"13,354.94",STAR CABS LTD,TRADE SUPPLIER,Home to School Transport - Mainstream,Home to School Transport Mainstream - Primary,Home to School - Contract
Cambridgeshire County Council,02-Nov-21,51301668402,"22,029.55",STAR CABS LTD,TRADE SUPPLIER,Home to School Transport - Mainstream,Home to School Transport Mainstream - Secondary,Home to School - Contract
Cambridgeshire County Council,02-Nov-21,51301668401,"7,200.00",STAR CABS LTD,TRADE SUPPLIER,Home to School Transport - Special,Home to School Transport Special - Special School,Home to School - Contract
Cambridgeshire County Council,02-Nov-21,51301668400,720.00,Pymoor Taxi,COMPANY,Home to School Transport - Special,Home to School Transport Special - Special School,Home to School - Contract
Cambridgeshire County Council,02-Nov-21,51301668399,"2,088.00",PARKERS OF WISBECH LTD,TRADE SUPPLIER,Home to School Transport - Special,Home to School Transport Special - Secondary,Home to School - Contract
Cambridgeshire County Council,02-Nov-21,51301668398,"3,300.00",PARKERS OF WISBECH LTD,TRADE SUPPLIER,Home to School Transport - Mainstream,Home to School Transport Mainstream - Primary,Home to School - Contract
Cambridgeshire County Council,02-Nov-21,51301668397,"3,970.43",PARKERS OF WISBECH LTD,TRADE SUPPLIER,Home to School Transport - Mainstream,Home to School Transport Mainstream - Secondary,Home to School - Contract
Cambridgeshire County Council,02-Nov-21,51301668396,"2,131.50",PARKERS OF WISBECH LTD,TRADE SUPPLIER,Home to School Transport - Special,Home to School Transport Special - Post 16,Home to School - Contract
Cambridgeshire County Council,02-Nov-21,51301668395,"19,079.50",PARKERS OF WISBECH LTD,TRADE SUPPLIER,Home to School Transport - Special,Home to School Transport Special - Special School,Home to School - Contract
Cambridgeshire County Council,02-Nov-21,51301668394,"2,551.29",J & J TAXIS T/A LITTLEPORT TAXIS,TRADE SUPPLIER,Home to School Transport - Mainstream,Home to School Transport Mainstream - Primary,Home to School - Contract
Cambridgeshire County Council,02-Nov-21,51301668393,"5,719.00",E Shaw and son,COMPANY,Home to School Transport - Mainstream,Home to School Transport Mainstream - Secondary,Home to School - Contract
Cambridgeshire County Council,02-Nov-21,51301668392,"1,300.00",CAMCAB LTD,TRADE SUPPLIER,Home to School Transport - Special,Home to School Transport Special - Post 16,Home to School - Contract
Cambridgeshire County Council,02-Nov-21,51301668391,"9,160.80",C & G COACH SERVICES LTD,TRADE SUPPLIER,Home to School Transport - Mainstream,Home to School Transport Mainstream - Primary,Home to School - Contract
Cambridgeshire County Council,02-Nov-21,51301668390,"41,264.30",C & G COACH SERVICES LTD,TRADE SUPPLIER,Home to School Transport - Mainstream,Home to School Transport Mainstream - Secondary,Home to School - Contract
Cambridgeshire County Council,02-Nov-21,51301668389,"2,383.80",A & J COACHES,TRADE SUPPLIER,Home to School Transport - Special,Home to School Transport Special - Secondary,Home to School - Contract
Cambridgeshire County Council,02-Nov-21,51301668382,"1,127.98",Redacted Personal Data ,INDIVIDUAL,Home to School Transport - Special,Home to School Transport Special - Post 16,Home to School - Contract
Cambridgeshire County Council,02-Nov-21,51301668377,"2,405.23",Redacted Personal Data ,INDIVIDUAL,Home to School Transport - Special,Home to School Transport Special - Special School,Home to School - Contract
Cambridgeshire County Council,02-Nov-21,51301668375,587.27,Redacted Personal Data ,INDIVIDUAL,Home to School Transport - Special,Home to School Transport Special - Special School,Home to School - Contract
Cambridgeshire County Council,02-Nov-21,51301668365,580.32,Redacted Personal Data ,PARENT/GUARDIAN,Home to School Transport - Special,Home to School Transport Special - Special School,Home to School - Contract
Cambridgeshire County Council,02-Nov-21,51301668363,720.20,Redacted Personal Data ,PARENT/GUARDIAN,Home to School Transport - Special,Home to School Transport Special - Secondary,Home to School - Contract
Cambridgeshire County Council,02-Nov-21,51301668357,930.31,Redacted Personal Data ,PARENT/GUARDIAN,Home to School Transport - Special,Home to School Transport Special - Post 16,Home to School - Contract
Cambridgeshire County Council,02-Nov-21,51301668337,679.03,Redacted Personal Data ,INDIVIDUAL,Home to School Transport - Special,Home to School Transport Special - Special School,Home to School - Contract
Cambridgeshire County Council,02-Nov-21,51301668318,629.00,Redacted Personal Data ,INDIVIDUAL,Home to School Transport - Special,Home to School Transport Special - Post 16,Home to School - Contract
Cambridgeshire County Council,02-Nov-21,51301668317,507.68,Redacted Personal Data ,PARENT/GUARDIAN,Home to School Transport - Special,Home to School Transport Special - Special School,Home to School - Contract
Cambridgeshire County Council,02-Nov-21,51301668313,648.07,Redacted Personal Data ,PARENT/GUARDIAN,Home to School Transport - Special,Home to School Transport Special - Out of County,Home to School - Contract
Cambridgeshire County Council,02-Nov-21,51301668310,574.84,Redacted Personal Data ,INDIVIDUAL,Home to School Transport - Special,Home to School Transport Special - Special School,Home to School - Contract
Cambridgeshire County Council,02-Nov-21,51301668306,545.13,Redacted Personal Data ,INDIVIDUAL,Home to School Transport - Special,Home to School Transport Special - Special School,Home to School - Contract
Cambridgeshire County Council,02-Nov-21,51301668305,"1,623.63",Redacted Personal Data ,INDIVIDUAL,Home to School Transport - Special,Home to School Transport Special - Special School,Home to School - Contract
Cambridgeshire County Council,02-Nov-21,51301668303,621.82,Redacted Personal Data ,INDIVIDUAL,Home to School Transport - Mainstream,Home to School Transport Mainstream - Secondary,Home to School - Contract
Cambridgeshire County Council,02-Nov-21,51301668301,574.00,Redacted Personal Data ,PARENT/GUARDIAN,Home to School Transport - Special,Home to School Transport Special - Out of County,Home to School - Contract
Cambridgeshire County Council,02-Nov-21,51301668293,"1,243.64",Redacted Personal Data ,PARENT/GUARDIAN,Home to School Transport - Special,Home to School Transport Special - Special School,Home to School - Contract
Cambridgeshire County Council,02-Nov-21,51301668291,608.00,Redacted Personal Data ,PARENT/GUARDIAN,Home to School Transport - Special,Home to School Transport Special - Out of County,Home to School - Contract
Cambridgeshire County Council,02-Nov-21,51301668287,"2,069.98",Redacted Personal Data ,INDIVIDUAL,Home to School Transport - Special,Home to School Transport Special - Out of County,Home to School - Contract
Cambridgeshire County Council,02-Nov-21,51301668268,845.67,Redacted Personal Data ,INDIVIDUAL,Home to School Transport - Special,Home to School Transport Special - Out of County,Home to School - Contract
Cambridgeshire County Council,02-Nov-21,51301668267,519.96,Redacted Personal Data ,PARENT/GUARDIAN,Home to School Transport - Special,Home to School Transport Special - Out of County,Home to School - Contract
Cambridgeshire County Council,02-Nov-21,51301668263,735.13,Redacted Personal Data ,INDIVIDUAL,Home to School Transport - Special,Home to School Transport Special - Out of County,Home to School - Contract
Cambridgeshire County Council,02-Nov-21,51301668255,688.80,Redacted Personal Data ,PARENT/GUARDIAN,Home to School Transport - Special,Home to School Transport Special - Post 16,Home to School - Contract
Cambridgeshire County Council,02-Nov-21,51301668253,515.14,Redacted Personal Data ,INDIVIDUAL,Home to School Transport - Special,Home to School Transport Special - Post 16,Home to School - Contract
Cambridgeshire County Council,02-Nov-21,51301668249,818.04,Redacted Personal Data ,PARENT/GUARDIAN,Home to School Transport - Special,Home to School Transport Special - Special School,Home to School - Contract
Cambridgeshire County Council,02-Nov-21,51301668244,514.11,Redacted Personal Data ,PARENT/GUARDIAN,Home to School Transport - Special,Home to School Transport Special - Special School,Home to School - Contract
Cambridgeshire County Council,02-Nov-21,51301668243,935.66,Redacted Personal Data ,INDIVIDUAL,Home to School Transport - Special,Home to School Transport Special - Special School,Home to School - Contract
Cambridgeshire County Council,02-Nov-21,51301668231,"2,361.00",BUSY BEES DAY NURSERY AT HUNTINGDON,NURSERY,Early Years,SEND Specialist Services - SENIF,Care & Ed Partner Organisations
Cambridgeshire County Council,02-Nov-21,51301668228,525.00,Redacted Personal Data ,INDIVIDUAL,SIS Head of Service,SIS - Intervention,Professional Fees and Hired Services
Cambridgeshire County Council,02-Nov-21,51301668227,"2,115.00",Redacted Personal Data ,INDIVIDUAL,Children's Disability Direct Payments,CSC Direct Payments,Direct Payments
Cambridgeshire County Council,02-Nov-21,51301668226,850.00,Redacted Personal Data ,INDIVIDUAL,Home to School Transport - Mainstream,Home to School Transport Mainstream - Central Costs,Transport Contract Payments
Cambridgeshire County Council,02-Nov-21,51301668216,"3,927.00",THERA EAST ANGLIA,CARE ESTABLISHMENT,LD - East Locality - Cost of Care,LD - East Cambs - Care,Residential Care - Property Voids
Cambridgeshire County Council,02-Nov-21,51301668207,"3,927.00",THERA EAST ANGLIA,CARE ESTABLISHMENT,LD - East Locality - Cost of Care,LD - East Cambs - Care,Residential Care - Property Voids
Cambridgeshire County Council,02-Nov-21,51301668190,"1,000.00",OBLIQUE ARTS,TRADE SUPPLIER,Cultural Services,The Library Presents,Non Staff expenses
Cambridgeshire County Council,02-Nov-21,51301668189,"3,927.00",THERA EAST ANGLIA,CARE ESTABLISHMENT,LD - East Locality - Cost of Care,LD - East Cambs - Care,Residential Care - Property Voids
Cambridgeshire County Council,02-Nov-21,51301668186,"4,084.92",THERA EAST ANGLIA,CARE ESTABLISHMENT,LD - East Locality - Cost of Care,LD - East Cambs - Care,Residential Care - Property Voids
Cambridgeshire County Council,02-Nov-21,51301668184,"4,084.92",THERA EAST ANGLIA,CARE ESTABLISHMENT,LD - East Locality - Cost of Care,LD - East Cambs - Care,Residential Care - Property Voids
Cambridgeshire County Council,02-Nov-21,51301668183,"4,084.92",THERA EAST ANGLIA,CARE ESTABLISHMENT,LD - East Locality - Cost of Care,LD - East Cambs - Care,Residential Care - Property Voids
Cambridgeshire County Council,02-Nov-21,51301668182,"4,084.92",THERA EAST ANGLIA,CARE ESTABLISHMENT,LD - East Locality - Cost of Care,LD - East Cambs - Care,Residential Care - Property Voids
Cambridgeshire County Council,02-Nov-21,51301668179,"21,240.60",MOTT MACDONALD LTD,TRADE SUPPLIER,GCP - Cambridge South East (A1307),GCP - Cambridge South East (A1307),Construction - External Professional Fees
Cambridgeshire County Council,02-Nov-21,51301668178,"4,084.92",THERA EAST ANGLIA,CARE ESTABLISHMENT,LD - East Locality - Cost of Care,LD - East Cambs - Care,Residential Care - Property Voids
Cambridgeshire County Council,02-Nov-21,51301668176,"3,927.00",THERA EAST ANGLIA,CARE ESTABLISHMENT,LD - East Locality - Cost of Care,LD - East Cambs - Care,Residential Care - Property Voids
Cambridgeshire County Council,02-Nov-21,51301668175,"143,801.00",HEALTHWATCH CAMBRIDGESHIRE,CARE ESTABLISHMENT,Service Director,Healthwatch,Professional Fees and Hired Services
Cambridgeshire County Council,02-Nov-21,51301668153,"1,651.25",ANCHOR TRUST,CHARITY,OP - City & South Locality - Cost of Care,Older People - City & South - Care,Supported Living
Cambridgeshire County Council,02-Nov-21,51301667892,"17,035.92",Pathfinder Legal Services Limited,TRADE SUPPLIER,Early Years Specialist Support,Procurement - TA Other (Disabled/Tribunal/Special proj),Independent School Placements
Cambridgeshire County Council,02-Nov-21,51301667830,"1,560.00",A2B Euro Cars Ltd,COMPANY,Disability Clubs,CamPlay Holiday Clubs,Car mileage and allowances - other
Cambridgeshire County Council,02-Nov-21,51301662445,"-30,222.72",CCS MEDIA LIMITED,TRADE SUPPLIER,ICT Service,ICT Service Sales,Materials for resale
Cambridgeshire County Council,02-Nov-21,51301662418,"12,780.45",Vuzion UK Ltd,COMPANY,ICT Service,ICT Service Technical Support,Computer software - purchase
Cambridgeshire County Council,02-Nov-21,51301662280,"12,179.31",Pathfinder Legal Services Limited,TRADE SUPPLIER,Legal Proceedings,Legal Proceedings,External Legal Fees
Cambridgeshire County Council,02-Nov-21,51301661389,"7,847.00",Pathfinder Legal Services Limited,TRADE SUPPLIER,Legal Proceedings,Legal Proceedings,External Legal Fees
Cambridgeshire County Council,02-Nov-21,51301661257,"530,764.93",NOTTINGHAM REHAB SUPPLIES LTD,TRADE SUPPLIER,Integrated Community Equipment Service,ICES (Pool),Care & Ed Partner Organisations
Cambridgeshire County Council,02-Nov-21,51301660363,"20,101.00",ROMSEY MILL TRUST LTD,TRUST (OTHER),Early Help District Delivery - Head of Service South,Area Manager PPP East Cambs & Fenland,Professional Fees and Hired Services
Cambridgeshire County Council,02-Nov-21,51301660345,"11,280.00",HUNTINGDONSHIRE DISTRICT COUNCIL,OTHER PUBLIC BODIES,Corporate Offices,Pathfinder House,Service Charges
Cambridgeshire County Council,02-Nov-21,51301659090,576.00,Tuition EXTRA (Kent) LIMITED,EDUCATION,Out of School Tuition,Out of School Provision - Education and Settings,Independent School Placements
Cambridgeshire County Council,02-Nov-21,51301659078,576.00,Tuition EXTRA (Kent) LIMITED,EDUCATION,Out of School Tuition,Out of School Provision - Education and Settings,Independent School Placements
Cambridgeshire County Council,02-Nov-21,51301659048,"5,082.05",O'Shea International,COMPANY,Grafham Water,Grafham Water Centre,Educational equipment
Cambridgeshire County Council,02-Nov-21,51301658037,"-15,300.00",CHARTWELL HOUSE,CARE ESTABLISHMENT,SEN Placements,Placements - Education,Independent School Placements
Cambridgeshire County Council,02-Nov-21,51301657970,651.56,Anglia Translations Ltd,COMPANY,Travel Plan,Smart Journeys,Advertising / Publicity (non Recruitment)
Cambridgeshire County Council,02-Nov-21,51301657931,"12,000.00",YMCA Trinity Group,COMPANY,Opportunity Area,Opportunity Area,Professional Fees and Hired Services
Cambridgeshire County Council,02-Nov-21,51301657928,"9,000.00",YMCA Trinity Group,COMPANY,Opportunity Area,Opportunity Area,Professional Fees and Hired Services
Cambridgeshire County Council,02-Nov-21,51301657250,"16,271.08",BOUYGUES EES FM UK LTD,COMPANY,School Ground Source Heat Pump Projects,Comberton Village College GSHP,Construction - External Professional Fees
Cambridgeshire County Council,02-Nov-21,51301657175,"2,665.09",Low Carbon Contracts Company Ltd,COMPANY,County Farms,Solar PV,Electricity
Cambridgeshire County Council,02-Nov-21,51301656573,"23,106.52",BOUYGUES EES FM UK LTD,COMPANY,School Ground Source Heat Pump Projects,Comberton Village College GSHP,Environmental Works
Cambridgeshire County Council,02-Nov-21,51301656545,"89,850.40",CARING TOGETHER CHARITY,CARE ESTABLISHMENT,Adults Commissioning - short term prevention,OP Blocks and Grants,Supporting People
Cambridgeshire County Council,02-Nov-21,51301656324,"11,400.67",MOTT MACDONALD LTD,TRADE SUPPLIER,GCP - West of Cambridge Package,GCP - West of Cambridge Package,Construction - External Professional Fees
Cambridgeshire County Council,02-Nov-21,51301656130,"1,140.00",COUNTRY GROUNDS MAINTENANCE LTD,COMPANY,Buildings and Capital,Grounds Management Service - Client,Tree Maintenance
Cambridgeshire County Council,02-Nov-21,51301656061,910.57,J & G GROUNDWORKS & SURFACING,COMPANY,Highways - Rights of Way,Highways - Rights of Way,Highways - Bridges
Cambridgeshire County Council,02-Nov-21,51301656060,"20,790.00",SOFTCAT LTD,TRADE SUPPLIER,AD IT & Digital Services,Universal System Licensing & Maintenance,Computer software - annual licence agreement
Cambridgeshire County Council,02-Nov-21,51301655927,"28,224.46",NETWORK RAIL LTD,COMPANY,Highways Maintenance,Highways Maintenance - East Cambs,Drains
Cambridgeshire County Council,02-Nov-21,51301655903,"3,712.34",UNIVERSAL GARAGE CHASSIS T/A CHASSIS CAB LTD,TRADE SUPPLIER,Strengthening Communities Service,Community Vehicle,Vehicle Running Costs
Cambridgeshire County Council,02-Nov-21,51301655889,"9,600.00",FAITHFUL AND GOULD,TRADE SUPPLIER,Delivery Manager,Alconbury Civic Hub Solar Car Ports,Professional Fees and Hired Services
Cambridgeshire County Council,02-Nov-21,51301655888,882.65,VIX TECHNOLOGY UK LIMITED,COMPANY,Highways - RTPI,Highways - RTPI,Highways - Traffic Mgt Systems
Cambridgeshire County Council,02-Nov-21,51301655887,"2,277.89",VIX TECHNOLOGY UK LIMITED,COMPANY,Highways - RTPI,Highways - RTPI,Highways - Traffic Mgt Systems
Cambridgeshire County Council,02-Nov-21,51301655886,"13,164.16",VIX TECHNOLOGY UK LIMITED,COMPANY,Highways - RTPI,Highways - RTPI,Highways - Traffic Mgt Systems
Cambridgeshire County Council,02-Nov-21,51301655854,"1,140.00",S. P. LANDSCAPES & TREE CONTRACTORS  LTD,COMPANY,Park & Ride Parking,Guided Busway,Grounds Maintenance
Cambridgeshire County Council,02-Nov-21,51301654403,"2,185.96",BALFOUR BEATTY LIVING PLACES LIMITED,COMPANY,Street Lighting,Street Lighting PFI,Specialist Equipment For Service Delivery
Cambridgeshire County Council,02-Nov-21,51301654401,"1,698.62",BALFOUR BEATTY LIVING PLACES LIMITED,COMPANY,Street Lighting,Street Lighting PFI,Specialist Equipment For Service Delivery
Cambridgeshire County Council,02-Nov-21,51301654400,"2,544.38",BALFOUR BEATTY LIVING PLACES LIMITED,COMPANY,Street Lighting,Street Lighting PFI,Specialist Equipment For Service Delivery
Cambridgeshire County Council,02-Nov-21,51301654235,661.08,Pathfinder Legal Services Limited,TRADE SUPPLIER,Digital Systems,Business & Digital Systems,Computer hardware - purchase
Cambridgeshire County Council,02-Nov-21,51301653533,761.90,CCS MEDIA LIMITED,TRADE SUPPLIER,ICT Service,ICT Service Sales,Materials for resale
Cambridgeshire County Council,02-Nov-21,51301653384,834.55,BALFOUR BEATTY LIVING PLACES LIMITED,COMPANY,Street Lighting,Street Lighting PFI,Specialist Equipment For Service Delivery
Cambridgeshire County Council,02-Nov-21,51301653329,"2,899.44",CCS MEDIA LIMITED,TRADE SUPPLIER,ICT Service,ICT Service Sales,Materials for resale
Cambridgeshire County Council,02-Nov-21,51301653295,"6,480.00",CCS MEDIA LIMITED,TRADE SUPPLIER,ICT Service,ICT Service Sales,Materials for resale
Cambridgeshire County Council,02-Nov-21,51301653291,627.70,CCS MEDIA LIMITED,TRADE SUPPLIER,ICT Service,ICT Service Sales,Materials for resale
Cambridgeshire County Council,02-Nov-21,51301653253,"5,383.33",CHARTWELL HOUSE,CARE ESTABLISHMENT,SEN Placements,Placements - Education,Independent School Placements
Cambridgeshire County Council,02-Nov-21,51301652530,"1,962.32",BALFOUR BEATTY LIVING PLACES LIMITED,COMPANY,Street Lighting,Street Lighting PFI,Specialist Equipment For Service Delivery
Cambridgeshire County Council,02-Nov-21,51301652509,502.09,BALFOUR BEATTY LIVING PLACES LIMITED,COMPANY,Street Lighting,Street Lighting PFI,Specialist Equipment For Service Delivery
Cambridgeshire County Council,02-Nov-21,51301652503,534.94,BALFOUR BEATTY LIVING PLACES LIMITED,COMPANY,Street Lighting,Street Lighting PFI,Specialist Equipment For Service Delivery
Cambridgeshire County Council,02-Nov-21,51301631855,"1,008.00",MICK GEORGE LIMITED,COMPANY,Emergency Management,Emergency Management - COVID-19,Building Cleaning
Cambridgeshire County Council,02-Nov-21,51301625204,"3,625.92",WATERMAN ASPEN LTD,TRADE SUPPLIER,PD - General,Major Infrastructure Delivery,Agency Staff
Cambridgeshire County Council,02-Nov-21,51301618189,"3,625.92",WATERMAN ASPEN LTD,TRADE SUPPLIER,PD - General,Major Infrastructure Delivery,Agency Staff
Cambridgeshire County Council,02-Nov-21,51301613784,"3,625.92",WATERMAN ASPEN LTD,TRADE SUPPLIER,PD - General,Major Infrastructure Delivery,Agency Staff
Cambridgeshire County Council,02-Nov-21,51301610468,"3,625.92",WATERMAN ASPEN LTD,TRADE SUPPLIER,PD - General,Major Infrastructure Delivery,Agency Staff
Cambridgeshire County Council,03-Nov-21,51301668958,"1,126.37",C J MURFITT LTD,COMPANY,Spring Common Special School,Spring Common Special School,"New Construction, Conversion and Renovation"
Cambridgeshire County Council,03-Nov-21,51301668957,727.14,WISBECH COMMUNITY DEVELOPMENT TRUST (THE OASIS CENTRE),TRUST (OTHER),Corporate Offices,Oasis Centre,Service Charges
Cambridgeshire County Council,03-Nov-21,51301668951,"1,560.00",To The Moon and Back Foster Care Limited,CARE ESTABLISHMENT,LAC Placements,Placements - independent fostering,Agency Placements - In County
Cambridgeshire County Council,03-Nov-21,51301668950,"1,482.00",To The Moon and Back Foster Care Limited,CARE ESTABLISHMENT,LAC Placements,Placements - independent fostering,Agency Placements - In County
Cambridgeshire County Council,03-Nov-21,51301668930,"1,488.00",BIDWELLS LLP,TRADE SUPPLIER,Estates,Estates,Professional Fees and Hired Services
Cambridgeshire County Council,03-Nov-21,51301668909,702.00,NATIONAL TEACHING & ADVISORY SERVICE FOR LOOKED AFTER CHILDREN (NT & AS),OTHER PUBLIC BODIES,Schools Partnership Service,Virtual School LACPP Financing,Mandatory Student Awards
Cambridgeshire County Council,03-Nov-21,51301668908,858.00,NATIONAL TEACHING & ADVISORY SERVICE FOR LOOKED AFTER CHILDREN (NT & AS),OTHER PUBLIC BODIES,SEND Specialist Services - Head of Service,SEND Specialist Services - SEMH Support Programme,Professional Fees and Hired Services
Cambridgeshire County Council,03-Nov-21,51301668906,600.00,Quod Limited,COMPANY,Housing Schemes,Housing Schemes,Construction - External Professional Fees
Cambridgeshire County Council,03-Nov-21,51301668903,"6,283.20",Grove Social Care Ltd,CARE ESTABLISHMENT,LAC Placements,Placements - supported accommodation,Agency Placements - In County
Cambridgeshire County Council,03-Nov-21,51301668902,"4,905.60",Grove Social Care Ltd,CARE ESTABLISHMENT,LAC Placements,Placements - supported accommodation,Agency Placements - In County
Cambridgeshire County Council,03-Nov-21,51301668901,"2,469.60",Grove Social Care Ltd,CARE ESTABLISHMENT,LAC Placements,Placements - supported accommodation,Agency Placements - In County
Cambridgeshire County Council,03-Nov-21,51301668900,"4,905.60",Grove Social Care Ltd,CARE ESTABLISHMENT,LAC Placements,Placements - supported accommodation,Agency Placements - In County
Cambridgeshire County Council,03-Nov-21,51301668899,"2,469.60",Grove Social Care Ltd,CARE ESTABLISHMENT,LAC Placements,Placements - supported accommodation,Agency Placements - In County
Cambridgeshire County Council,03-Nov-21,51301668898,800.00,YMCA Wearside Ltd,CHARITY,LAC Placements,Placements - supported accommodation,Agency Placements - In County
Cambridgeshire County Council,03-Nov-21,51301668897,"17,670.00",MJ Children�s Services,CARE ESTABLISHMENT,LAC Placements,Placements - residential disability,Agency Placements - In County
Cambridgeshire County Council,03-Nov-21,51301668896,"24,932.86",Childhood First,CARE ESTABLISHMENT,LAC Placements,Placements - residential homes,Agency Placements - Out of  County
Cambridgeshire County Council,03-Nov-21,51301668895,"4,078.80",TRANSITION CARE PETERBOROUGH LTD,CARE ESTABLISHMENT,LAC Placements,Placements - supported accommodation,Agency Placements - In County
Cambridgeshire County Council,03-Nov-21,51301668894,570.00,TRANSITION CARE PETERBOROUGH LTD,CARE ESTABLISHMENT,LAC Placements,Placements - supported accommodation,Agency Placements - In County
Cambridgeshire County Council,03-Nov-21,51301668893,"3,454.29",To The Moon and Back Foster Care Limited,CARE ESTABLISHMENT,LAC Placements,Placements - independent fostering,Agency Placements - Out of  County
Cambridgeshire County Council,03-Nov-21,51301668890,"3,454.29",To The Moon and Back Foster Care Limited,CARE ESTABLISHMENT,LAC Placements,Placements - independent fostering,Agency Placements - Out of  County
Cambridgeshire County Council,03-Nov-21,51301668887,"3,454.29",To The Moon and Back Foster Care Limited,CARE ESTABLISHMENT,LAC Placements,Placements - independent fostering,Agency Placements - Out of  County
Cambridgeshire County Council,03-Nov-21,51301668885,"3,454.29",To The Moon and Back Foster Care Limited,CARE ESTABLISHMENT,LAC Placements,Placements - independent fostering,Agency Placements - In County
Cambridgeshire County Council,03-Nov-21,51301668882,"3,454.29",To The Moon and Back Foster Care Limited,CARE ESTABLISHMENT,LAC Placements,Placements - independent fostering,Agency Placements - In County
Cambridgeshire County Council,03-Nov-21,51301668880,"3,454.29",To The Moon and Back Foster Care Limited,CARE ESTABLISHMENT,LAC Placements,Placements - independent fostering,Agency Placements - In County
Cambridgeshire County Council,03-Nov-21,51301668878,"3,808.57",To The Moon and Back Foster Care Limited,CARE ESTABLISHMENT,LAC Placements,Placements - independent fostering,Agency Placements - Out of  County
Cambridgeshire County Council,03-Nov-21,51301668874,"14,307.00",Vcare24 Limited,CARE ESTABLISHMENT,LAC Placements,Placements - residential disability,Agency Placements - Out of  County
Cambridgeshire County Council,03-Nov-21,51301668873,"1,079.36",AXIOM CARE LTD,CARE ESTABLISHMENT,LAC Placements,Placements - 16+,Agency Placements - In County
Cambridgeshire County Council,03-Nov-21,51301668872,"16,137.63",PRIORY GROUP (MARCH HOUSE),CARE ESTABLISHMENT,LAC Placements,Placements - residential homes,Agency Placements - Out of  County
Cambridgeshire County Council,03-Nov-21,51301668871,"19,053.75",Cascade (Banks House) Ltd,CARE ESTABLISHMENT,LAC Placements,Placements - residential disability,Agency Placements - In County
Cambridgeshire County Council,03-Nov-21,51301668870,"14,245.56",Cascade (Banks House) Ltd,CARE ESTABLISHMENT,LAC Placements,Placements - residential disability,Agency Placements - In County
Cambridgeshire County Council,03-Nov-21,51301668869,"3,520.71",LITTLE ACORNS FOSTERING LTD,CARE ESTABLISHMENT,LAC Placements,Placements - independent fostering,Agency Placements - Out of  County
Cambridgeshire County Council,03-Nov-21,51301668866,"3,941.43",LITTLE ACORNS FOSTERING LTD,CARE ESTABLISHMENT,LAC Placements,Placements - independent fostering,Agency Placements - Out of  County
Cambridgeshire County Council,03-Nov-21,51301668863,"3,520.71",LITTLE ACORNS FOSTERING LTD,CARE ESTABLISHMENT,LAC Placements,Placements - independent fostering,Agency Placements - Out of  County
Cambridgeshire County Council,03-Nov-21,51301668860,"3,520.71",LITTLE ACORNS FOSTERING LTD,CARE ESTABLISHMENT,LAC Placements,Placements - independent fostering,Agency Placements - Out of  County
Cambridgeshire County Council,03-Nov-21,51301668857,"3,795.29",LITTLE ACORNS FOSTERING LTD,CARE ESTABLISHMENT,LAC Placements,Placements - independent fostering,Agency Placements - In County
Cambridgeshire County Council,03-Nov-21,51301668855,"3,795.29",LITTLE ACORNS FOSTERING LTD,CARE ESTABLISHMENT,LAC Placements,Placements - independent fostering,Agency Placements - Out of  County
Cambridgeshire County Council,03-Nov-21,51301668852,"3,795.29",LITTLE ACORNS FOSTERING LTD,CARE ESTABLISHMENT,LAC Placements,Placements - independent fostering,Agency Placements - Out of  County
Cambridgeshire County Council,03-Nov-21,51301668849,"3,795.29",LITTLE ACORNS FOSTERING LTD,CARE ESTABLISHMENT,LAC Placements,Placements - independent fostering,Agency Placements - Out of  County
Cambridgeshire County Council,03-Nov-21,51301668846,"3,520.71",LITTLE ACORNS FOSTERING LTD,CARE ESTABLISHMENT,LAC Placements,Placements - independent fostering,Agency Placements - Out of  County
Cambridgeshire County Council,03-Nov-21,51301668844,"3,596.00",NEXUS FOSTERING LTD,CARE ESTABLISHMENT,LAC Placements,Placements - independent fostering,Agency Placements - In County
Cambridgeshire County Council,03-Nov-21,51301668843,"3,596.00",NEXUS FOSTERING LTD,CARE ESTABLISHMENT,LAC Placements,Placements - independent fostering,Agency Placements - Out of  County
Cambridgeshire County Council,03-Nov-21,51301668842,"3,131.00",NEXUS FOSTERING LTD,CARE ESTABLISHMENT,LAC Placements,Placements - independent fostering,Agency Placements - Out of  County
Cambridgeshire County Council,03-Nov-21,51301668840,"3,596.00",NEXUS FOSTERING LTD,CARE ESTABLISHMENT,LAC Placements,Placements - independent fostering,Agency Placements - In County
Cambridgeshire County Council,03-Nov-21,51301668839,"3,131.00",NEXUS FOSTERING LTD,CARE ESTABLISHMENT,LAC Placements,Placements - independent fostering,Agency Placements - In County
Cambridgeshire County Council,03-Nov-21,51301668837,"6,479.00",NEXUS FOSTERING LTD,CARE ESTABLISHMENT,LAC Placements,Placements - independent fostering,Agency Placements - Out of  County
Cambridgeshire County Council,03-Nov-21,51301668834,"3,324.75",REGIONAL FOSTER PLACEMENTS,CARE ESTABLISHMENT,LAC Placements,Placements - independent fostering,Agency Placements - Out of  County
Cambridgeshire County Council,03-Nov-21,51301668831,"3,324.75",REGIONAL FOSTER PLACEMENTS,CARE ESTABLISHMENT,LAC Placements,Placements - independent fostering,Agency Placements - Out of  County
Cambridgeshire County Council,03-Nov-21,51301668829,"3,520.71",REGIONAL FOSTER PLACEMENTS,CARE ESTABLISHMENT,LAC Placements,Placements - independent fostering,Agency Placements - Out of  County
Cambridgeshire County Council,03-Nov-21,51301668826,"3,321.43",Regional Fostering Services Ltd,CARE ESTABLISHMENT,LAC Placements,Placements - independent fostering,Agency Placements - Out of  County
Cambridgeshire County Council,03-Nov-21,51301668825,"3,985.71",Regional Fostering Services Ltd,CARE ESTABLISHMENT,LAC Placements,Placements - independent fostering,Agency Placements - Out of  County
Cambridgeshire County Council,03-Nov-21,51301668824,"3,742.14",Regional Fostering Services Ltd,CARE ESTABLISHMENT,LAC Placements,Placements - independent fostering,Agency Placements - Out of  County
Cambridgeshire County Council,03-Nov-21,51301668823,"3,742.14",Regional Fostering Services Ltd,CARE ESTABLISHMENT,LAC Placements,Placements - independent fostering,Agency Placements - Out of  County
Cambridgeshire County Council,03-Nov-21,51301668820,"5,292.14",Regional Fostering Services Ltd,CARE ESTABLISHMENT,LAC Placements,Placements - independent fostering,Agency Placements - Out of  County
Cambridgeshire County Council,03-Nov-21,51301668819,"3,321.43",Regional Fostering Services Ltd,CARE ESTABLISHMENT,LAC Placements,Placements - independent fostering,Agency Placements - Out of  County
Cambridgeshire County Council,03-Nov-21,51301668818,"3,985.71",Regional Fostering Services Ltd,CARE ESTABLISHMENT,LAC Placements,Placements - independent fostering,Agency Placements - Out of  County
Cambridgeshire County Council,03-Nov-21,51301668817,"20,592.86",Total Care Matters Ltd,CARE ESTABLISHMENT,LAC Placements,Placements - residential homes,Agency Placements - Out of  County
Cambridgeshire County Council,03-Nov-21,51301668815,"16,137.63",PRIORY GROUP (MARCH HOUSE),CARE ESTABLISHMENT,LAC Placements,Placements - residential homes,Agency Placements - Out of  County
Cambridgeshire County Council,03-Nov-21,51301668814,"5,646.43",Pilgrims Corner Fostering Ltd,CARE ESTABLISHMENT,LAC Placements,Placements - independent fostering,Agency Placements - Out of  County
Cambridgeshire County Council,03-Nov-21,51301668812,"14,171.43",Florinee Homes Ltd,CARE ESTABLISHMENT,LAC Placements,Placements - residential homes,Agency Placements - In County
Cambridgeshire County Council,03-Nov-21,51301668810,"4,980.38",ARC HD SERVICES LTD,CARE ESTABLISHMENT,LAC Placements,Placements - residential disability,Agency Placements - Out of  County
Cambridgeshire County Council,03-Nov-21,51301668809,"3,410.00",FosteringUK Ltd,CARE ESTABLISHMENT,LAC Placements,Placements - independent fostering,Agency Placements - Out of  County
Cambridgeshire County Council,03-Nov-21,51301668807,"3,454.29",FosteringUK Ltd,CARE ESTABLISHMENT,LAC Placements,Placements - independent fostering,Agency Placements - Out of  County
Cambridgeshire County Council,03-Nov-21,51301668805,"4,406.43",MOSAIC FOSTER CARE LTD,CARE ESTABLISHMENT,LAC Placements,Placements - independent fostering,Agency Placements - Out of  County
Cambridgeshire County Council,03-Nov-21,51301668803,"6,642.86",CALDECOTT FOSTERING LTD,CARE ESTABLISHMENT,LAC Placements,Placements - independent fostering,Agency Placements - Out of  County
Cambridgeshire County Council,03-Nov-21,51301668802,"6,642.99",CALDECOTT FOSTERING LTD,CARE ESTABLISHMENT,LAC Placements,Placements - independent fostering,Agency Placements - Out of  County
Cambridgeshire County Council,03-Nov-21,51301668801,"5,092.99",FosteringUK Ltd,CARE ESTABLISHMENT,LAC Placements,Placements - independent fostering,Agency Placements - In County
Cambridgeshire County Council,03-Nov-21,51301668798,"4,165.00",Cambridgeshire and Peterborough Combined Authority,OTHER PUBLIC BODIES,Concessionary Fares,Concessionary Fares,Season Tickets and Passes
Cambridgeshire County Council,03-Nov-21,51301668797,"1,200.00",BIDWELLS LLP,TRADE SUPPLIER,GCP - Cambridge South East (A1307),GCP - Cambridge South East (A1307),Construction - External Professional Fees
Cambridgeshire County Council,03-Nov-21,51301668792,560.00,360 Freedom Limited,COMPANY,Connecting Cambridgeshire,CC Digital Technology Grants,Grants
Cambridgeshire County Council,03-Nov-21,51301668791,"2,000.00",DWF Law LLP Client Account,COMPANY,Insurance Fund,Liability,Insurance Claims Paid
Cambridgeshire County Council,03-Nov-21,51301668781,630.00,MIDFIELD LODGE CARE CENTRE,CARE ESTABLISHMENT,OP - City & South Locality - Cost of Care,Older People - City & South - Care,Nursing Care
Cambridgeshire County Council,03-Nov-21,51301668781,630.00,MIDFIELD LODGE CARE CENTRE,CARE ESTABLISHMENT,OP - City & South Locality - Cost of Care,Older People - City & South - Care,Nursing Care
Cambridgeshire County Council,03-Nov-21,51301668781,672.00,MIDFIELD LODGE CARE CENTRE,CARE ESTABLISHMENT,OP - City & South Locality - Cost of Care,Older People - City & South - Care,Nursing Care
Cambridgeshire County Council,03-Nov-21,51301668781,672.00,MIDFIELD LODGE CARE CENTRE,CARE ESTABLISHMENT,OP - City & South Locality - Cost of Care,Older People - City & South - Care,Nursing Care
Cambridgeshire County Council,03-Nov-21,51301668781,700.00,MIDFIELD LODGE CARE CENTRE,CARE ESTABLISHMENT,OP - City & South Locality - Cost of Care,Older People - City & South - Care,Nursing Care
Cambridgeshire County Council,03-Nov-21,51301668781,914.29,MIDFIELD LODGE CARE CENTRE,CARE ESTABLISHMENT,OP - City & South Locality - Cost of Care,Older People - City & South - Care,Nursing Care
Cambridgeshire County Council,03-Nov-21,51301668781,"2,960.00",MIDFIELD LODGE CARE CENTRE,CARE ESTABLISHMENT,OP - City & South Locality - Cost of Care,Older People - City & South - Care,Nursing Care
Cambridgeshire County Council,03-Nov-21,51301668781,"2,960.00",MIDFIELD LODGE CARE CENTRE,CARE ESTABLISHMENT,OP - City & South Locality - Cost of Care,Older People - City & South - Care,Nursing Care
Cambridgeshire County Council,03-Nov-21,51301668781,"4,900.00",MIDFIELD LODGE CARE CENTRE,CARE ESTABLISHMENT,OP - City & South Locality - Cost of Care,Older People - City & South - Care,Nursing Care
Cambridgeshire County Council,03-Nov-21,51301668781,"4,900.00",MIDFIELD LODGE CARE CENTRE,CARE ESTABLISHMENT,OP - City & South Locality - Cost of Care,Older People - City & South - Care,Nursing Care
Cambridgeshire County Council,03-Nov-21,51301668781,"6,400.00",MIDFIELD LODGE CARE CENTRE,CARE ESTABLISHMENT,OP - City & South Locality - Cost of Care,Older People - City & South - Care,Nursing Care
Cambridgeshire County Council,03-Nov-21,51301668781,"6,400.00",MIDFIELD LODGE CARE CENTRE,CARE ESTABLISHMENT,OP - City & South Locality - Cost of Care,Older People - City & South - Care,Nursing Care
Cambridgeshire County Council,03-Nov-21,51301668775,"2,238.00",ST CLEMENT'S HIGH SCHOOL,EDUCATION,Recoupment,Procurement - Out-County Mainstream,Independent School Placements
Cambridgeshire County Council,03-Nov-21,51301668769,"2,998.80",TRANSITION CARE PETERBOROUGH LTD,CARE ESTABLISHMENT,LAC Placements,Placements - supported accommodation,Agency Placements - In County
Cambridgeshire County Council,03-Nov-21,51301668768,"8,163.20",BROWNE JACOBSON LLP,TRADE SUPPLIER,Insurance Fund,Liability,Insurance Claims Paid
Cambridgeshire County Council,03-Nov-21,51301668759,"5,619.60",PARSON DROVE PRE SCHOOL,NURSERY,SEND High Needs Top Up,SEND Specialist Services-High needs top-up-Early Years,Independent School Placements
Cambridgeshire County Council,03-Nov-21,51301668748,680.00,Redacted Personal Data ,INDIVIDUAL,South Care Leaving,South Care Leaving,Leaving Care Grants
Cambridgeshire County Council,03-Nov-21,51301668747,650.00,Redacted Personal Data ,INDIVIDUAL,South Care Leaving,South Care Leaving,Leaving Care Grants
Cambridgeshire County Council,03-Nov-21,51301668738,"1,125.00",Redacted Personal Data ,INDIVIDUAL,SEND High Needs Top Up,"SEND Specialist Services,High Needs Top Up,Other institutions",Independent School Placements
Cambridgeshire County Council,03-Nov-21,51301668734,"1,140.00",Sensory Childcare,CARE ESTABLISHMENT,Children's Disability Direct Payments,CSC Direct Payments,Direct Payments
Cambridgeshire County Council,03-Nov-21,51301668733,802.25,Redacted Personal Data ,INDIVIDUAL,Children's Disability Direct Payments,CSC Direct Payments,Direct Payments
Cambridgeshire County Council,03-Nov-21,51301668711,521.00,Redacted Personal Data ,INDIVIDUAL,Children's Disability Direct Payments,CSC Direct Payments,Direct Payments
Cambridgeshire County Council,03-Nov-21,51301668709,"10,000.00",Bottleproof Cocktails,COMPANY,Connecting Cambridgeshire,CC Digital Technology Grants,Grants
Cambridgeshire County Council,03-Nov-21,51301661802,"-4,900.00",MIDFIELD LODGE CARE CENTRE,CARE ESTABLISHMENT,OP - City & South Locality - Cost of Care,Older People - City & South - Care,Nursing Care
Cambridgeshire County Council,03-Nov-21,51301661802,"-4,900.00",MIDFIELD LODGE CARE CENTRE,CARE ESTABLISHMENT,OP - City & South Locality - Cost of Care,Older People - City & South - Care,Nursing Care
Cambridgeshire County Council,03-Nov-21,51301661802,"-4,900.00",MIDFIELD LODGE CARE CENTRE,CARE ESTABLISHMENT,OP - City & South Locality - Cost of Care,Older People - City & South - Care,Nursing Care
Cambridgeshire County Council,03-Nov-21,51301661802,"-4,900.00",MIDFIELD LODGE CARE CENTRE,CARE ESTABLISHMENT,OP - City & South Locality - Cost of Care,Older People - City & South - Care,Nursing Care
Cambridgeshire County Council,03-Nov-21,51301661802,"-2,960.00",MIDFIELD LODGE CARE CENTRE,CARE ESTABLISHMENT,OP - City & South Locality - Cost of Care,Older People - City & South - Care,Nursing Care
Cambridgeshire County Council,03-Nov-21,51301661802,"-2,960.00",MIDFIELD LODGE CARE CENTRE,CARE ESTABLISHMENT,OP - City & South Locality - Cost of Care,Older People - City & South - Care,Nursing Care
Cambridgeshire County Council,03-Nov-21,51301661802,"-2,960.00",MIDFIELD LODGE CARE CENTRE,CARE ESTABLISHMENT,OP - City & South Locality - Cost of Care,Older People - City & South - Care,Nursing Care
Cambridgeshire County Council,03-Nov-21,51301661802,"-2,960.00",MIDFIELD LODGE CARE CENTRE,CARE ESTABLISHMENT,OP - City & South Locality - Cost of Care,Older People - City & South - Care,Nursing Care
Cambridgeshire County Council,03-Nov-21,51301661802,"-2,960.00",MIDFIELD LODGE CARE CENTRE,CARE ESTABLISHMENT,OP - City & South Locality - Cost of Care,Older People - City & South - Care,Nursing Care
Cambridgeshire County Council,03-Nov-21,51301661802,"-2,960.00",MIDFIELD LODGE CARE CENTRE,CARE ESTABLISHMENT,OP - City & South Locality - Cost of Care,Older People - City & South - Care,Nursing Care
Cambridgeshire County Council,03-Nov-21,51301661802,"-2,960.00",MIDFIELD LODGE CARE CENTRE,CARE ESTABLISHMENT,OP - City & South Locality - Cost of Care,Older People - City & South - Care,Nursing Care
Cambridgeshire County Council,03-Nov-21,51301661802,-750.40,MIDFIELD LODGE CARE CENTRE,CARE ESTABLISHMENT,OP - City & South Locality - Cost of Care,Older People - City & South - Care,Nursing Care
Cambridgeshire County Council,03-Nov-21,51301661802,-750.40,MIDFIELD LODGE CARE CENTRE,CARE ESTABLISHMENT,OP - City & South Locality - Cost of Care,Older People - City & South - Care,Nursing Care
Cambridgeshire County Council,03-Nov-21,51301661802,-750.40,MIDFIELD LODGE CARE CENTRE,CARE ESTABLISHMENT,OP - City & South Locality - Cost of Care,Older People - City & South - Care,Nursing Care
Cambridgeshire County Council,03-Nov-21,51301661802,-750.40,MIDFIELD LODGE CARE CENTRE,CARE ESTABLISHMENT,OP - City & South Locality - Cost of Care,Older People - City & South - Care,Nursing Care
Cambridgeshire County Council,03-Nov-21,51301661802,-750.40,MIDFIELD LODGE CARE CENTRE,CARE ESTABLISHMENT,OP - City & South Locality - Cost of Care,Older People - City & South - Care,Nursing Care
Cambridgeshire County Council,03-Nov-21,51301661802,-750.40,MIDFIELD LODGE CARE CENTRE,CARE ESTABLISHMENT,OP - City & South Locality - Cost of Care,Older People - City & South - Care,Nursing Care
Cambridgeshire County Council,03-Nov-21,51301661802,-750.40,MIDFIELD LODGE CARE CENTRE,CARE ESTABLISHMENT,OP - City & South Locality - Cost of Care,Older People - City & South - Care,Nursing Care
Cambridgeshire County Council,03-Nov-21,51301661802,-750.40,MIDFIELD LODGE CARE CENTRE,CARE ESTABLISHMENT,OP - City & South Locality - Cost of Care,Older People - City & South - Care,Nursing Care
Cambridgeshire County Council,03-Nov-21,51301661802,-750.40,MIDFIELD LODGE CARE CENTRE,CARE ESTABLISHMENT,OP - City & South Locality - Cost of Care,Older People - City & South - Care,Nursing Care
Cambridgeshire County Council,03-Nov-21,51301661802,-750.40,MIDFIELD LODGE CARE CENTRE,CARE ESTABLISHMENT,OP - City & South Locality - Cost of Care,Older People - City & South - Care,Nursing Care
Cambridgeshire County Council,03-Nov-21,51301661802,-750.40,MIDFIELD LODGE CARE CENTRE,CARE ESTABLISHMENT,OP - City & South Locality - Cost of Care,Older People - City & South - Care,Nursing Care
Cambridgeshire County Council,03-Nov-21,51301661802,-643.20,MIDFIELD LODGE CARE CENTRE,CARE ESTABLISHMENT,OP - City & South Locality - Cost of Care,Older People - City & South - Care,Nursing Care
Cambridgeshire County Council,03-Nov-21,51301661802,576.00,MIDFIELD LODGE CARE CENTRE,CARE ESTABLISHMENT,OP - City & South Locality - Cost of Care,Older People - City & South - Care,Nursing Care
Cambridgeshire County Council,03-Nov-21,51301661802,630.00,MIDFIELD LODGE CARE CENTRE,CARE ESTABLISHMENT,OP - City & South Locality - Cost of Care,Older People - City & South - Care,Nursing Care
Cambridgeshire County Council,03-Nov-21,51301661802,630.00,MIDFIELD LODGE CARE CENTRE,CARE ESTABLISHMENT,OP - City & South Locality - Cost of Care,Older People - City & South - Care,Nursing Care
Cambridgeshire County Council,03-Nov-21,51301661802,630.00,MIDFIELD LODGE CARE CENTRE,CARE ESTABLISHMENT,OP - City & South Locality - Cost of Care,Older People - City & South - Care,Nursing Care
Cambridgeshire County Council,03-Nov-21,51301661802,630.00,MIDFIELD LODGE CARE CENTRE,CARE ESTABLISHMENT,OP - City & South Locality - Cost of Care,Older People - City & South - Care,Nursing Care
Cambridgeshire County Council,03-Nov-21,51301661802,672.00,MIDFIELD LODGE CARE CENTRE,CARE ESTABLISHMENT,OP - City & South Locality - Cost of Care,Older People - City & South - Care,Nursing Care
Cambridgeshire County Council,03-Nov-21,51301661802,672.00,MIDFIELD LODGE CARE CENTRE,CARE ESTABLISHMENT,OP - City & South Locality - Cost of Care,Older People - City & South - Care,Nursing Care
Cambridgeshire County Council,03-Nov-21,51301661802,672.00,MIDFIELD LODGE CARE CENTRE,CARE ESTABLISHMENT,OP - City & South Locality - Cost of Care,Older People - City & South - Care,Nursing Care
Cambridgeshire County Council,03-Nov-21,51301661802,672.00,MIDFIELD LODGE CARE CENTRE,CARE ESTABLISHMENT,OP - City & South Locality - Cost of Care,Older People - City & South - Care,Nursing Care
Cambridgeshire County Council,03-Nov-21,51301661802,672.00,MIDFIELD LODGE CARE CENTRE,CARE ESTABLISHMENT,OP - City & South Locality - Cost of Care,Older People - City & South - Care,Nursing Care
Cambridgeshire County Council,03-Nov-21,51301661802,672.00,MIDFIELD LODGE CARE CENTRE,CARE ESTABLISHMENT,OP - City & South Locality - Cost of Care,Older People - City & South - Care,Nursing Care
Cambridgeshire County Council,03-Nov-21,51301661802,672.00,MIDFIELD LODGE CARE CENTRE,CARE ESTABLISHMENT,OP - City & South Locality - Cost of Care,Older People - City & South - Care,Nursing Care
Cambridgeshire County Council,03-Nov-21,51301661802,672.00,MIDFIELD LODGE CARE CENTRE,CARE ESTABLISHMENT,OP - City & South Locality - Cost of Care,Older People - City & South - Care,Nursing Care
Cambridgeshire County Council,03-Nov-21,51301661802,672.00,MIDFIELD LODGE CARE CENTRE,CARE ESTABLISHMENT,OP - City & South Locality - Cost of Care,Older People - City & South - Care,Nursing Care
Cambridgeshire County Council,03-Nov-21,51301661802,672.00,MIDFIELD LODGE CARE CENTRE,CARE ESTABLISHMENT,OP - City & South Locality - Cost of Care,Older People - City & South - Care,Nursing Care
Cambridgeshire County Council,03-Nov-21,51301661802,672.00,MIDFIELD LODGE CARE CENTRE,CARE ESTABLISHMENT,OP - City & South Locality - Cost of Care,Older People - City & South - Care,Nursing Care
Cambridgeshire County Council,03-Nov-21,51301661802,700.00,MIDFIELD LODGE CARE CENTRE,CARE ESTABLISHMENT,OP - City & South Locality - Cost of Care,Older People - City & South - Care,Nursing Care
Cambridgeshire County Council,03-Nov-21,51301661802,"1,902.86",MIDFIELD LODGE CARE CENTRE,CARE ESTABLISHMENT,OP - City & South Locality - Cost of Care,Older People - City & South - Care,Nursing Care
Cambridgeshire County Council,03-Nov-21,51301661802,"2,220.00",MIDFIELD LODGE CARE CENTRE,CARE ESTABLISHMENT,OP - City & South Locality - Cost of Care,Older People - City & South - Care,Nursing Care
Cambridgeshire County Council,03-Nov-21,51301661802,"2,220.00",MIDFIELD LODGE CARE CENTRE,CARE ESTABLISHMENT,OP - City & South Locality - Cost of Care,Older People - City & South - Care,Nursing Care
Cambridgeshire County Council,03-Nov-21,51301661802,"2,220.00",MIDFIELD LODGE CARE CENTRE,CARE ESTABLISHMENT,OP - City & South Locality - Cost of Care,Older People - City & South - Care,Nursing Care
Cambridgeshire County Council,03-Nov-21,51301661802,"2,220.00",MIDFIELD LODGE CARE CENTRE,CARE ESTABLISHMENT,OP - City & South Locality - Cost of Care,Older People - City & South - Care,Nursing Care
Cambridgeshire County Council,03-Nov-21,51301661802,"2,220.00",MIDFIELD LODGE CARE CENTRE,CARE ESTABLISHMENT,OP - City & South Locality - Cost of Care,Older People - City & South - Care,Nursing Care
Cambridgeshire County Council,03-Nov-21,51301661802,"2,220.00",MIDFIELD LODGE CARE CENTRE,CARE ESTABLISHMENT,OP - City & South Locality - Cost of Care,Older People - City & South - Care,Nursing Care
Cambridgeshire County Council,03-Nov-21,51301661802,"2,960.00",MIDFIELD LODGE CARE CENTRE,CARE ESTABLISHMENT,OP - City & South Locality - Cost of Care,Older People - City & South - Care,Nursing Care
Cambridgeshire County Council,03-Nov-21,51301661802,"2,960.00",MIDFIELD LODGE CARE CENTRE,CARE ESTABLISHMENT,OP - City & South Locality - Cost of Care,Older People - City & South - Care,Nursing Care
Cambridgeshire County Council,03-Nov-21,51301661802,"2,960.00",MIDFIELD LODGE CARE CENTRE,CARE ESTABLISHMENT,OP - City & South Locality - Cost of Care,Older People - City & South - Care,Nursing Care
Cambridgeshire County Council,03-Nov-21,51301661802,"2,960.00",MIDFIELD LODGE CARE CENTRE,CARE ESTABLISHMENT,OP - City & South Locality - Cost of Care,Older People - City & South - Care,Nursing Care
Cambridgeshire County Council,03-Nov-21,51301661802,"3,600.00",MIDFIELD LODGE CARE CENTRE,CARE ESTABLISHMENT,OP - City & South Locality - Cost of Care,Older People - City & South - Care,Nursing Care
Cambridgeshire County Council,03-Nov-21,51301661802,"4,200.00",MIDFIELD LODGE CARE CENTRE,CARE ESTABLISHMENT,OP - City & South Locality - Cost of Care,Older People - City & South - Care,Nursing Care
Cambridgeshire County Council,03-Nov-21,51301661802,"4,200.00",MIDFIELD LODGE CARE CENTRE,CARE ESTABLISHMENT,OP - City & South Locality - Cost of Care,Older People - City & South - Care,Nursing Care
Cambridgeshire County Council,03-Nov-21,51301661802,"4,200.00",MIDFIELD LODGE CARE CENTRE,CARE ESTABLISHMENT,OP - City & South Locality - Cost of Care,Older People - City & South - Care,Nursing Care
Cambridgeshire County Council,03-Nov-21,51301661802,"4,900.00",MIDFIELD LODGE CARE CENTRE,CARE ESTABLISHMENT,OP - City & South Locality - Cost of Care,Older People - City & South - Care,Nursing Care
Cambridgeshire County Council,03-Nov-21,51301661802,"4,900.00",MIDFIELD LODGE CARE CENTRE,CARE ESTABLISHMENT,OP - City & South Locality - Cost of Care,Older People - City & South - Care,Nursing Care
Cambridgeshire County Council,03-Nov-21,51301661802,"4,900.00",MIDFIELD LODGE CARE CENTRE,CARE ESTABLISHMENT,OP - City & South Locality - Cost of Care,Older People - City & South - Care,Nursing Care
Cambridgeshire County Council,03-Nov-21,51301661802,"4,900.00",MIDFIELD LODGE CARE CENTRE,CARE ESTABLISHMENT,OP - City & South Locality - Cost of Care,Older People - City & South - Care,Nursing Care
Cambridgeshire County Council,03-Nov-21,51301661802,"6,400.00",MIDFIELD LODGE CARE CENTRE,CARE ESTABLISHMENT,OP - City & South Locality - Cost of Care,Older People - City & South - Care,Nursing Care
Cambridgeshire County Council,03-Nov-21,51301661802,"6,400.00",MIDFIELD LODGE CARE CENTRE,CARE ESTABLISHMENT,OP - City & South Locality - Cost of Care,Older People - City & South - Care,Nursing Care
Cambridgeshire County Council,03-Nov-21,51301661802,"6,400.00",MIDFIELD LODGE CARE CENTRE,CARE ESTABLISHMENT,OP - City & South Locality - Cost of Care,Older People - City & South - Care,Nursing Care
Cambridgeshire County Council,03-Nov-21,51301661802,"6,400.00",MIDFIELD LODGE CARE CENTRE,CARE ESTABLISHMENT,OP - City & South Locality - Cost of Care,Older People - City & South - Care,Nursing Care
Cambridgeshire County Council,03-Nov-21,51301661414,"-6,400.00",MIDFIELD LODGE CARE CENTRE,CARE ESTABLISHMENT,OP - City & South Locality - Cost of Care,Older People - City & South - Care,Nursing Care
Cambridgeshire County Council,03-Nov-21,51301661414,"-6,400.00",MIDFIELD LODGE CARE CENTRE,CARE ESTABLISHMENT,OP - City & South Locality - Cost of Care,Older People - City & South - Care,Nursing Care
Cambridgeshire County Council,03-Nov-21,51301661414,"-6,400.00",MIDFIELD LODGE CARE CENTRE,CARE ESTABLISHMENT,OP - City & South Locality - Cost of Care,Older People - City & South - Care,Nursing Care
Cambridgeshire County Council,03-Nov-21,51301661414,"-6,400.00",MIDFIELD LODGE CARE CENTRE,CARE ESTABLISHMENT,OP - City & South Locality - Cost of Care,Older People - City & South - Care,Nursing Care
Cambridgeshire County Council,03-Nov-21,51301661414,"-4,900.00",MIDFIELD LODGE CARE CENTRE,CARE ESTABLISHMENT,OP - City & South Locality - Cost of Care,Older People - City & South - Care,Nursing Care
Cambridgeshire County Council,03-Nov-21,51301661414,"-4,900.00",MIDFIELD LODGE CARE CENTRE,CARE ESTABLISHMENT,OP - City & South Locality - Cost of Care,Older People - City & South - Care,Nursing Care
Cambridgeshire County Council,03-Nov-21,51301661414,"-4,900.00",MIDFIELD LODGE CARE CENTRE,CARE ESTABLISHMENT,OP - City & South Locality - Cost of Care,Older People - City & South - Care,Nursing Care
Cambridgeshire County Council,03-Nov-21,51301661414,"-4,900.00",MIDFIELD LODGE CARE CENTRE,CARE ESTABLISHMENT,OP - City & South Locality - Cost of Care,Older People - City & South - Care,Nursing Care
Cambridgeshire County Council,03-Nov-21,51301661414,"-2,960.00",MIDFIELD LODGE CARE CENTRE,CARE ESTABLISHMENT,OP - City & South Locality - Cost of Care,Older People - City & South - Care,Nursing Care
Cambridgeshire County Council,03-Nov-21,51301661414,"-2,960.00",MIDFIELD LODGE CARE CENTRE,CARE ESTABLISHMENT,OP - City & South Locality - Cost of Care,Older People - City & South - Care,Nursing Care
Cambridgeshire County Council,03-Nov-21,51301661414,"-2,960.00",MIDFIELD LODGE CARE CENTRE,CARE ESTABLISHMENT,OP - City & South Locality - Cost of Care,Older People - City & South - Care,Nursing Care
Cambridgeshire County Council,03-Nov-21,51301661414,"-2,960.00",MIDFIELD LODGE CARE CENTRE,CARE ESTABLISHMENT,OP - City & South Locality - Cost of Care,Older People - City & South - Care,Nursing Care
Cambridgeshire County Council,03-Nov-21,51301661414,-672.00,MIDFIELD LODGE CARE CENTRE,CARE ESTABLISHMENT,OP - City & South Locality - Cost of Care,Older People - City & South - Care,Nursing Care
Cambridgeshire County Council,03-Nov-21,51301661414,-672.00,MIDFIELD LODGE CARE CENTRE,CARE ESTABLISHMENT,OP - City & South Locality - Cost of Care,Older People - City & South - Care,Nursing Care
Cambridgeshire County Council,03-Nov-21,51301661414,-672.00,MIDFIELD LODGE CARE CENTRE,CARE ESTABLISHMENT,OP - City & South Locality - Cost of Care,Older People - City & South - Care,Nursing Care
Cambridgeshire County Council,03-Nov-21,51301661414,-672.00,MIDFIELD LODGE CARE CENTRE,CARE ESTABLISHMENT,OP - City & South Locality - Cost of Care,Older People - City & South - Care,Nursing Care
Cambridgeshire County Council,03-Nov-21,51301661414,-630.00,MIDFIELD LODGE CARE CENTRE,CARE ESTABLISHMENT,OP - City & South Locality - Cost of Care,Older People - City & South - Care,Nursing Care
Cambridgeshire County Council,03-Nov-21,51301661414,-630.00,MIDFIELD LODGE CARE CENTRE,CARE ESTABLISHMENT,OP - City & South Locality - Cost of Care,Older People - City & South - Care,Nursing Care
Cambridgeshire County Council,03-Nov-21,51301661414,-630.00,MIDFIELD LODGE CARE CENTRE,CARE ESTABLISHMENT,OP - City & South Locality - Cost of Care,Older People - City & South - Care,Nursing Care
Cambridgeshire County Council,03-Nov-21,51301661414,-630.00,MIDFIELD LODGE CARE CENTRE,CARE ESTABLISHMENT,OP - City & South Locality - Cost of Care,Older People - City & South - Care,Nursing Care
Cambridgeshire County Council,03-Nov-21,51301661269,"197,671.27",BORRAS CONSTRUCTION LTD,COMPANY,Sawtry Infants,Sawtry Infants,"New Construction, Conversion and Renovation"
Cambridgeshire County Council,03-Nov-21,51301660398,"197,933.93",ECON ENGINEERING LTD,TRADE SUPPLIER,Winter Maintenance,Central Winter Maintenance,Winter Maintenance
Cambridgeshire County Council,03-Nov-21,51301660397,"228,702.15",ECON ENGINEERING LTD,TRADE SUPPLIER,Winter Maintenance,Central Winter Maintenance,Winter Maintenance
Cambridgeshire County Council,03-Nov-21,51301660276,"174,073.38",TOTALENERGIES GAS AND POWER LTD,TRADE SUPPLIER,Street Lighting,Street Lighting Energy,Street Light Energy
Cambridgeshire County Council,03-Nov-21,51301660196,630.00,Participation Dogs Limited,EDUCATION,Out of School Tuition,Out of School Provision - Education and Settings,Independent School Placements
Cambridgeshire County Council,03-Nov-21,51301659041,"2,337.60",CCS MEDIA LIMITED,TRADE SUPPLIER,Corporate IT Managed,Hardware & Infrastructure,Computer hardware - purchase
Cambridgeshire County Council,03-Nov-21,51301659040,"5,127.74",CCS MEDIA LIMITED,TRADE SUPPLIER,Corporate IT Managed,Hardware & Infrastructure,Computer hardware - purchase
Cambridgeshire County Council,03-Nov-21,51301658387,"22,828.71",TOTALENERGIES GAS AND POWER LTD,TRADE SUPPLIER,Signals,Signals Works,Street Light Energy
Cambridgeshire County Council,03-Nov-21,51301656793,"2,370.00",Permanent Futures Ltd,COMPANY,Business Systems,IT Stragety - Educations Systems,IT Software
Cambridgeshire County Council,03-Nov-21,51301656622,"1,968.59",SC Electrical Contractors,SOLETRADER,County Farms,County Farms,County Farms Maintenance
Cambridgeshire County Council,03-Nov-21,51301656587,"2,466.04",Paloma Systems Ltd,COMPANY,Domestic Violence & Sexual Violence,Domestic Violence Unit,Computer software - annual licence agreement
Cambridgeshire County Council,03-Nov-21,51301656565,574.92,Mo's Motors,COMPANY,Libraries - Mobiles & Vans,Support Vans,Vehicle Repairs and maintenance
Cambridgeshire County Council,03-Nov-21,51301655853,"1,209.60",WATERMAN ASPEN LTD,TRADE SUPPLIER,PD - General,Major Infrastructure Delivery,Agency Staff
Cambridgeshire County Council,03-Nov-21,51301653535,"42,842.97",JIMMY'S CAMBRIDGE,CHARITY,Drug & Alcohol Misuse,Housing Related Support Contract,Joint Partnership Funding
Cambridgeshire County Council,03-Nov-21,51301653463,"6,000.00",CARTER JONAS LLP,TRADE SUPPLIER,Housing Schemes,Housing Schemes,Construction - External Professional Fees
Cambridgeshire County Council,04-Nov-21,51301669241,"2,040.00",NPS PETERBOROUGH LTD,TRADE SUPPLIER,Investment in the CCC Asset Portfolio,Spokes - Sackville House,Design
Cambridgeshire County Council,04-Nov-21,51301669225,646.51,Excellerate Services UK Limited,TRADE SUPPLIER,The Hub - Covid-19 Response,The Hub - Covid-19 Response,Building Cleaning
Cambridgeshire County Council,04-Nov-21,51301669224,772.80,Excellerate Services UK Limited,TRADE SUPPLIER,Corporate Offices,County Offices General,Grounds Maintenance
Cambridgeshire County Council,04-Nov-21,51301669223,640.32,Excellerate Services UK Limited,TRADE SUPPLIER,Corporate Offices,County Offices General,Grounds Maintenance
Cambridgeshire County Council,04-Nov-21,51301669220,559.21,Excellerate Services UK Limited,TRADE SUPPLIER,Corporate Offices,Buttsgrove,Building Cleaning
Cambridgeshire County Council,04-Nov-21,51301669219,559.21,Excellerate Services UK Limited,TRADE SUPPLIER,Corporate Offices,Hereward Hall,Building Cleaning
Cambridgeshire County Council,04-Nov-21,51301669217,559.21,Excellerate Services UK Limited,TRADE SUPPLIER,Corporate Offices,Broad Leas Centre,Building Cleaning
Cambridgeshire County Council,04-Nov-21,51301669216,559.21,Excellerate Services UK Limited,TRADE SUPPLIER,Corporate Offices,Bargroves County Office,Building Cleaning
Cambridgeshire County Council,04-Nov-21,51301669215,559.21,Excellerate Services UK Limited,TRADE SUPPLIER,Corporate Offices,Contact Centre - Amundsen House,Building Cleaning
Cambridgeshire County Council,04-Nov-21,51301669212,559.21,Excellerate Services UK Limited,TRADE SUPPLIER,Corporate Offices,Noble House,Building Cleaning
Cambridgeshire County Council,04-Nov-21,51301669211,559.21,Excellerate Services UK Limited,TRADE SUPPLIER,Corporate Offices,Stanton House,Building Cleaning
Cambridgeshire County Council,04-Nov-21,51301669210,559.21,Excellerate Services UK Limited,TRADE SUPPLIER,Corporate Offices,Sackville House (Cambourne),Building Cleaning
Cambridgeshire County Council,04-Nov-21,51301669209,745.62,Excellerate Services UK Limited,TRADE SUPPLIER,Corporate Offices,Scott House,Building Cleaning
Cambridgeshire County Council,04-Nov-21,51301669208,559.21,Excellerate Services UK Limited,TRADE SUPPLIER,Corporate Offices,Speke House,Building Cleaning
Cambridgeshire County Council,04-Nov-21,51301669199,667.34,Redacted Personal Data ,INDIVIDUAL,Children's Disability Direct Payments,CSC Direct Payments,Direct Payments
Cambridgeshire County Council,04-Nov-21,51301669192,585.60,Redacted Personal Data ,PARENT/GUARDIAN,Home to School Transport - Special,Home to School Transport Special - Out of County,Home to School - Contract
Cambridgeshire County Council,04-Nov-21,51301669191,"1,059.33",Redacted Personal Data ,INDIVIDUAL,Home to School Transport - Special,Home to School Transport Special - Post 16,Home to School - Contract
Cambridgeshire County Council,04-Nov-21,51301669188,"1,080.00",Acorn Analytical Services (UK) Ltd,COMPANY,Health & Safety,POD - Health & Safety,Professional Fees and Hired Services
Cambridgeshire County Council,04-Nov-21,51301669185,"6,673.33",Excellerate Services UK Limited,TRADE SUPPLIER,Corporate Offices,County Offices General,Grounds Maintenance
Cambridgeshire County Council,04-Nov-21,51301669184,"2,980.28",Excellerate Services UK Limited,TRADE SUPPLIER,Corporate Offices,County Offices General,Building Cleaning
Cambridgeshire County Council,04-Nov-21,51301669183,"98,031.95",Excellerate Services UK Limited,TRADE SUPPLIER,Corporate Offices,County Offices General,Building Cleaning
Cambridgeshire County Council,04-Nov-21,51301669179,513.00,Redacted Personal Data ,INDIVIDUAL,SIS Head of Service,SIS - Intervention,Professional Fees and Hired Services
Cambridgeshire County Council,04-Nov-21,51301669178,"3,653.57",Eastern Family Services Ltd t/a Eastern Fostering Services,CARE ESTABLISHMENT,LAC Placements,Placements - independent fostering,Agency Placements - In County
Cambridgeshire County Council,04-Nov-21,51301669176,"3,653.57",Eastern Family Services Ltd t/a Eastern Fostering Services,CARE ESTABLISHMENT,LAC Placements,Placements - independent fostering,Agency Placements - Out of  County
Cambridgeshire County Council,04-Nov-21,51301669173,"3,288.21",Eastern Family Services Ltd t/a Eastern Fostering Services,CARE ESTABLISHMENT,LAC Placements,Placements - independent fostering,Agency Placements - Out of  County
Cambridgeshire County Council,04-Nov-21,51301669171,"3,288.21",Eastern Family Services Ltd t/a Eastern Fostering Services,CARE ESTABLISHMENT,LAC Placements,Placements - independent fostering,Agency Placements - Out of  County
Cambridgeshire County Council,04-Nov-21,51301669169,"3,653.57",Eastern Family Services Ltd t/a Eastern Fostering Services,CARE ESTABLISHMENT,LAC Placements,Placements - independent fostering,Agency Placements - Out of  County
Cambridgeshire County Council,04-Nov-21,51301669165,"19,463.04",4D CARE LIMITED,CARE ESTABLISHMENT,LAC Placements,Placements - residential schools,Agency Placements - In County
Cambridgeshire County Council,04-Nov-21,51301669164,"1,722.85",KEY2 FUTURES LTD,TRADE SUPPLIER,Unaccompanied Asylum Seeking Children,Unaccompanied Asylum Seeking Children <18,Asylum Seekers
Cambridgeshire County Council,04-Nov-21,51301669162,"1,780.28",KEY2 FUTURES LTD,TRADE SUPPLIER,Unaccompanied Asylum Seeking Children,Unaccompanied Asylum Seeking Children <18,Asylum Seekers
Cambridgeshire County Council,04-Nov-21,51301669160,"2,154.85",KEY2 FUTURES LTD,TRADE SUPPLIER,Unaccompanied Asylum Seeking Children,Unaccompanied Asylum Seeking Children >18 Leaving Care,Living Spport Grants - Financial Assistance 18+
Cambridgeshire County Council,04-Nov-21,51301669159,"1,722.85",KEY2 FUTURES LTD,TRADE SUPPLIER,Unaccompanied Asylum Seeking Children,Unaccompanied Asylum Seeking Children >18 Leaving Care,Living Spport Grants - Financial Assistance 18+
Cambridgeshire County Council,04-Nov-21,51301669157,"-1,722.85",KEY2 FUTURES LTD,TRADE SUPPLIER,Unaccompanied Asylum Seeking Children,Unaccompanied Asylum Seeking Children >18 Leaving Care,Living Spport Grants - Financial Assistance 18+
Cambridgeshire County Council,04-Nov-21,51301669140,"1,085.00",Elite care,CARE ESTABLISHMENT,Unaccompanied Asylum Seeking Children,Unaccompanied Asylum Seeking Children >18 Leaving Care,Living Spport Grants - Financial Assistance 18+
Cambridgeshire County Council,04-Nov-21,51301669138,531.43,Elite care,CARE ESTABLISHMENT,Unaccompanied Asylum Seeking Children,Unaccompanied Asylum Seeking Children >18 Leaving Care,Living Spport Grants - Financial Assistance 18+
Cambridgeshire County Council,04-Nov-21,51301669136,514.29,Elite care,CARE ESTABLISHMENT,Unaccompanied Asylum Seeking Children,Unaccompanied Asylum Seeking Children >18 Leaving Care,Living Spport Grants - Financial Assistance 18+
Cambridgeshire County Council,04-Nov-21,51301669134,562.43,Elite care,CARE ESTABLISHMENT,Unaccompanied Asylum Seeking Children,Unaccompanied Asylum Seeking Children >18 Leaving Care,Living Spport Grants - Financial Assistance 18+
Cambridgeshire County Council,04-Nov-21,51301669132,531.43,Elite care,CARE ESTABLISHMENT,Unaccompanied Asylum Seeking Children,Unaccompanied Asylum Seeking Children >18 Leaving Care,Living Spport Grants - Financial Assistance 18+
Cambridgeshire County Council,04-Nov-21,51301669129,"2,435.71",BACA,CHARITY,Unaccompanied Asylum Seeking Children,Unaccompanied Asylum Seeking Children <18,Asylum Seekers
Cambridgeshire County Council,04-Nov-21,51301669122,"2,391.43",24/7 Support UK Limited,CARE ESTABLISHMENT,Unaccompanied Asylum Seeking Children,Unaccompanied Asylum Seeking Children <18,Asylum Seekers
Cambridgeshire County Council,04-Nov-21,51301669118,"2,391.43",24/7 Support UK Limited,CARE ESTABLISHMENT,Unaccompanied Asylum Seeking Children,Unaccompanied Asylum Seeking Children <18,Asylum Seekers
Cambridgeshire County Council,04-Nov-21,51301669115,900.00,24/7 Support UK Limited,CARE ESTABLISHMENT,Unaccompanied Asylum Seeking Children,Unaccompanied Asylum Seeking Children >18 Leaving Care,Living Spport Grants - Financial Assistance 18+
Cambridgeshire County Council,04-Nov-21,51301669113,"-1,080.00",24/7 Support UK Limited,CARE ESTABLISHMENT,Unaccompanied Asylum Seeking Children,Unaccompanied Asylum Seeking Children >18 Leaving Care,Living Spport Grants - Financial Assistance 18+
Cambridgeshire County Council,04-Nov-21,51301669112,"2,129.15",24/7 Support UK Limited,CARE ESTABLISHMENT,Unaccompanied Asylum Seeking Children,Unaccompanied Asylum Seeking Children <18,Asylum Seekers
Cambridgeshire County Council,04-Nov-21,51301669111,818.18,Leicester YMCA,CARE ESTABLISHMENT,Unaccompanied Asylum Seeking Children,Unaccompanied Asylum Seeking Children >18 Leaving Care,Living Spport Grants - Financial Assistance 18+
Cambridgeshire County Council,04-Nov-21,51301669109,818.18,Leicester YMCA,CARE ESTABLISHMENT,Unaccompanied Asylum Seeking Children,Unaccompanied Asylum Seeking Children >18 Leaving Care,Living Spport Grants - Financial Assistance 18+
Cambridgeshire County Council,04-Nov-21,51301669107,"1,682.86",PSA Care LTD,COMPANY,Unaccompanied Asylum Seeking Children,Unaccompanied Asylum Seeking Children >18 Leaving Care,Living Spport Grants - Financial Assistance 18+
Cambridgeshire County Council,04-Nov-21,51301669106,"2,125.71",PSA Care LTD,COMPANY,Unaccompanied Asylum Seeking Children,Unaccompanied Asylum Seeking Children >18 Leaving Care,Living Spport Grants - Financial Assistance 18+
Cambridgeshire County Council,04-Nov-21,51301669105,"2,192.14",PC HOMES,CARE ESTABLISHMENT,Unaccompanied Asylum Seeking Children,Unaccompanied Asylum Seeking Children <18,Asylum Seekers
Cambridgeshire County Council,04-Nov-21,51301669104,"2,192.14",PC HOMES,CARE ESTABLISHMENT,Unaccompanied Asylum Seeking Children,Unaccompanied Asylum Seeking Children <18,Asylum Seekers
Cambridgeshire County Council,04-Nov-21,51301669102,"2,192.14",PC HOMES,CARE ESTABLISHMENT,Unaccompanied Asylum Seeking Children,Unaccompanied Asylum Seeking Children <18,Asylum Seekers
Cambridgeshire County Council,04-Nov-21,51301669101,"2,192.14",PC HOMES,CARE ESTABLISHMENT,Unaccompanied Asylum Seeking Children,Unaccompanied Asylum Seeking Children <18,Asylum Seekers
Cambridgeshire County Council,04-Nov-21,51301669100,"2,192.14",PC HOMES,CARE ESTABLISHMENT,Unaccompanied Asylum Seeking Children,Unaccompanied Asylum Seeking Children <18,Asylum Seekers
Cambridgeshire County Council,04-Nov-21,51301669099,"2,192.14",PC HOMES,CARE ESTABLISHMENT,Unaccompanied Asylum Seeking Children,Unaccompanied Asylum Seeking Children <18,Asylum Seekers
Cambridgeshire County Council,04-Nov-21,51301669098,"2,192.14",PC HOMES,CARE ESTABLISHMENT,Unaccompanied Asylum Seeking Children,Unaccompanied Asylum Seeking Children <18,Asylum Seekers
Cambridgeshire County Council,04-Nov-21,51301669097,"2,192.14",PC HOMES,CARE ESTABLISHMENT,Unaccompanied Asylum Seeking Children,Unaccompanied Asylum Seeking Children <18,Asylum Seekers
Cambridgeshire County Council,04-Nov-21,51301669096,"2,192.14",PC HOMES,CARE ESTABLISHMENT,Unaccompanied Asylum Seeking Children,Unaccompanied Asylum Seeking Children <18,Asylum Seekers
Cambridgeshire County Council,04-Nov-21,51301669095,"2,192.14",PC HOMES,CARE ESTABLISHMENT,Unaccompanied Asylum Seeking Children,Unaccompanied Asylum Seeking Children <18,Asylum Seekers
Cambridgeshire County Council,04-Nov-21,51301669094,"2,192.14",PC HOMES,CARE ESTABLISHMENT,Unaccompanied Asylum Seeking Children,Unaccompanied Asylum Seeking Children <18,Asylum Seekers
Cambridgeshire County Council,04-Nov-21,51301669084,"1,000.00",Redacted Personal Data ,INDIVIDUAL,Insurance Fund,Liability,Insurance Claims Paid
Cambridgeshire County Council,04-Nov-21,51301669083,980.00,Redacted Personal Data ,INDIVIDUAL,L&D Grants,Practice Learning,Professional Fees and Hired Services
Cambridgeshire County Council,04-Nov-21,51301669081,"9,400.00",Redacted Personal Data ,INDIVIDUAL,SEND High Needs Top Up,"SEND Specialist Services,High Needs Top Up,Other institutions",Independent School Placements
Cambridgeshire County Council,04-Nov-21,51301669074,675.00,Splash,LOCAL CLUBS & GROUPS,Children's Disability Direct Payments,CSC Direct Payments,Direct Payments
Cambridgeshire County Council,04-Nov-21,51301669073,"1,998.83",Redacted Personal Data ,INDIVIDUAL,Children's Disability Direct Payments,CSC Direct Payments,Direct Payments
Cambridgeshire County Council,04-Nov-21,51301669072,760.00,Redacted Personal Data ,INDIVIDUAL,Children's Disability Direct Payments,CSC Direct Payments,Direct Payments
Cambridgeshire County Council,04-Nov-21,51301669061,"2,531.15",Redacted Personal Data ,FOSTER PARENT,LD - Fenland Locality - Cost of Care,LD - Fenland  - Care,Residential Care
Cambridgeshire County Council,04-Nov-21,51301669059,551.80,Redacted Personal Data ,INDIVIDUAL,LD - Hunts Locality - Cost of Care,LD - Huntingdonshire - Care,Day Care
Cambridgeshire County Council,04-Nov-21,51301669058,"2,531.15",Redacted Personal Data ,PARENT/GUARDIAN,LD - East Locality - Cost of Care,LD - East Cambs - Care,Residential Care
Cambridgeshire County Council,04-Nov-21,51301669057,"2,531.15",Redacted Personal Data ,INDIVIDUAL,Autism and Adult Support - Cost of Care,Autism and Adult Support - Care,Residential Care
Cambridgeshire County Council,04-Nov-21,51301669056,"2,449.50",Redacted Personal Data ,INDIVIDUAL,LD - Hunts Locality - Cost of Care,LD - Huntingdonshire - Care,Residential Care
Cambridgeshire County Council,04-Nov-21,51301669053,"2,531.15",Redacted Personal Data ,INDIVIDUAL,Shared Lives,Shared Lives - Countywide,Residential Care
Cambridgeshire County Council,04-Nov-21,51301669030,695.00,Camilla Carpets Ltd,COMPANY,South Care Leaving,South Care Leaving,Leaving Care Grants
Cambridgeshire County Council,04-Nov-21,51301669025,"3,971.10",Flourish Fostering Ltd,CARE ESTABLISHMENT,LAC Placements,Placements - independent fostering,Agency Placements - Out of  County
Cambridgeshire County Council,04-Nov-21,51301669013,"20,400.00",STAGECOACH SERVICES LTD,TRADE SUPPLIER,GCP - City Centre Access Project,GCP - City Centre Access Project,Construction - External Professional Fees
Cambridgeshire County Council,04-Nov-21,51301669009,"1,173.00",FARRINGTON CARE HOMES LTD T/A WOODLANDS RESIDENTIAL CARE HOME,CARE ESTABLISHMENT,Central Commissioning - Adults,Adult Social Care Infection Control: round 4 & Testing Fund: round 3,Grants
Cambridgeshire County Council,04-Nov-21,51301669008,"22,950.00",STAGECOACH SERVICES LTD,TRADE SUPPLIER,GCP - City Centre Access Project,GCP - City Centre Access Project,Construction - External Professional Fees
Cambridgeshire County Council,04-Nov-21,51301669007,"22,100.00",STAGECOACH SERVICES LTD,TRADE SUPPLIER,GCP - City Centre Access Project,GCP - City Centre Access Project,Construction - External Professional Fees
Cambridgeshire County Council,04-Nov-21,51301669002,"11,681.99",Roadworks Information Ltd t/a one.network,TRADE SUPPLIER,IHMC and Events,IHMC and Events,Computer software - annual licence agreement
Cambridgeshire County Council,04-Nov-21,51301668999,"4,800.00",Cascade Software Ltd,COMPANY,Bridges,Bridges Works,Bridge Maintenance
Cambridgeshire County Council,04-Nov-21,51301668987,"2,837.25",DEWS COACHES,TRADE SUPPLIER,Shire Hall Relocation,Shire Hall Relocation,Transport Contract Payments
Cambridgeshire County Council,04-Nov-21,51301668774,"135,706.50",Oak House Children's Home Ltd,CARE ESTABLISHMENT,LAC Placements,Placements - residential homes,Agency Placements - Out of  County
Cambridgeshire County Council,04-Nov-21,51301668625,"12,766.44",Pathfinder Legal Services Limited,TRADE SUPPLIER,Legal Proceedings,Legal Proceedings,External Legal Fees
Cambridgeshire County Council,04-Nov-21,51301667816,"3,735.17",Redacted Personal Data ,INDIVIDUAL,Highways General,Highways,Private Highways Work
Cambridgeshire County Council,04-Nov-21,51301657859,"1,053.40",AVAILL HEALTHCARE,CARE ESTABLISHMENT,IHPS - South Accommodation Services,IHPS Jasmine House,Agency Staff
Cambridgeshire County Council,04-Nov-21,51301656121,"1,166.40",ROLAND FLETCHER,SOLETRADER,Highways - Rights of Way,Highways - Rights of Way,Highways - Bridges
Cambridgeshire County Council,04-Nov-21,51301655930,"167,350.80",Mick Geroge Earthworks Limited,COMPANY,Health & Safety,Arbury Road Site CB4 2JF,Professional Fees and Hired Services
Cambridgeshire County Council,04-Nov-21,51301655926,720.00,Therapeutic Thinking Ltd,TRADE SUPPLIER,SEND Specialist Services - SEND Training,SEND Specialist Services - SEND Training,Professional Fees and Hired Services
Cambridgeshire County Council,04-Nov-21,51301655925,"3,186.00",Audit & Business Services Ltd,COMPANY,Internal Audit,Audit Division,Accounting and Audit Fees
Cambridgeshire County Council,04-Nov-21,51301654393,"3,594.00",Catch 22 Charity Ltd,CHARITY,Childrens L&D,Childrens VQ,Subscriptions
Cambridgeshire County Council,04-Nov-21,51301654220,"2,568.00",ROLAND FLETCHER,SOLETRADER,Highways Maintenance,Rights of Way and Access,Rights of Way - gates
Cambridgeshire County Council,04-Nov-21,51301653217,"3,889.17",MARSHFIELDS SCHOOL,EDUCATION,Recoupment,Procurement - Out-County Special Schools & ER,Independent School Placements
Cambridgeshire County Council,04-Nov-21,51301653215,"3,889.17",MARSHFIELDS SCHOOL,EDUCATION,Recoupment,Procurement - Out-County Special Schools & ER,Independent School Placements
Cambridgeshire County Council,04-Nov-21,51301652778,"3,889.17",MARSHFIELDS SCHOOL,EDUCATION,Recoupment,Procurement - Out-County Special Schools & ER,Independent School Placements
Cambridgeshire County Council,04-Nov-21,51301652773,"3,889.17",MARSHFIELDS SCHOOL,EDUCATION,Recoupment,Procurement - Out-County Special Schools & ER,Independent School Placements
Cambridgeshire County Council,04-Nov-21,51301631715,"27,850.00",GRETTON SCHOOL,EDUCATION,SEN Placements,Placements - Education,Independent School Placements
Cambridgeshire County Council,04-Nov-21,51301631658,-607.00,CARTER JONAS LLP,TRADE SUPPLIER,Corporate Offices,Signet Court,Service Charges
Cambridgeshire County Council,05-Nov-21,51301669875,"5,000.00",SMARTIES PRE SCHOOL AND OUT OF SCHOOL CLUB,NURSERY,Nursery Schools,Early Years - Funded 3s/4s,Care & Ed Childcare Settings
Cambridgeshire County Council,05-Nov-21,51301669841,"1,061.12",BOLINDA UK LTD,TRADE SUPPLIER,Libraries - Stock & Distribution,Support - Stock & Distribution,Books and Multimedia Supplies
Cambridgeshire County Council,05-Nov-21,51301669840,"1,915.20",Redacted Personal Data ,INDIVIDUAL,Home to School Transport - Special,Home to School Transport Special - Special School,Home to School - Contract
Cambridgeshire County Council,05-Nov-21,51301669838,"1,884.00",Redacted Personal Data ,INDIVIDUAL,Unaccompanied Asylum Seeking Children,Unaccompanied Asylum Seeking Children >18 Leaving Care,Leaving Care Grants
Cambridgeshire County Council,05-Nov-21,51301669832,506.00,Redacted Personal Data ,INDIVIDUAL,NHS - PH Health Checks,NHS Health Checks - Prescribed Cardio Vascular Health Check,Professional Fees and Hired Services
Cambridgeshire County Council,05-Nov-21,51301669830,"1,403.00",Redacted Personal Data ,INDIVIDUAL,NHS - PH Health Checks,NHS Health Checks - Prescribed Cardio Vascular Health Check,Professional Fees and Hired Services
Cambridgeshire County Council,05-Nov-21,51301669826,"1,035.00",ALCONBURY & BRAMPTON SURGERIES,CARE ESTABLISHMENT,NHS - PH Health Checks,NHS Health Checks - Prescribed Cardio Vascular Health Check,Professional Fees and Hired Services
Cambridgeshire County Council,05-Nov-21,51301669824,"1,449.00",WOODLANDS SURGERY,CARE ESTABLISHMENT,NHS - PH Health Checks,NHS Health Checks - Prescribed Cardio Vascular Health Check,Professional Fees and Hired Services
Cambridgeshire County Council,05-Nov-21,51301669820,"1,196.00",THE RIVERSIDE PRACTICE,CARE ESTABLISHMENT,NHS - PH Health Checks,NHS Health Checks - Prescribed Cardio Vascular Health Check,Professional Fees and Hired Services
Cambridgeshire County Council,05-Nov-21,51301669819,"1,518.00",HICKS GROUP PRACTICE,CARE ESTABLISHMENT,NHS - PH Health Checks,NHS Health Checks - Prescribed Cardio Vascular Health Check,Professional Fees and Hired Services
Cambridgeshire County Council,05-Nov-21,51301669818,736.00,THE CORNERSTONE PRACTICE,CARE ESTABLISHMENT,NHS - PH Health Checks,NHS Health Checks - Prescribed Cardio Vascular Health Check,Professional Fees and Hired Services
Cambridgeshire County Council,05-Nov-21,51301669817,"2,783.00",ACORN SURGERY,CARE ESTABLISHMENT,NHS - PH Health Checks,NHS Health Checks - Prescribed Cardio Vascular Health Check,Professional Fees and Hired Services
Cambridgeshire County Council,05-Nov-21,51301669815,"1,840.00",ST MARYS SURGERY,CARE ESTABLISHMENT,NHS - PH Health Checks,NHS Health Checks - Prescribed Cardio Vascular Health Check,Professional Fees and Hired Services
Cambridgeshire County Council,05-Nov-21,51301669811,805.00,PRIORY FIELDS SURGERY,CARE ESTABLISHMENT,NHS - PH Health Checks,NHS Health Checks - Prescribed Cardio Vascular Health Check,Professional Fees and Hired Services
Cambridgeshire County Council,05-Nov-21,51301669804,"2,645.00",NORTH BRINK PRACTICE,CARE ESTABLISHMENT,NHS - PH Health Checks,NHS Health Checks - Prescribed Cardio Vascular Health Check,Professional Fees and Hired Services
Cambridgeshire County Council,05-Nov-21,51301669803,"2,208.00",NEWNHAM WALK SURGERY,CARE ESTABLISHMENT,NHS - PH Health Checks,NHS Health Checks - Prescribed Cardio Vascular Health Check,Professional Fees and Hired Services
Cambridgeshire County Council,05-Nov-21,51301669799,"1,035.00",LENSFIELD MEDICAL PRACTICE,CARE ESTABLISHMENT,NHS - PH Health Checks,NHS Health Checks - Prescribed Cardio Vascular Health Check,Professional Fees and Hired Services
Cambridgeshire County Council,05-Nov-21,51301669797,"1,012.00",CEDAR HOUSE SURGERY,CARE ESTABLISHMENT,NHS - PH Health Checks,NHS Health Checks - Prescribed Cardio Vascular Health Check,Professional Fees and Hired Services
Cambridgeshire County Council,05-Nov-21,51301669796,575.00,HUNTINGDON ROAD SURGERY,CARE ESTABLISHMENT,NHS - PH Health Checks,NHS Health Checks - Prescribed Cardio Vascular Health Check,Professional Fees and Hired Services
Cambridgeshire County Council,05-Nov-21,51301669793,"1,311.00",GREAT STAUGHTON SURGERY,CARE ESTABLISHMENT,NHS - PH Health Checks,NHS Health Checks - Prescribed Cardio Vascular Health Check,Professional Fees and Hired Services
Cambridgeshire County Council,05-Nov-21,51301669792,"1,081.00",GRANTA MEDICAL PRACTICE,OTHER PUBLIC BODIES,NHS - PH Health Checks,NHS Health Checks - Prescribed Cardio Vascular Health Check,Professional Fees and Hired Services
Cambridgeshire County Council,05-Nov-21,51301669789,"1,633.00",CORNFORD HOUSE SURGERY,CARE ESTABLISHMENT,NHS - PH Health Checks,NHS Health Checks - Prescribed Cardio Vascular Health Check,Professional Fees and Hired Services
Cambridgeshire County Council,05-Nov-21,51301669785,644.00,BRIDGE STREET MEDICAL CENTRE,CARE ESTABLISHMENT,NHS - PH Health Checks,NHS Health Checks - Prescribed Cardio Vascular Health Check,Professional Fees and Hired Services
Cambridgeshire County Council,05-Nov-21,51301669783,690.00,ALMOND ROAD SURGERY,CARE ESTABLISHMENT,NHS - PH Health Checks,NHS Health Checks - Prescribed Cardio Vascular Health Check,Professional Fees and Hired Services
Cambridgeshire County Council,05-Nov-21,51301669740,559.44,YORK STREET MEDICAL PRACTICE,CARE ESTABLISHMENT,PH Contraception,SH Contraception -  Long Acting Reversible Contraception,Professional Fees and Hired Services
Cambridgeshire County Council,05-Nov-21,51301669739,"1,038.96",WOODLANDS SURGERY,CARE ESTABLISHMENT,PH Contraception,SH Contraception -  Long Acting Reversible Contraception,Professional Fees and Hired Services
Cambridgeshire County Council,05-Nov-21,51301669738,959.04,WILLINGHAM MEDICAL PRACTICE,CARE ESTABLISHMENT,PH Contraception,SH Contraception -  Long Acting Reversible Contraception,Professional Fees and Hired Services
Cambridgeshire County Council,05-Nov-21,51301669737,"1,678.32",WELLSIDE SURGERY,TRADE SUPPLIER,PH Contraception,SH Contraception -  Long Acting Reversible Contraception,Professional Fees and Hired Services
Cambridgeshire County Council,05-Nov-21,51301669735,"2,957.04",TRUMPINGTON ST MEDICAL PRACTICE,CARE ESTABLISHMENT,PH Contraception,SH Contraception -  Long Acting Reversible Contraception,Professional Fees and Hired Services
Cambridgeshire County Council,05-Nov-21,51301669734,799.20,TRINITY SURGERY,CARE ESTABLISHMENT,PH Contraception,SH Contraception -  Long Acting Reversible Contraception,Professional Fees and Hired Services
Cambridgeshire County Council,05-Nov-21,51301669733,"1,518.48",STAPLOE MEDICAL SERVICES LTD,TRADE SUPPLIER,PH Contraception,SH Contraception -  Long Acting Reversible Contraception,Professional Fees and Hired Services
Cambridgeshire County Council,05-Nov-21,51301669731,"1,038.96",THE RIVERSIDE PRACTICE,CARE ESTABLISHMENT,PH Contraception,SH Contraception -  Long Acting Reversible Contraception,Professional Fees and Hired Services
Cambridgeshire County Council,05-Nov-21,51301669729,959.04,MOAT HOUSE SURGERY,CARE ESTABLISHMENT,PH Contraception,SH Contraception -  Long Acting Reversible Contraception,Professional Fees and Hired Services
Cambridgeshire County Council,05-Nov-21,51301669728,"1,438.56",HICKS GROUP PRACTICE,CARE ESTABLISHMENT,PH Contraception,SH Contraception -  Long Acting Reversible Contraception,Professional Fees and Hired Services
Cambridgeshire County Council,05-Nov-21,51301669725,"2,157.84",ACORN SURGERY,CARE ESTABLISHMENT,PH Contraception,SH Contraception -  Long Acting Reversible Contraception,Professional Fees and Hired Services
Cambridgeshire County Council,05-Nov-21,51301669723,639.36,ST GEORGES MEDICAL CENTRE,CARE ESTABLISHMENT,PH Contraception,SH Contraception -  Long Acting Reversible Contraception,Professional Fees and Hired Services
Cambridgeshire County Council,05-Nov-21,51301669722,"1,038.96",MALLING HEALTH (UK),CARE ESTABLISHMENT,PH Contraception,SH Contraception -  Long Acting Reversible Contraception,Professional Fees and Hired Services
Cambridgeshire County Council,05-Nov-21,51301669721,"1,998.00",ST MARYS SURGERY,CARE ESTABLISHMENT,PH Contraception,SH Contraception -  Long Acting Reversible Contraception,Professional Fees and Hired Services
Cambridgeshire County Council,05-Nov-21,51301669720,"1,358.64",THE ORCHARD SURGERY,CARE ESTABLISHMENT,PH Contraception,SH Contraception -  Long Acting Reversible Contraception,Professional Fees and Hired Services
Cambridgeshire County Council,05-Nov-21,51301669718,639.36,QUEEN EDITH MEDICAL PRACTICE,CARE ESTABLISHMENT,PH Contraception,SH Contraception -  Long Acting Reversible Contraception,Professional Fees and Hired Services
Cambridgeshire County Council,05-Nov-21,51301669715,879.12,PETERSFIELD MEDICAL PRACTICE,CARE ESTABLISHMENT,PH Contraception,SH Contraception -  Long Acting Reversible Contraception,Professional Fees and Hired Services
Cambridgeshire County Council,05-Nov-21,51301669714,"1,038.96",PAPWORTH SURGERY,CARE ESTABLISHMENT,PH Contraception,SH Contraception -  Long Acting Reversible Contraception,Professional Fees and Hired Services
Cambridgeshire County Council,05-Nov-21,51301669713,559.44,Redacted Personal Data ,INDIVIDUAL,PH Contraception,SH Contraception -  Long Acting Reversible Contraception,Professional Fees and Hired Services
Cambridgeshire County Council,05-Nov-21,51301669712,719.28,ORCHARD SURGERY (MELBOURN),CARE ESTABLISHMENT,PH Contraception,SH Contraception -  Long Acting Reversible Contraception,Professional Fees and Hired Services
Cambridgeshire County Council,05-Nov-21,51301669711,639.36,NUFFIELD ROAD MEDICAL CENTRE,CARE ESTABLISHMENT,PH Contraception,SH Contraception -  Long Acting Reversible Contraception,Professional Fees and Hired Services
Cambridgeshire County Council,05-Nov-21,51301669710,559.44,NORTH BRINK PRACTICE,CARE ESTABLISHMENT,PH Contraception,SH Contraception -  Long Acting Reversible Contraception,Professional Fees and Hired Services
Cambridgeshire County Council,05-Nov-21,51301669709,"2,477.52",NEWNHAM WALK SURGERY,CARE ESTABLISHMENT,PH Contraception,SH Contraception -  Long Acting Reversible Contraception,Professional Fees and Hired Services
Cambridgeshire County Council,05-Nov-21,51301669707,799.20,MILL ROAD MEDICAL PRACTICE,OTHER PUBLIC BODIES,PH Contraception,SH Contraception -  Long Acting Reversible Contraception,Professional Fees and Hired Services
Cambridgeshire County Council,05-Nov-21,51301669706,"1,118.88",LENSFIELD MEDICAL PRACTICE,CARE ESTABLISHMENT,PH Contraception,SH Contraception -  Long Acting Reversible Contraception,Professional Fees and Hired Services
Cambridgeshire County Council,05-Nov-21,51301669705,"1,438.56",Lakeside Healthcare at Yaxley,CARE ESTABLISHMENT,PH Contraception,SH Contraception -  Long Acting Reversible Contraception,Professional Fees and Hired Services
Cambridgeshire County Council,05-Nov-21,51301669703,"3,356.64",CEDAR HOUSE SURGERY,CARE ESTABLISHMENT,PH Contraception,SH Contraception -  Long Acting Reversible Contraception,Professional Fees and Hired Services
Cambridgeshire County Council,05-Nov-21,51301669701,"1,758.24",HUNTINGDON ROAD SURGERY,CARE ESTABLISHMENT,PH Contraception,SH Contraception -  Long Acting Reversible Contraception,Professional Fees and Hired Services
Cambridgeshire County Council,05-Nov-21,51301669698,"1,758.24",CROMWELL PLACE SURGERY,CARE ESTABLISHMENT,PH Contraception,SH Contraception -  Long Acting Reversible Contraception,Professional Fees and Hired Services
Cambridgeshire County Council,05-Nov-21,51301669697,"5,114.88",GRANTA MEDICAL PRACTICE,OTHER PUBLIC BODIES,PH Contraception,SH Contraception -  Long Acting Reversible Contraception,Professional Fees and Hired Services
Cambridgeshire County Council,05-Nov-21,51301669696,"1,358.64",GEORGE CLARE SURGERY,CARE ESTABLISHMENT,PH Contraception,SH Contraception -  Long Acting Reversible Contraception,Professional Fees and Hired Services
Cambridgeshire County Council,05-Nov-21,51301669694,719.28,DODDINGTON MEDICAL CENTRE,CARE ESTABLISHMENT,PH Contraception,SH Contraception -  Long Acting Reversible Contraception,Professional Fees and Hired Services
Cambridgeshire County Council,05-Nov-21,51301669691,"1,038.96",CORNFORD HOUSE SURGERY,CARE ESTABLISHMENT,PH Contraception,SH Contraception -  Long Acting Reversible Contraception,Professional Fees and Hired Services
Cambridgeshire County Council,05-Nov-21,51301669690,"1,518.48",COMBERTON SURGERY,CARE ESTABLISHMENT,PH Contraception,SH Contraception -  Long Acting Reversible Contraception,Professional Fees and Hired Services
Cambridgeshire County Council,05-Nov-21,51301669688,"1,918.08",CATHEDRAL MEDICAL CENTRE,CARE ESTABLISHMENT,PH Contraception,SH Contraception -  Long Acting Reversible Contraception,Professional Fees and Hired Services
Cambridgeshire County Council,05-Nov-21,51301669687,"1,598.40",Redacted Personal Data ,INDIVIDUAL,PH Contraception,SH Contraception -  Long Acting Reversible Contraception,Professional Fees and Hired Services
Cambridgeshire County Council,05-Nov-21,51301669686,"1,038.96",BUCKDEN & LITTLE PAXTON SURGERIES,OTHER PUBLIC BODIES,PH Contraception,SH Contraception -  Long Acting Reversible Contraception,Professional Fees and Hired Services
Cambridgeshire County Council,05-Nov-21,51301669684,"1,038.96",BOURN SURGERY,CARE ESTABLISHMENT,PH Contraception,SH Contraception -  Long Acting Reversible Contraception,Professional Fees and Hired Services
Cambridgeshire County Council,05-Nov-21,51301669683,959.04,BOTTISHAM MEDICAL PRACTICE,CARE ESTABLISHMENT,PH Contraception,SH Contraception -  Long Acting Reversible Contraception,Professional Fees and Hired Services
Cambridgeshire County Council,05-Nov-21,51301669680,"1,598.40",ALCONBURY & BRAMPTON SURGERIES,CARE ESTABLISHMENT,PH Contraception,SH Contraception -  Long Acting Reversible Contraception,Professional Fees and Hired Services
Cambridgeshire County Council,05-Nov-21,51301669679,682.24,YORK STREET MEDICAL PRACTICE,CARE ESTABLISHMENT,PH Contraception,SH Contraception -  Long Acting Reversible Contraception,Professional Fees and Hired Services
Cambridgeshire County Council,05-Nov-21,51301669677,682.24,WILLINGHAM MEDICAL PRACTICE,CARE ESTABLISHMENT,PH Contraception,SH Contraception -  Long Acting Reversible Contraception,Professional Fees and Hired Services
Cambridgeshire County Council,05-Nov-21,51301669676,852.80,WELLSIDE SURGERY,TRADE SUPPLIER,PH Contraception,SH Contraception -  Long Acting Reversible Contraception,Professional Fees and Hired Services
Cambridgeshire County Council,05-Nov-21,51301669675,511.68,WATERBEACH SURGERY,TRUST (OTHER),PH Contraception,SH Contraception -  Long Acting Reversible Contraception,Professional Fees and Hired Services
Cambridgeshire County Council,05-Nov-21,51301669674,"1,449.76",TRUMPINGTON ST MEDICAL PRACTICE,CARE ESTABLISHMENT,PH Contraception,SH Contraception -  Long Acting Reversible Contraception,Professional Fees and Hired Services
Cambridgeshire County Council,05-Nov-21,51301669673,767.52,TRINITY SURGERY,CARE ESTABLISHMENT,PH Contraception,SH Contraception -  Long Acting Reversible Contraception,Professional Fees and Hired Services
Cambridgeshire County Council,05-Nov-21,51301669672,"1,279.20",STAPLOE MEDICAL SERVICES LTD,TRADE SUPPLIER,PH Contraception,SH Contraception -  Long Acting Reversible Contraception,Professional Fees and Hired Services
Cambridgeshire County Council,05-Nov-21,51301669671,"1,620.32",THE RIVERSIDE PRACTICE,CARE ESTABLISHMENT,PH Contraception,SH Contraception -  Long Acting Reversible Contraception,Professional Fees and Hired Services
Cambridgeshire County Council,05-Nov-21,51301669669,596.96,HICKS GROUP PRACTICE,CARE ESTABLISHMENT,PH Contraception,SH Contraception -  Long Acting Reversible Contraception,Professional Fees and Hired Services
Cambridgeshire County Council,05-Nov-21,51301669668,"1,364.48",THE CORNERSTONE PRACTICE,CARE ESTABLISHMENT,PH Contraception,SH Contraception -  Long Acting Reversible Contraception,Professional Fees and Hired Services
Cambridgeshire County Council,05-Nov-21,51301669667,"1,364.48",THE CLARKSON SURGERY,CARE ESTABLISHMENT,PH Contraception,SH Contraception -  Long Acting Reversible Contraception,Professional Fees and Hired Services
Cambridgeshire County Council,05-Nov-21,51301669666,852.80,ACORN SURGERY,CARE ESTABLISHMENT,PH Contraception,SH Contraception -  Long Acting Reversible Contraception,Professional Fees and Hired Services
Cambridgeshire County Council,05-Nov-21,51301669664,938.08,MALLING HEALTH (UK),CARE ESTABLISHMENT,PH Contraception,SH Contraception -  Long Acting Reversible Contraception,Professional Fees and Hired Services
Cambridgeshire County Council,05-Nov-21,51301669663,682.24,ST MARYS SURGERY,CARE ESTABLISHMENT,PH Contraception,SH Contraception -  Long Acting Reversible Contraception,Professional Fees and Hired Services
Cambridgeshire County Council,05-Nov-21,51301669662,767.52,THE ORCHARD SURGERY,CARE ESTABLISHMENT,PH Contraception,SH Contraception -  Long Acting Reversible Contraception,Professional Fees and Hired Services
Cambridgeshire County Council,05-Nov-21,51301669661,852.80,RAMSEY HEALTH CENTRE,CARE ESTABLISHMENT,PH Contraception,SH Contraception -  Long Acting Reversible Contraception,Professional Fees and Hired Services
Cambridgeshire County Council,05-Nov-21,51301669659,596.96,PRIORY FIELDS SURGERY,CARE ESTABLISHMENT,PH Contraception,SH Contraception -  Long Acting Reversible Contraception,Professional Fees and Hired Services
Cambridgeshire County Council,05-Nov-21,51301669655,767.52,PAPWORTH SURGERY,CARE ESTABLISHMENT,PH Contraception,SH Contraception -  Long Acting Reversible Contraception,Professional Fees and Hired Services
Cambridgeshire County Council,05-Nov-21,51301669654,682.24,NUFFIELD ROAD MEDICAL CENTRE,CARE ESTABLISHMENT,PH Contraception,SH Contraception -  Long Acting Reversible Contraception,Professional Fees and Hired Services
Cambridgeshire County Council,05-Nov-21,51301669653,"1,023.36",NORTH BRINK PRACTICE,CARE ESTABLISHMENT,PH Contraception,SH Contraception -  Long Acting Reversible Contraception,Professional Fees and Hired Services
Cambridgeshire County Council,05-Nov-21,51301669652,"1,108.64",NEWNHAM WALK SURGERY,CARE ESTABLISHMENT,PH Contraception,SH Contraception -  Long Acting Reversible Contraception,Professional Fees and Hired Services
Cambridgeshire County Council,05-Nov-21,51301669651,511.68,Redacted Personal Data ,INDIVIDUAL,PH Contraception,SH Contraception -  Long Acting Reversible Contraception,Professional Fees and Hired Services
Cambridgeshire County Council,05-Nov-21,51301669649,682.24,LENSFIELD MEDICAL PRACTICE,CARE ESTABLISHMENT,PH Contraception,SH Contraception -  Long Acting Reversible Contraception,Professional Fees and Hired Services
Cambridgeshire County Council,05-Nov-21,51301669648,938.08,Lakeside Healthcare at Yaxley,CARE ESTABLISHMENT,PH Contraception,SH Contraception -  Long Acting Reversible Contraception,Professional Fees and Hired Services
Cambridgeshire County Council,05-Nov-21,51301669646,"2,899.52",CEDAR HOUSE SURGERY,CARE ESTABLISHMENT,PH Contraception,SH Contraception -  Long Acting Reversible Contraception,Professional Fees and Hired Services
Cambridgeshire County Council,05-Nov-21,51301669645,511.68,KIMBOLTON MEDICAL CENTRE,CARE ESTABLISHMENT,PH Contraception,SH Contraception -  Long Acting Reversible Contraception,Professional Fees and Hired Services
Cambridgeshire County Council,05-Nov-21,51301669644,682.24,HUNTINGDON ROAD SURGERY,CARE ESTABLISHMENT,PH Contraception,SH Contraception -  Long Acting Reversible Contraception,Professional Fees and Hired Services
Cambridgeshire County Council,05-Nov-21,51301669641,767.52,CROMWELL PLACE SURGERY,CARE ESTABLISHMENT,PH Contraception,SH Contraception -  Long Acting Reversible Contraception,Professional Fees and Hired Services
Cambridgeshire County Council,05-Nov-21,51301669640,852.80,GRANTA MEDICAL PRACTICE,OTHER PUBLIC BODIES,PH Contraception,SH Contraception -  Long Acting Reversible Contraception,Professional Fees and Hired Services
Cambridgeshire County Council,05-Nov-21,51301669639,"1,364.48",GEORGE CLARE SURGERY,CARE ESTABLISHMENT,PH Contraception,SH Contraception -  Long Acting Reversible Contraception,Professional Fees and Hired Services
Cambridgeshire County Council,05-Nov-21,51301669637,"1,193.92",DODDINGTON MEDICAL CENTRE,CARE ESTABLISHMENT,PH Contraception,SH Contraception -  Long Acting Reversible Contraception,Professional Fees and Hired Services
Cambridgeshire County Council,05-Nov-21,51301669636,938.08,EAST BARNWELL HEALTH CENTRE,CARE ESTABLISHMENT,PH Contraception,SH Contraception -  Long Acting Reversible Contraception,Professional Fees and Hired Services
Cambridgeshire County Council,05-Nov-21,51301669633,"1,023.36",CATHEDRAL MEDICAL CENTRE,CARE ESTABLISHMENT,PH Contraception,SH Contraception -  Long Acting Reversible Contraception,Professional Fees and Hired Services
Cambridgeshire County Council,05-Nov-21,51301669631,511.68,Redacted Personal Data ,INDIVIDUAL,PH Contraception,SH Contraception -  Long Acting Reversible Contraception,Professional Fees and Hired Services
Cambridgeshire County Council,05-Nov-21,51301669626,767.52,Redacted Personal Data ,INDIVIDUAL,PH Contraception,SH Contraception -  Long Acting Reversible Contraception,Professional Fees and Hired Services
Cambridgeshire County Council,05-Nov-21,51301669625,682.24,ALCONBURY & BRAMPTON SURGERIES,CARE ESTABLISHMENT,PH Contraception,SH Contraception -  Long Acting Reversible Contraception,Professional Fees and Hired Services
Cambridgeshire County Council,05-Nov-21,51301669621,554.06,WELLSIDE SURGERY,TRADE SUPPLIER,PH Contraception,SH Contraception -  Long Acting Reversible Contraception,Professional Fees and Hired Services
Cambridgeshire County Council,05-Nov-21,51301669619,639.30,TRUMPINGTON ST MEDICAL PRACTICE,CARE ESTABLISHMENT,PH Contraception,SH Contraception -  Long Acting Reversible Contraception,Professional Fees and Hired Services
Cambridgeshire County Council,05-Nov-21,51301669618,639.30,TRINITY SURGERY,CARE ESTABLISHMENT,PH Contraception,SH Contraception -  Long Acting Reversible Contraception,Professional Fees and Hired Services
Cambridgeshire County Council,05-Nov-21,51301669617,639.30,STAPLOE MEDICAL SERVICES LTD,TRADE SUPPLIER,PH Contraception,SH Contraception -  Long Acting Reversible Contraception,Professional Fees and Hired Services
Cambridgeshire County Council,05-Nov-21,51301669613,554.06,THE CORNERSTONE PRACTICE,CARE ESTABLISHMENT,PH Contraception,SH Contraception -  Long Acting Reversible Contraception,Professional Fees and Hired Services
Cambridgeshire County Council,05-Nov-21,51301669611,639.30,ACORN SURGERY,CARE ESTABLISHMENT,PH Contraception,SH Contraception -  Long Acting Reversible Contraception,Professional Fees and Hired Services
Cambridgeshire County Council,05-Nov-21,51301669609,511.44,MALLING HEALTH (UK),CARE ESTABLISHMENT,PH Contraception,SH Contraception -  Long Acting Reversible Contraception,Professional Fees and Hired Services
Cambridgeshire County Council,05-Nov-21,51301669607,596.68,THE ORCHARD SURGERY,CARE ESTABLISHMENT,PH Contraception,SH Contraception -  Long Acting Reversible Contraception,Professional Fees and Hired Services
Cambridgeshire County Council,05-Nov-21,51301669604,511.44,PRIORY FIELDS SURGERY,CARE ESTABLISHMENT,PH Contraception,SH Contraception -  Long Acting Reversible Contraception,Professional Fees and Hired Services
Cambridgeshire County Council,05-Nov-21,51301669588,"1,491.70",CEDAR HOUSE SURGERY,CARE ESTABLISHMENT,PH Contraception,SH Contraception -  Long Acting Reversible Contraception,Professional Fees and Hired Services
Cambridgeshire County Council,05-Nov-21,51301669581,511.44,GEORGE CLARE SURGERY,CARE ESTABLISHMENT,PH Contraception,SH Contraception -  Long Acting Reversible Contraception,Professional Fees and Hired Services
Cambridgeshire County Council,05-Nov-21,51301669579,639.30,DODDINGTON MEDICAL CENTRE,CARE ESTABLISHMENT,PH Contraception,SH Contraception -  Long Acting Reversible Contraception,Professional Fees and Hired Services
Cambridgeshire County Council,05-Nov-21,51301669569,681.92,Redacted Personal Data ,INDIVIDUAL,PH Contraception,SH Contraception -  Long Acting Reversible Contraception,Professional Fees and Hired Services
Cambridgeshire County Council,05-Nov-21,51301669567,"1,100.00",WOODLANDS CARE CENTRE,CARE ESTABLISHMENT,OP - City & South Locality - Cost of Care,Older People - City & South - Care,Nursing Care
Cambridgeshire County Council,05-Nov-21,51301669567,"1,100.00",WOODLANDS CARE CENTRE,CARE ESTABLISHMENT,OP - City & South Locality - Cost of Care,Older People - City & South - Care,Nursing Care
Cambridgeshire County Council,05-Nov-21,51301669567,"1,100.00",WOODLANDS CARE CENTRE,CARE ESTABLISHMENT,OP - City & South Locality - Cost of Care,Older People - City & South - Care,Nursing Care
Cambridgeshire County Council,05-Nov-21,51301669567,"1,100.00",WOODLANDS CARE CENTRE,CARE ESTABLISHMENT,OP - City & South Locality - Cost of Care,Older People - City & South - Care,Nursing Care
Cambridgeshire County Council,05-Nov-21,51301669567,"1,100.00",WOODLANDS CARE CENTRE,CARE ESTABLISHMENT,OP - City & South Locality - Cost of Care,Older People - City & South - Care,Nursing Care
Cambridgeshire County Council,05-Nov-21,51301669566,750.00,CLOVELLY HOUSE RESIDENTIAL HOME,CARE ESTABLISHMENT,OP - Fenland Locality - Cost of Care,Older People - Fenland - Care,Residential Care
Cambridgeshire County Council,05-Nov-21,51301669566,750.00,CLOVELLY HOUSE RESIDENTIAL HOME,CARE ESTABLISHMENT,OP - Fenland Locality - Cost of Care,Older People - Fenland - Care,Residential Care
Cambridgeshire County Council,05-Nov-21,51301669566,750.00,CLOVELLY HOUSE RESIDENTIAL HOME,CARE ESTABLISHMENT,OP - Fenland Locality - Cost of Care,Older People - Fenland - Care,Residential Care
Cambridgeshire County Council,05-Nov-21,51301669566,750.00,CLOVELLY HOUSE RESIDENTIAL HOME,CARE ESTABLISHMENT,OP - Fenland Locality - Cost of Care,Older People - Fenland - Care,Residential Care
Cambridgeshire County Council,05-Nov-21,51301669566,750.00,CLOVELLY HOUSE RESIDENTIAL HOME,CARE ESTABLISHMENT,OP - Fenland Locality - Cost of Care,Older People - Fenland - Care,Residential Care
Cambridgeshire County Council,05-Nov-21,51301669566,750.00,CLOVELLY HOUSE RESIDENTIAL HOME,CARE ESTABLISHMENT,OP - Fenland Locality - Cost of Care,Older People - Fenland - Care,Residential Care
Cambridgeshire County Council,05-Nov-21,51301669566,750.00,CLOVELLY HOUSE RESIDENTIAL HOME,CARE ESTABLISHMENT,OP - Fenland Locality - Cost of Care,Older People - Fenland - Care,Residential Care
Cambridgeshire County Council,05-Nov-21,51301669566,750.00,CLOVELLY HOUSE RESIDENTIAL HOME,CARE ESTABLISHMENT,OP - Fenland Locality - Cost of Care,Older People - Fenland - Care,Residential Care
Cambridgeshire County Council,05-Nov-21,51301669566,750.00,CLOVELLY HOUSE RESIDENTIAL HOME,CARE ESTABLISHMENT,OP - Fenland Locality - Cost of Care,Older People - Fenland - Care,Residential Care
Cambridgeshire County Council,05-Nov-21,51301669565,"1,031.40",ROSE LODGE,CARE ESTABLISHMENT,OP - Fenland Locality - Cost of Care,Older People - Fenland - Care,Nursing Care
Cambridgeshire County Council,05-Nov-21,51301669565,"1,031.40",ROSE LODGE,CARE ESTABLISHMENT,OP - Fenland Locality - Cost of Care,Older People - Fenland - Care,Nursing Care
Cambridgeshire County Council,05-Nov-21,51301669565,"1,031.40",ROSE LODGE,CARE ESTABLISHMENT,OP - Fenland Locality - Cost of Care,Older People - Fenland - Care,Nursing Care
Cambridgeshire County Council,05-Nov-21,51301669565,"1,031.40",ROSE LODGE,CARE ESTABLISHMENT,OP - Fenland Locality - Cost of Care,Older People - Fenland - Care,Nursing Care
Cambridgeshire County Council,05-Nov-21,51301669565,"1,031.40",ROSE LODGE,CARE ESTABLISHMENT,OP - Fenland Locality - Cost of Care,Older People - Fenland - Care,Nursing Care
Cambridgeshire County Council,05-Nov-21,51301669565,"1,031.40",ROSE LODGE,CARE ESTABLISHMENT,OP - Fenland Locality - Cost of Care,Older People - Fenland - Care,Nursing Care
Cambridgeshire County Council,05-Nov-21,51301669564,657.14,WOODLANDS CARE CENTRE,CARE ESTABLISHMENT,Physical Disablity - Cost of Care,Countywide PD Service - Care,Nursing Care
Cambridgeshire County Council,05-Nov-21,51301669564,"1,150.00",WOODLANDS CARE CENTRE,CARE ESTABLISHMENT,Physical Disablity - Cost of Care,Countywide PD Service - Care,Nursing Care
Cambridgeshire County Council,05-Nov-21,51301669564,"1,150.00",WOODLANDS CARE CENTRE,CARE ESTABLISHMENT,Physical Disablity - Cost of Care,Countywide PD Service - Care,Nursing Care
Cambridgeshire County Council,05-Nov-21,51301669564,"1,150.00",WOODLANDS CARE CENTRE,CARE ESTABLISHMENT,Physical Disablity - Cost of Care,Countywide PD Service - Care,Nursing Care
Cambridgeshire County Council,05-Nov-21,51301669564,"1,150.00",WOODLANDS CARE CENTRE,CARE ESTABLISHMENT,Physical Disablity - Cost of Care,Countywide PD Service - Care,Nursing Care
Cambridgeshire County Council,05-Nov-21,51301669564,"1,150.00",WOODLANDS CARE CENTRE,CARE ESTABLISHMENT,Physical Disablity - Cost of Care,Countywide PD Service - Care,Nursing Care
Cambridgeshire County Council,05-Nov-21,51301669564,"1,150.00",WOODLANDS CARE CENTRE,CARE ESTABLISHMENT,Physical Disablity - Cost of Care,Countywide PD Service - Care,Nursing Care
Cambridgeshire County Council,05-Nov-21,51301669564,"1,150.00",WOODLANDS CARE CENTRE,CARE ESTABLISHMENT,Physical Disablity - Cost of Care,Countywide PD Service - Care,Nursing Care
Cambridgeshire County Council,05-Nov-21,51301669564,"1,150.00",WOODLANDS CARE CENTRE,CARE ESTABLISHMENT,Physical Disablity - Cost of Care,Countywide PD Service - Care,Nursing Care
Cambridgeshire County Council,05-Nov-21,51301669564,"1,150.00",WOODLANDS CARE CENTRE,CARE ESTABLISHMENT,Physical Disablity - Cost of Care,Countywide PD Service - Care,Nursing Care
Cambridgeshire County Council,05-Nov-21,51301669564,"1,150.00",WOODLANDS CARE CENTRE,CARE ESTABLISHMENT,Physical Disablity - Cost of Care,Countywide PD Service - Care,Nursing Care
Cambridgeshire County Council,05-Nov-21,51301669564,"1,150.00",WOODLANDS CARE CENTRE,CARE ESTABLISHMENT,Physical Disablity - Cost of Care,Countywide PD Service - Care,Nursing Care
Cambridgeshire County Council,05-Nov-21,51301669563,642.86,THE CAMBRIDGE HOUSING SOCIETY LTD,CARE ESTABLISHMENT,OP - City & South Locality - Cost of Care,Older People - City & South - Care,Residential Care
Cambridgeshire County Council,05-Nov-21,51301669563,750.00,THE CAMBRIDGE HOUSING SOCIETY LTD,CARE ESTABLISHMENT,OP - City & South Locality - Cost of Care,Older People - City & South - Care,Residential Care
Cambridgeshire County Council,05-Nov-21,51301669563,750.00,THE CAMBRIDGE HOUSING SOCIETY LTD,CARE ESTABLISHMENT,OP - City & South Locality - Cost of Care,Older People - City & South - Care,Residential Care
Cambridgeshire County Council,05-Nov-21,51301669563,750.00,THE CAMBRIDGE HOUSING SOCIETY LTD,CARE ESTABLISHMENT,OP - City & South Locality - Cost of Care,Older People - City & South - Care,Residential Care
Cambridgeshire County Council,05-Nov-21,51301669563,750.00,THE CAMBRIDGE HOUSING SOCIETY LTD,CARE ESTABLISHMENT,OP - City & South Locality - Cost of Care,Older People - City & South - Care,Residential Care
Cambridgeshire County Council,05-Nov-21,51301669563,750.00,THE CAMBRIDGE HOUSING SOCIETY LTD,CARE ESTABLISHMENT,OP - City & South Locality - Cost of Care,Older People - City & South - Care,Residential Care
Cambridgeshire County Council,05-Nov-21,51301669562,800.00,THE CAMBRIDGE HOUSING SOCIETY LTD,CARE ESTABLISHMENT,OPMH - City & South,Older People Mental Health City & South,Residential Care
Cambridgeshire County Council,05-Nov-21,51301669562,800.00,THE CAMBRIDGE HOUSING SOCIETY LTD,CARE ESTABLISHMENT,OPMH - City & South,Older People Mental Health City & South,Residential Care
Cambridgeshire County Council,05-Nov-21,51301669562,800.00,THE CAMBRIDGE HOUSING SOCIETY LTD,CARE ESTABLISHMENT,OPMH - City & South,Older People Mental Health City & South,Residential Care
Cambridgeshire County Council,05-Nov-21,51301669562,800.00,THE CAMBRIDGE HOUSING SOCIETY LTD,CARE ESTABLISHMENT,OPMH - City & South,Older People Mental Health City & South,Residential Care
Cambridgeshire County Council,05-Nov-21,51301669562,800.00,THE CAMBRIDGE HOUSING SOCIETY LTD,CARE ESTABLISHMENT,OPMH - City & South,Older People Mental Health City & South,Residential Care
Cambridgeshire County Council,05-Nov-21,51301669562,800.00,THE CAMBRIDGE HOUSING SOCIETY LTD,CARE ESTABLISHMENT,OPMH - City & South,Older People Mental Health City & South,Residential Care
Cambridgeshire County Council,05-Nov-21,51301669561,900.00,ROSE LODGE,CARE ESTABLISHMENT,OP - Fenland Locality - Cost of Care,Older People - Fenland - Care,Residential Care
Cambridgeshire County Council,05-Nov-21,51301669561,900.00,ROSE LODGE,CARE ESTABLISHMENT,OP - Fenland Locality - Cost of Care,Older People - Fenland - Care,Residential Care
Cambridgeshire County Council,05-Nov-21,51301669561,900.00,ROSE LODGE,CARE ESTABLISHMENT,OP - Fenland Locality - Cost of Care,Older People - Fenland - Care,Residential Care
Cambridgeshire County Council,05-Nov-21,51301669561,900.00,ROSE LODGE,CARE ESTABLISHMENT,OP - Fenland Locality - Cost of Care,Older People - Fenland - Care,Residential Care
Cambridgeshire County Council,05-Nov-21,51301669561,900.00,ROSE LODGE,CARE ESTABLISHMENT,OP - Fenland Locality - Cost of Care,Older People - Fenland - Care,Residential Care
Cambridgeshire County Council,05-Nov-21,51301669561,900.00,ROSE LODGE,CARE ESTABLISHMENT,OP - Fenland Locality - Cost of Care,Older People - Fenland - Care,Residential Care
Cambridgeshire County Council,05-Nov-21,51301669561,900.00,ROSE LODGE,CARE ESTABLISHMENT,OP - Fenland Locality - Cost of Care,Older People - Fenland - Care,Residential Care
Cambridgeshire County Council,05-Nov-21,51301669561,900.00,ROSE LODGE,CARE ESTABLISHMENT,OP - Fenland Locality - Cost of Care,Older People - Fenland - Care,Residential Care
Cambridgeshire County Council,05-Nov-21,51301669561,900.00,ROSE LODGE,CARE ESTABLISHMENT,OP - Fenland Locality - Cost of Care,Older People - Fenland - Care,Residential Care
Cambridgeshire County Council,05-Nov-21,51301669560,578.51,BARCHESTER HEALTHCARE HOMES LTD,CARE ESTABLISHMENT,OP - East Cambs Locality - Cost of Care,East Cambs - O P Team - Care,Nursing Care
Cambridgeshire County Council,05-Nov-21,51301669560,"1,012.40",BARCHESTER HEALTHCARE HOMES LTD,CARE ESTABLISHMENT,OP - East Cambs Locality - Cost of Care,East Cambs - O P Team - Care,Nursing Care
Cambridgeshire County Council,05-Nov-21,51301669560,"1,012.40",BARCHESTER HEALTHCARE HOMES LTD,CARE ESTABLISHMENT,OP - East Cambs Locality - Cost of Care,East Cambs - O P Team - Care,Nursing Care
Cambridgeshire County Council,05-Nov-21,51301669560,"1,012.40",BARCHESTER HEALTHCARE HOMES LTD,CARE ESTABLISHMENT,OP - East Cambs Locality - Cost of Care,East Cambs - O P Team - Care,Nursing Care
Cambridgeshire County Council,05-Nov-21,51301669560,"1,012.40",BARCHESTER HEALTHCARE HOMES LTD,CARE ESTABLISHMENT,OP - East Cambs Locality - Cost of Care,East Cambs - O P Team - Care,Nursing Care
Cambridgeshire County Council,05-Nov-21,51301669560,"1,012.40",BARCHESTER HEALTHCARE HOMES LTD,CARE ESTABLISHMENT,OP - East Cambs Locality - Cost of Care,East Cambs - O P Team - Care,Nursing Care
Cambridgeshire County Council,05-Nov-21,51301669560,"1,012.40",BARCHESTER HEALTHCARE HOMES LTD,CARE ESTABLISHMENT,OP - East Cambs Locality - Cost of Care,East Cambs - O P Team - Care,Nursing Care
Cambridgeshire County Council,05-Nov-21,51301669560,"1,012.40",BARCHESTER HEALTHCARE HOMES LTD,CARE ESTABLISHMENT,OP - East Cambs Locality - Cost of Care,East Cambs - O P Team - Care,Nursing Care
Cambridgeshire County Council,05-Nov-21,51301669560,"1,012.40",BARCHESTER HEALTHCARE HOMES LTD,CARE ESTABLISHMENT,OP - East Cambs Locality - Cost of Care,East Cambs - O P Team - Care,Nursing Care
Cambridgeshire County Council,05-Nov-21,51301669560,"1,012.40",BARCHESTER HEALTHCARE HOMES LTD,CARE ESTABLISHMENT,OP - East Cambs Locality - Cost of Care,East Cambs - O P Team - Care,Nursing Care
Cambridgeshire County Council,05-Nov-21,51301669560,"1,012.40",BARCHESTER HEALTHCARE HOMES LTD,CARE ESTABLISHMENT,OP - East Cambs Locality - Cost of Care,East Cambs - O P Team - Care,Nursing Care
Cambridgeshire County Council,05-Nov-21,51301669560,"1,012.40",BARCHESTER HEALTHCARE HOMES LTD,CARE ESTABLISHMENT,OP - East Cambs Locality - Cost of Care,East Cambs - O P Team - Care,Nursing Care
Cambridgeshire County Council,05-Nov-21,51301669560,"1,012.40",BARCHESTER HEALTHCARE HOMES LTD,CARE ESTABLISHMENT,OP - East Cambs Locality - Cost of Care,East Cambs - O P Team - Care,Nursing Care
Cambridgeshire County Council,05-Nov-21,51301669560,"1,012.40",BARCHESTER HEALTHCARE HOMES LTD,CARE ESTABLISHMENT,OP - East Cambs Locality - Cost of Care,East Cambs - O P Team - Care,Nursing Care
Cambridgeshire County Council,05-Nov-21,51301669560,"1,012.40",BARCHESTER HEALTHCARE HOMES LTD,CARE ESTABLISHMENT,OP - East Cambs Locality - Cost of Care,East Cambs - O P Team - Care,Nursing Care
Cambridgeshire County Council,05-Nov-21,51301669560,"1,012.40",BARCHESTER HEALTHCARE HOMES LTD,CARE ESTABLISHMENT,OP - East Cambs Locality - Cost of Care,East Cambs - O P Team - Care,Nursing Care
Cambridgeshire County Council,05-Nov-21,51301669560,"1,012.40",BARCHESTER HEALTHCARE HOMES LTD,CARE ESTABLISHMENT,OP - East Cambs Locality - Cost of Care,East Cambs - O P Team - Care,Nursing Care
Cambridgeshire County Council,05-Nov-21,51301669560,"1,012.40",BARCHESTER HEALTHCARE HOMES LTD,CARE ESTABLISHMENT,OP - East Cambs Locality - Cost of Care,East Cambs - O P Team - Care,Nursing Care
Cambridgeshire County Council,05-Nov-21,51301669560,"1,012.40",BARCHESTER HEALTHCARE HOMES LTD,CARE ESTABLISHMENT,OP - East Cambs Locality - Cost of Care,East Cambs - O P Team - Care,Nursing Care
Cambridgeshire County Council,05-Nov-21,51301669560,"1,012.40",BARCHESTER HEALTHCARE HOMES LTD,CARE ESTABLISHMENT,OP - East Cambs Locality - Cost of Care,East Cambs - O P Team - Care,Nursing Care
Cambridgeshire County Council,05-Nov-21,51301669560,"1,012.40",BARCHESTER HEALTHCARE HOMES LTD,CARE ESTABLISHMENT,OP - East Cambs Locality - Cost of Care,East Cambs - O P Team - Care,Nursing Care
Cambridgeshire County Council,05-Nov-21,51301669560,"1,012.40",BARCHESTER HEALTHCARE HOMES LTD,CARE ESTABLISHMENT,OP - East Cambs Locality - Cost of Care,East Cambs - O P Team - Care,Nursing Care
Cambridgeshire County Council,05-Nov-21,51301669560,"1,012.40",BARCHESTER HEALTHCARE HOMES LTD,CARE ESTABLISHMENT,OP - East Cambs Locality - Cost of Care,East Cambs - O P Team - Care,Nursing Care
Cambridgeshire County Council,05-Nov-21,51301669560,"1,012.40",BARCHESTER HEALTHCARE HOMES LTD,CARE ESTABLISHMENT,OP - East Cambs Locality - Cost of Care,East Cambs - O P Team - Care,Nursing Care
Cambridgeshire County Council,05-Nov-21,51301669560,"1,012.40",BARCHESTER HEALTHCARE HOMES LTD,CARE ESTABLISHMENT,OP - East Cambs Locality - Cost of Care,East Cambs - O P Team - Care,Nursing Care
Cambridgeshire County Council,05-Nov-21,51301669560,"1,012.40",BARCHESTER HEALTHCARE HOMES LTD,CARE ESTABLISHMENT,OP - East Cambs Locality - Cost of Care,East Cambs - O P Team - Care,Nursing Care
Cambridgeshire County Council,05-Nov-21,51301669560,"1,012.40",BARCHESTER HEALTHCARE HOMES LTD,CARE ESTABLISHMENT,OP - East Cambs Locality - Cost of Care,East Cambs - O P Team - Care,Nursing Care
Cambridgeshire County Council,05-Nov-21,51301669560,"1,012.40",BARCHESTER HEALTHCARE HOMES LTD,CARE ESTABLISHMENT,OP - East Cambs Locality - Cost of Care,East Cambs - O P Team - Care,Nursing Care
Cambridgeshire County Council,05-Nov-21,51301669560,"1,012.40",BARCHESTER HEALTHCARE HOMES LTD,CARE ESTABLISHMENT,OP - East Cambs Locality - Cost of Care,East Cambs - O P Team - Care,Nursing Care
Cambridgeshire County Council,05-Nov-21,51301669560,"1,012.40",BARCHESTER HEALTHCARE HOMES LTD,CARE ESTABLISHMENT,OP - East Cambs Locality - Cost of Care,East Cambs - O P Team - Care,Nursing Care
Cambridgeshire County Council,05-Nov-21,51301669559,-716.08,ROSE LODGE,CARE ESTABLISHMENT,OP - Fenland Locality - Cost of Care,Older People - Fenland - Care,Nursing Care
Cambridgeshire County Council,05-Nov-21,51301669559,-716.08,ROSE LODGE,CARE ESTABLISHMENT,OP - Fenland Locality - Cost of Care,Older People - Fenland - Care,Nursing Care
Cambridgeshire County Council,05-Nov-21,51301669559,-716.08,ROSE LODGE,CARE ESTABLISHMENT,OP - Fenland Locality - Cost of Care,Older People - Fenland - Care,Nursing Care
Cambridgeshire County Council,05-Nov-21,51301669559,-716.08,ROSE LODGE,CARE ESTABLISHMENT,OP - Fenland Locality - Cost of Care,Older People - Fenland - Care,Nursing Care
Cambridgeshire County Council,05-Nov-21,51301669559,-716.08,ROSE LODGE,CARE ESTABLISHMENT,OP - Fenland Locality - Cost of Care,Older People - Fenland - Care,Nursing Care
Cambridgeshire County Council,05-Nov-21,51301669559,-716.08,ROSE LODGE,CARE ESTABLISHMENT,OP - Fenland Locality - Cost of Care,Older People - Fenland - Care,Nursing Care
Cambridgeshire County Council,05-Nov-21,51301669559,-716.08,ROSE LODGE,CARE ESTABLISHMENT,OP - Fenland Locality - Cost of Care,Older People - Fenland - Care,Nursing Care
Cambridgeshire County Council,05-Nov-21,51301669559,-716.08,ROSE LODGE,CARE ESTABLISHMENT,OP - Fenland Locality - Cost of Care,Older People - Fenland - Care,Nursing Care
Cambridgeshire County Council,05-Nov-21,51301669559,-716.08,ROSE LODGE,CARE ESTABLISHMENT,OP - Fenland Locality - Cost of Care,Older People - Fenland - Care,Nursing Care
Cambridgeshire County Council,05-Nov-21,51301669558,"-1,100.00",WOODLANDS CARE CENTRE,CARE ESTABLISHMENT,OP - East Cambs Locality - Cost of Care,East Cambs - O P Team - Care,Nursing Care
Cambridgeshire County Council,05-Nov-21,51301669558,"-1,100.00",WOODLANDS CARE CENTRE,CARE ESTABLISHMENT,OP - East Cambs Locality - Cost of Care,East Cambs - O P Team - Care,Nursing Care
Cambridgeshire County Council,05-Nov-21,51301669558,"-1,100.00",WOODLANDS CARE CENTRE,CARE ESTABLISHMENT,OP - East Cambs Locality - Cost of Care,East Cambs - O P Team - Care,Nursing Care
Cambridgeshire County Council,05-Nov-21,51301669558,"-1,100.00",WOODLANDS CARE CENTRE,CARE ESTABLISHMENT,OP - East Cambs Locality - Cost of Care,East Cambs - O P Team - Care,Nursing Care
Cambridgeshire County Council,05-Nov-21,51301669558,"-1,100.00",WOODLANDS CARE CENTRE,CARE ESTABLISHMENT,OP - East Cambs Locality - Cost of Care,East Cambs - O P Team - Care,Nursing Care
Cambridgeshire County Council,05-Nov-21,51301669557,"5,459.81",THE CAMBRIDGE NURSING CENTRE,CARE ESTABLISHMENT,Physical Disablity - Cost of Care,Countywide PD Service - Care,Nursing Care
Cambridgeshire County Council,05-Nov-21,51301669556,"-1,539.00",OAKLANDS,CARE ESTABLISHMENT,LD - Hunts Locality - Cost of Care,LD - Huntingdonshire - Care,Residential Care
Cambridgeshire County Council,05-Nov-21,51301669556,"-1,539.00",OAKLANDS,CARE ESTABLISHMENT,LD - Hunts Locality - Cost of Care,LD - Huntingdonshire - Care,Residential Care
Cambridgeshire County Council,05-Nov-21,51301669556,"-1,539.00",OAKLANDS,CARE ESTABLISHMENT,LD - Hunts Locality - Cost of Care,LD - Huntingdonshire - Care,Residential Care
Cambridgeshire County Council,05-Nov-21,51301669556,"-1,539.00",OAKLANDS,CARE ESTABLISHMENT,LD - Hunts Locality - Cost of Care,LD - Huntingdonshire - Care,Residential Care
Cambridgeshire County Council,05-Nov-21,51301669556,"-1,539.00",OAKLANDS,CARE ESTABLISHMENT,LD - Hunts Locality - Cost of Care,LD - Huntingdonshire - Care,Residential Care
Cambridgeshire County Council,05-Nov-21,51301669556,"-1,539.00",OAKLANDS,CARE ESTABLISHMENT,LD - Hunts Locality - Cost of Care,LD - Huntingdonshire - Care,Residential Care
Cambridgeshire County Council,05-Nov-21,51301669556,"-1,539.00",OAKLANDS,CARE ESTABLISHMENT,LD - Hunts Locality - Cost of Care,LD - Huntingdonshire - Care,Residential Care
Cambridgeshire County Council,05-Nov-21,51301669556,"-1,539.00",OAKLANDS,CARE ESTABLISHMENT,LD - Hunts Locality - Cost of Care,LD - Huntingdonshire - Care,Residential Care
Cambridgeshire County Council,05-Nov-21,51301669556,"-1,539.00",OAKLANDS,CARE ESTABLISHMENT,LD - Hunts Locality - Cost of Care,LD - Huntingdonshire - Care,Residential Care
Cambridgeshire County Council,05-Nov-21,51301669556,"-1,539.00",OAKLANDS,CARE ESTABLISHMENT,LD - Hunts Locality - Cost of Care,LD - Huntingdonshire - Care,Residential Care
Cambridgeshire County Council,05-Nov-21,51301669556,"-1,539.00",OAKLANDS,CARE ESTABLISHMENT,LD - Hunts Locality - Cost of Care,LD - Huntingdonshire - Care,Residential Care
Cambridgeshire County Council,05-Nov-21,51301669556,"-1,539.00",OAKLANDS,CARE ESTABLISHMENT,LD - Hunts Locality - Cost of Care,LD - Huntingdonshire - Care,Residential Care
Cambridgeshire County Council,05-Nov-21,51301669556,"-1,539.00",OAKLANDS,CARE ESTABLISHMENT,LD - Hunts Locality - Cost of Care,LD - Huntingdonshire - Care,Residential Care
Cambridgeshire County Council,05-Nov-21,51301669556,"-1,539.00",OAKLANDS,CARE ESTABLISHMENT,LD - Hunts Locality - Cost of Care,LD - Huntingdonshire - Care,Residential Care
Cambridgeshire County Council,05-Nov-21,51301669556,"-1,539.00",OAKLANDS,CARE ESTABLISHMENT,LD - Hunts Locality - Cost of Care,LD - Huntingdonshire - Care,Residential Care
Cambridgeshire County Council,05-Nov-21,51301669556,"-1,539.00",OAKLANDS,CARE ESTABLISHMENT,LD - Hunts Locality - Cost of Care,LD - Huntingdonshire - Care,Residential Care
Cambridgeshire County Council,05-Nov-21,51301669556,"-1,539.00",OAKLANDS,CARE ESTABLISHMENT,LD - Hunts Locality - Cost of Care,LD - Huntingdonshire - Care,Residential Care
Cambridgeshire County Council,05-Nov-21,51301669556,"-1,539.00",OAKLANDS,CARE ESTABLISHMENT,LD - Hunts Locality - Cost of Care,LD - Huntingdonshire - Care,Residential Care
Cambridgeshire County Council,05-Nov-21,51301669556,"-1,539.00",OAKLANDS,CARE ESTABLISHMENT,LD - Hunts Locality - Cost of Care,LD - Huntingdonshire - Care,Residential Care
Cambridgeshire County Council,05-Nov-21,51301669556,"-1,539.00",OAKLANDS,CARE ESTABLISHMENT,LD - Hunts Locality - Cost of Care,LD - Huntingdonshire - Care,Residential Care
Cambridgeshire County Council,05-Nov-21,51301669556,"-1,539.00",OAKLANDS,CARE ESTABLISHMENT,LD - Hunts Locality - Cost of Care,LD - Huntingdonshire - Care,Residential Care
Cambridgeshire County Council,05-Nov-21,51301669556,"-1,539.00",OAKLANDS,CARE ESTABLISHMENT,LD - Hunts Locality - Cost of Care,LD - Huntingdonshire - Care,Residential Care
Cambridgeshire County Council,05-Nov-21,51301669556,"-1,539.00",OAKLANDS,CARE ESTABLISHMENT,LD - Hunts Locality - Cost of Care,LD - Huntingdonshire - Care,Residential Care
Cambridgeshire County Council,05-Nov-21,51301669556,"-1,539.00",OAKLANDS,CARE ESTABLISHMENT,LD - Hunts Locality - Cost of Care,LD - Huntingdonshire - Care,Residential Care
Cambridgeshire County Council,05-Nov-21,51301669556,"-1,539.00",OAKLANDS,CARE ESTABLISHMENT,LD - Hunts Locality - Cost of Care,LD - Huntingdonshire - Care,Residential Care
Cambridgeshire County Council,05-Nov-21,51301669556,"-1,539.00",OAKLANDS,CARE ESTABLISHMENT,LD - Hunts Locality - Cost of Care,LD - Huntingdonshire - Care,Residential Care
Cambridgeshire County Council,05-Nov-21,51301669556,"-1,539.00",OAKLANDS,CARE ESTABLISHMENT,LD - Hunts Locality - Cost of Care,LD - Huntingdonshire - Care,Residential Care
Cambridgeshire County Council,05-Nov-21,51301669556,"-1,539.00",OAKLANDS,CARE ESTABLISHMENT,LD - Hunts Locality - Cost of Care,LD - Huntingdonshire - Care,Residential Care
Cambridgeshire County Council,05-Nov-21,51301669556,"-1,539.00",OAKLANDS,CARE ESTABLISHMENT,LD - Hunts Locality - Cost of Care,LD - Huntingdonshire - Care,Residential Care
Cambridgeshire County Council,05-Nov-21,51301669556,"-1,539.00",OAKLANDS,CARE ESTABLISHMENT,LD - Hunts Locality - Cost of Care,LD - Huntingdonshire - Care,Residential Care
Cambridgeshire County Council,05-Nov-21,51301669556,"-1,539.00",OAKLANDS,CARE ESTABLISHMENT,LD - Hunts Locality - Cost of Care,LD - Huntingdonshire - Care,Residential Care
Cambridgeshire County Council,05-Nov-21,51301669556,"-1,539.00",OAKLANDS,CARE ESTABLISHMENT,LD - Hunts Locality - Cost of Care,LD - Huntingdonshire - Care,Residential Care
Cambridgeshire County Council,05-Nov-21,51301669556,"-1,539.00",OAKLANDS,CARE ESTABLISHMENT,LD - Hunts Locality - Cost of Care,LD - Huntingdonshire - Care,Residential Care
Cambridgeshire County Council,05-Nov-21,51301669556,"-1,539.00",OAKLANDS,CARE ESTABLISHMENT,LD - Hunts Locality - Cost of Care,LD - Huntingdonshire - Care,Residential Care
Cambridgeshire County Council,05-Nov-21,51301669556,"-1,539.00",OAKLANDS,CARE ESTABLISHMENT,LD - Hunts Locality - Cost of Care,LD - Huntingdonshire - Care,Residential Care
Cambridgeshire County Council,05-Nov-21,51301669556,-659.57,OAKLANDS,CARE ESTABLISHMENT,LD - Hunts Locality - Cost of Care,LD - Huntingdonshire - Care,Residential Care
Cambridgeshire County Council,05-Nov-21,51301669556,682.65,OAKLANDS,CARE ESTABLISHMENT,LD - Hunts Locality - Cost of Care,LD - Huntingdonshire - Care,Residential Care
Cambridgeshire County Council,05-Nov-21,51301669556,"1,592.86",OAKLANDS,CARE ESTABLISHMENT,LD - Hunts Locality - Cost of Care,LD - Huntingdonshire - Care,Residential Care
Cambridgeshire County Council,05-Nov-21,51301669556,"1,592.86",OAKLANDS,CARE ESTABLISHMENT,LD - Hunts Locality - Cost of Care,LD - Huntingdonshire - Care,Residential Care
Cambridgeshire County Council,05-Nov-21,51301669556,"1,592.86",OAKLANDS,CARE ESTABLISHMENT,LD - Hunts Locality - Cost of Care,LD - Huntingdonshire - Care,Residential Care
Cambridgeshire County Council,05-Nov-21,51301669556,"1,592.86",OAKLANDS,CARE ESTABLISHMENT,LD - Hunts Locality - Cost of Care,LD - Huntingdonshire - Care,Residential Care
Cambridgeshire County Council,05-Nov-21,51301669556,"1,592.86",OAKLANDS,CARE ESTABLISHMENT,LD - Hunts Locality - Cost of Care,LD - Huntingdonshire - Care,Residential Care
Cambridgeshire County Council,05-Nov-21,51301669556,"1,592.86",OAKLANDS,CARE ESTABLISHMENT,LD - Hunts Locality - Cost of Care,LD - Huntingdonshire - Care,Residential Care
Cambridgeshire County Council,05-Nov-21,51301669556,"1,592.86",OAKLANDS,CARE ESTABLISHMENT,LD - Hunts Locality - Cost of Care,LD - Huntingdonshire - Care,Residential Care
Cambridgeshire County Council,05-Nov-21,51301669556,"1,592.86",OAKLANDS,CARE ESTABLISHMENT,LD - Hunts Locality - Cost of Care,LD - Huntingdonshire - Care,Residential Care
Cambridgeshire County Council,05-Nov-21,51301669556,"1,592.86",OAKLANDS,CARE ESTABLISHMENT,LD - Hunts Locality - Cost of Care,LD - Huntingdonshire - Care,Residential Care
Cambridgeshire County Council,05-Nov-21,51301669556,"1,592.86",OAKLANDS,CARE ESTABLISHMENT,LD - Hunts Locality - Cost of Care,LD - Huntingdonshire - Care,Residential Care
Cambridgeshire County Council,05-Nov-21,51301669556,"1,592.86",OAKLANDS,CARE ESTABLISHMENT,LD - Hunts Locality - Cost of Care,LD - Huntingdonshire - Care,Residential Care
Cambridgeshire County Council,05-Nov-21,51301669556,"1,592.86",OAKLANDS,CARE ESTABLISHMENT,LD - Hunts Locality - Cost of Care,LD - Huntingdonshire - Care,Residential Care
Cambridgeshire County Council,05-Nov-21,51301669556,"1,592.86",OAKLANDS,CARE ESTABLISHMENT,LD - Hunts Locality - Cost of Care,LD - Huntingdonshire - Care,Residential Care
Cambridgeshire County Council,05-Nov-21,51301669556,"1,592.86",OAKLANDS,CARE ESTABLISHMENT,LD - Hunts Locality - Cost of Care,LD - Huntingdonshire - Care,Residential Care
Cambridgeshire County Council,05-Nov-21,51301669556,"1,592.86",OAKLANDS,CARE ESTABLISHMENT,LD - Hunts Locality - Cost of Care,LD - Huntingdonshire - Care,Residential Care
Cambridgeshire County Council,05-Nov-21,51301669556,"1,592.86",OAKLANDS,CARE ESTABLISHMENT,LD - Hunts Locality - Cost of Care,LD - Huntingdonshire - Care,Residential Care
Cambridgeshire County Council,05-Nov-21,51301669556,"1,592.86",OAKLANDS,CARE ESTABLISHMENT,LD - Hunts Locality - Cost of Care,LD - Huntingdonshire - Care,Residential Care
Cambridgeshire County Council,05-Nov-21,51301669556,"1,592.86",OAKLANDS,CARE ESTABLISHMENT,LD - Hunts Locality - Cost of Care,LD - Huntingdonshire - Care,Residential Care
Cambridgeshire County Council,05-Nov-21,51301669556,"1,592.86",OAKLANDS,CARE ESTABLISHMENT,LD - Hunts Locality - Cost of Care,LD - Huntingdonshire - Care,Residential Care
Cambridgeshire County Council,05-Nov-21,51301669556,"1,592.86",OAKLANDS,CARE ESTABLISHMENT,LD - Hunts Locality - Cost of Care,LD - Huntingdonshire - Care,Residential Care
Cambridgeshire County Council,05-Nov-21,51301669556,"1,592.86",OAKLANDS,CARE ESTABLISHMENT,LD - Hunts Locality - Cost of Care,LD - Huntingdonshire - Care,Residential Care
Cambridgeshire County Council,05-Nov-21,51301669556,"1,592.86",OAKLANDS,CARE ESTABLISHMENT,LD - Hunts Locality - Cost of Care,LD - Huntingdonshire - Care,Residential Care
Cambridgeshire County Council,05-Nov-21,51301669556,"1,592.86",OAKLANDS,CARE ESTABLISHMENT,LD - Hunts Locality - Cost of Care,LD - Huntingdonshire - Care,Residential Care
Cambridgeshire County Council,05-Nov-21,51301669556,"1,592.86",OAKLANDS,CARE ESTABLISHMENT,LD - Hunts Locality - Cost of Care,LD - Huntingdonshire - Care,Residential Care
Cambridgeshire County Council,05-Nov-21,51301669556,"1,592.86",OAKLANDS,CARE ESTABLISHMENT,LD - Hunts Locality - Cost of Care,LD - Huntingdonshire - Care,Residential Care
Cambridgeshire County Council,05-Nov-21,51301669556,"1,592.86",OAKLANDS,CARE ESTABLISHMENT,LD - Hunts Locality - Cost of Care,LD - Huntingdonshire - Care,Residential Care
Cambridgeshire County Council,05-Nov-21,51301669556,"1,592.86",OAKLANDS,CARE ESTABLISHMENT,LD - Hunts Locality - Cost of Care,LD - Huntingdonshire - Care,Residential Care
Cambridgeshire County Council,05-Nov-21,51301669556,"1,592.86",OAKLANDS,CARE ESTABLISHMENT,LD - Hunts Locality - Cost of Care,LD - Huntingdonshire - Care,Residential Care
Cambridgeshire County Council,05-Nov-21,51301669556,"1,592.86",OAKLANDS,CARE ESTABLISHMENT,LD - Hunts Locality - Cost of Care,LD - Huntingdonshire - Care,Residential Care
Cambridgeshire County Council,05-Nov-21,51301669556,"1,592.86",OAKLANDS,CARE ESTABLISHMENT,LD - Hunts Locality - Cost of Care,LD - Huntingdonshire - Care,Residential Care
Cambridgeshire County Council,05-Nov-21,51301669556,"1,592.86",OAKLANDS,CARE ESTABLISHMENT,LD - Hunts Locality - Cost of Care,LD - Huntingdonshire - Care,Residential Care
Cambridgeshire County Council,05-Nov-21,51301669556,"1,592.86",OAKLANDS,CARE ESTABLISHMENT,LD - Hunts Locality - Cost of Care,LD - Huntingdonshire - Care,Residential Care
Cambridgeshire County Council,05-Nov-21,51301669556,"1,592.86",OAKLANDS,CARE ESTABLISHMENT,LD - Hunts Locality - Cost of Care,LD - Huntingdonshire - Care,Residential Care
Cambridgeshire County Council,05-Nov-21,51301669556,"1,592.86",OAKLANDS,CARE ESTABLISHMENT,LD - Hunts Locality - Cost of Care,LD - Huntingdonshire - Care,Residential Care
Cambridgeshire County Council,05-Nov-21,51301669556,"1,592.86",OAKLANDS,CARE ESTABLISHMENT,LD - Hunts Locality - Cost of Care,LD - Huntingdonshire - Care,Residential Care
Cambridgeshire County Council,05-Nov-21,51301669554,-697.63,ALAN ATCHISON RESIDENTIAL SERVICES (DAVIDS CLOSE 2),CARE ESTABLISHMENT,LD - Hunts Locality - Cost of Care,LD - Huntingdonshire - Care,Residential Care
Cambridgeshire County Council,05-Nov-21,51301669554,-697.63,ALAN ATCHISON RESIDENTIAL SERVICES (DAVIDS CLOSE 2),CARE ESTABLISHMENT,LD - Hunts Locality - Cost of Care,LD - Huntingdonshire - Care,Residential Care
Cambridgeshire County Council,05-Nov-21,51301669554,-697.63,ALAN ATCHISON RESIDENTIAL SERVICES (DAVIDS CLOSE 2),CARE ESTABLISHMENT,LD - Hunts Locality - Cost of Care,LD - Huntingdonshire - Care,Residential Care
Cambridgeshire County Council,05-Nov-21,51301669554,-697.63,ALAN ATCHISON RESIDENTIAL SERVICES (DAVIDS CLOSE 2),CARE ESTABLISHMENT,LD - Hunts Locality - Cost of Care,LD - Huntingdonshire - Care,Residential Care
Cambridgeshire County Council,05-Nov-21,51301669554,-697.63,ALAN ATCHISON RESIDENTIAL SERVICES (DAVIDS CLOSE 2),CARE ESTABLISHMENT,LD - Hunts Locality - Cost of Care,LD - Huntingdonshire - Care,Residential Care
Cambridgeshire County Council,05-Nov-21,51301669554,-697.63,ALAN ATCHISON RESIDENTIAL SERVICES (DAVIDS CLOSE 2),CARE ESTABLISHMENT,LD - Hunts Locality - Cost of Care,LD - Huntingdonshire - Care,Residential Care
Cambridgeshire County Council,05-Nov-21,51301669554,-697.63,ALAN ATCHISON RESIDENTIAL SERVICES (DAVIDS CLOSE 2),CARE ESTABLISHMENT,LD - Hunts Locality - Cost of Care,LD - Huntingdonshire - Care,Residential Care
Cambridgeshire County Council,05-Nov-21,51301669554,-697.63,ALAN ATCHISON RESIDENTIAL SERVICES (DAVIDS CLOSE 2),CARE ESTABLISHMENT,LD - Hunts Locality - Cost of Care,LD - Huntingdonshire - Care,Residential Care
Cambridgeshire County Council,05-Nov-21,51301669554,-697.63,ALAN ATCHISON RESIDENTIAL SERVICES (DAVIDS CLOSE 2),CARE ESTABLISHMENT,LD - Hunts Locality - Cost of Care,LD - Huntingdonshire - Care,Residential Care
Cambridgeshire County Council,05-Nov-21,51301669554,-697.63,ALAN ATCHISON RESIDENTIAL SERVICES (DAVIDS CLOSE 2),CARE ESTABLISHMENT,LD - Hunts Locality - Cost of Care,LD - Huntingdonshire - Care,Residential Care
Cambridgeshire County Council,05-Nov-21,51301669554,-697.63,ALAN ATCHISON RESIDENTIAL SERVICES (DAVIDS CLOSE 2),CARE ESTABLISHMENT,LD - Hunts Locality - Cost of Care,LD - Huntingdonshire - Care,Residential Care
Cambridgeshire County Council,05-Nov-21,51301669554,-697.63,ALAN ATCHISON RESIDENTIAL SERVICES (DAVIDS CLOSE 2),CARE ESTABLISHMENT,LD - Hunts Locality - Cost of Care,LD - Huntingdonshire - Care,Residential Care
Cambridgeshire County Council,05-Nov-21,51301669554,-697.63,ALAN ATCHISON RESIDENTIAL SERVICES (DAVIDS CLOSE 2),CARE ESTABLISHMENT,LD - Hunts Locality - Cost of Care,LD - Huntingdonshire - Care,Residential Care
Cambridgeshire County Council,05-Nov-21,51301669554,-697.63,ALAN ATCHISON RESIDENTIAL SERVICES (DAVIDS CLOSE 2),CARE ESTABLISHMENT,LD - Hunts Locality - Cost of Care,LD - Huntingdonshire - Care,Residential Care
Cambridgeshire County Council,05-Nov-21,51301669554,-697.63,ALAN ATCHISON RESIDENTIAL SERVICES (DAVIDS CLOSE 2),CARE ESTABLISHMENT,LD - Hunts Locality - Cost of Care,LD - Huntingdonshire - Care,Residential Care
Cambridgeshire County Council,05-Nov-21,51301669554,-697.63,ALAN ATCHISON RESIDENTIAL SERVICES (DAVIDS CLOSE 2),CARE ESTABLISHMENT,LD - Hunts Locality - Cost of Care,LD - Huntingdonshire - Care,Residential Care
Cambridgeshire County Council,05-Nov-21,51301669554,-697.63,ALAN ATCHISON RESIDENTIAL SERVICES (DAVIDS CLOSE 2),CARE ESTABLISHMENT,LD - Hunts Locality - Cost of Care,LD - Huntingdonshire - Care,Residential Care
Cambridgeshire County Council,05-Nov-21,51301669554,-697.63,ALAN ATCHISON RESIDENTIAL SERVICES (DAVIDS CLOSE 2),CARE ESTABLISHMENT,LD - Hunts Locality - Cost of Care,LD - Huntingdonshire - Care,Residential Care
Cambridgeshire County Council,05-Nov-21,51301669554,-697.63,ALAN ATCHISON RESIDENTIAL SERVICES (DAVIDS CLOSE 2),CARE ESTABLISHMENT,LD - Hunts Locality - Cost of Care,LD - Huntingdonshire - Care,Residential Care
Cambridgeshire County Council,05-Nov-21,51301669554,-697.63,ALAN ATCHISON RESIDENTIAL SERVICES (DAVIDS CLOSE 2),CARE ESTABLISHMENT,LD - Hunts Locality - Cost of Care,LD - Huntingdonshire - Care,Residential Care
Cambridgeshire County Council,05-Nov-21,51301669554,-697.63,ALAN ATCHISON RESIDENTIAL SERVICES (DAVIDS CLOSE 2),CARE ESTABLISHMENT,LD - Hunts Locality - Cost of Care,LD - Huntingdonshire - Care,Residential Care
Cambridgeshire County Council,05-Nov-21,51301669554,-697.63,ALAN ATCHISON RESIDENTIAL SERVICES (DAVIDS CLOSE 2),CARE ESTABLISHMENT,LD - Hunts Locality - Cost of Care,LD - Huntingdonshire - Care,Residential Care
Cambridgeshire County Council,05-Nov-21,51301669554,-697.63,ALAN ATCHISON RESIDENTIAL SERVICES (DAVIDS CLOSE 2),CARE ESTABLISHMENT,LD - Hunts Locality - Cost of Care,LD - Huntingdonshire - Care,Residential Care
Cambridgeshire County Council,05-Nov-21,51301669554,-697.63,ALAN ATCHISON RESIDENTIAL SERVICES (DAVIDS CLOSE 2),CARE ESTABLISHMENT,LD - Hunts Locality - Cost of Care,LD - Huntingdonshire - Care,Residential Care
Cambridgeshire County Council,05-Nov-21,51301669554,-697.63,ALAN ATCHISON RESIDENTIAL SERVICES (DAVIDS CLOSE 2),CARE ESTABLISHMENT,LD - Hunts Locality - Cost of Care,LD - Huntingdonshire - Care,Residential Care
Cambridgeshire County Council,05-Nov-21,51301669554,-697.63,ALAN ATCHISON RESIDENTIAL SERVICES (DAVIDS CLOSE 2),CARE ESTABLISHMENT,LD - Hunts Locality - Cost of Care,LD - Huntingdonshire - Care,Residential Care
Cambridgeshire County Council,05-Nov-21,51301669554,-697.63,ALAN ATCHISON RESIDENTIAL SERVICES (DAVIDS CLOSE 2),CARE ESTABLISHMENT,LD - Hunts Locality - Cost of Care,LD - Huntingdonshire - Care,Residential Care
